Workbook

Sheet Cover
M2: Example and Worksheet Checklist
G3: How to Make Decisions Under Uncertainty
N5: Overview Of the Method
N6: Deterministic Cash Flow
N7: Simple Decision Tree
N8: Decision Tree with Information Value
N9: Information Value Calculation for Continuous Distributions
N10: Simple Monte Carlo Example
N11: Distribution Examples
F12: Hubbard Decision Research | N12: Risk Tolerance
F13: 2S410 Canterbury Ct
F14: Glen Ellyn, IL 60137
F15: www.hubbardresearch.com

Sheet Deterministic Cash Flow
A1: Deterministic Cash Flow Example
A2: Instructions: Below a simple deterministic cashflow is included. This cashflow illustrates how several variables can be combines to produce an estimated NPV, but it falls short by not including any estimates of uncertainty on the variables. In a more realistic example it would be possible to observe a range of outcomes, including possible negative values.
B5: Input Variables | D5: Point Est.
B6: Percent reduction in labor cost | D6: 0.03
B7: Current total labor cost | D7: 75000000
B8: Initial development costs (2020) | D8: 5000000
B9: Cost of money | D9: 0.065
B11: Cash Flow
C12: 2020 | D12: 2021 | E12: 2022 | F12: 2023 | G12: 2024
B13: Total costs | C13: =D8 -> 5000000
B14: Total benefits | D14: =$D7*$D6 -> 2250000 | E14: =$D7*$D6 -> 2250000 | F14: =$D7*$D6 -> 2250000 | G14: =$D7*$D6 -> 2250000
B15: Net benefit | C15: =C14-C13 -> -5000000 | D15: =D14-D13 -> 2250000 | E15: =E14-E13 -> 2250000 | F15: =F14-F13 -> 2250000 | G15: =G14-G13 -> 2250000
B17: Results
B18: Net Present Value | C18: =NPV(D9, C15:G15) -> 2542766.999

Sheet DecisionTreeSimple
A1: Example: Simple Decision Tree
A2: Instructions: The simple decision tree shows an example of a decision to invest in a project with an uncertain outcome. One outcome is that the investment is no undertaken and has a certain payoff of zero. Otherwise if the investment is undertaken there is a probability of success and failure allowing us to calculate an expected value of the investment.
A5: Decision Tree w/Partial Information | J5: Payoff | K5: Probability
A7: Payoff if Successful | B7: 50 | F7: Choice: | G7: Invest
A8: Payoff if Unsuccessful | B8: -30 | F8: Expected Gain: | G8: =J8*L8+J11*L11 -> 18 | J8: =B$7 -> 50 | K8: P(S) | L8: =B10 -> 0.6
A9: Payoff w/o investing | B9: 0
A10: P(Success) | B10: 0.6
A11: Opportunity Loss (OL) | B11: =ABS(IF(G8>G13,J11,J8)) -> 30 | J11: =$B$8 -> -30 | K11: P(~S) | L11: =1-L8 -> 0.4
A12: EOL | B12: =IF(G8>G13,L11,L8)*B11 -> 12 | F12: Choice: | G12: Don't Invest
F13: Expected Gain: | G13: =J14 -> 0
J14: =$B$9 -> 0

Sheet DecisionTreeWinfo
A1: Decision Tree Example
A2: Instructions: This decision tree example concerns an investment decision which has an uncertain outcome. The user can enter the payoffs in the yellow cells below. It is also possible that with some investigation the probability of success would change based on the result of the experiment. This adds a decision of whether to run the experiment. The values for the probability of success given a positive result can also be input in the yellow cells as well as the cost of the experiment. The tree will use the values to calculate the expected gain with and without the experiment as well as any opportunity loss.
A5: Decision Tree w/Partial Information | P5: Payoff | Q5: Probability
A7: Payoff if Successful | B7: 50 | H7: Result: | I7: Positive | L7: Choice: | M7: Invest | P7: =B$7 -> 50 | Q7: P(S|G) | R7: =B15 -> 0.8
A8: Payoff if Unsuccessful | B8: -30 | H8: P(Positive): | I8: =B14 -> 0.6 | L8: Expected Gain: | M8: =P7*R7+P10*R10 -> 34
A9: Payoff w/o investing | B9: 0 | H9: Best Gain: | I9: =MAX(M8,M12) -> 34
A10: P(Success) | B10: 0.6 | H10: Opp. Loss | I10: =ABS(IF(I9=M8,P10*R10,P7*R7)) -> 6 | P10: =$B$8 -> -30 | Q10: P(~S|G) | R10: =1-R7 -> 0.2
A11: P(Pos|Success) | B11: 0.8 | L11: Choice: | M11: Don't Invest
A12: P(Pos|No Success) | B12: 0.3 | L12: Expected Gain: | M12: =P13 -> 0
A13: Cost of Study | B13: 2 | P13: =$B$9 -> 0
A14: P(Pos) | B14: =B11*B10+B12*(1-B10) -> 0.6 | D14: Measure
A15: P(Success|Pos) | B15: =B11*B10/B14 -> 0.8 | D15: Expected Gain: | E15: =I8*I9+I17*I18 -> 20.4
A16: P(Success|~Pos) | B16: =(1-B11)*B10/(1-B14) -> 0.3 | D16: OL | E16: =B21 -> 9.6 | H16: Result: | I16: Negative | L16: Choice: | M16: Invest | P16: =B$7 -> 50 | Q16: P(S|~G) | R16: =B16 -> 0.3
A17: Value of Study | B17: =E15-E27 -> 2.4 | H17: P(Negative): | I17: =1-I8 -> 0.4 | L17: Expected Gain: | M17: =P16*R16+P19*R19 -> -6
A18: Net Value of Study | B18: =B17-B13 -> 0.4 | H18: Best Gain: | I18: =MAX(M17,M21) -> 0
A19: Opportunity Loss (OL) | B19: =IF(E27=M25,ABS(P28),ABS(P25)) -> 30 | H19: Opp. Loss | I19: =ABS(IF(I18=M17,P19*R19,P16*R16)) -> 15 | P19: =$B$8 -> -30 | Q19: P(~S|~G) | R19: =1-R16 -> 0.7
A20: EOL before study | B20: =IF(E27=M25,R28,R25)*B19 -> 12 | L20: Choice: | M20: Don't Invest
A21: EOL after study | B21: =I10*I8+I19*I17 -> 9.6 | L21: Expected Gain: | M21: =P22 -> 0
A22: Change in EOL | B22: =E28-B21 -> 2.4 | P22: =$B$9 -> 0
A24: Rules: | L24: Choice: | M24: Invest
A25: The following rules can be used to solve the above calculated probabilities. | L25: Expected Gain: | M25: =P25*R25+P28*R28 -> 18 | P25: =B$7 -> 50 | Q25: P(S) | R25: =B10 -> 0.6
D26: Don't Measure
A27: Complement Rule | D27: Best Gain: | E27: =MAX(M25,M30) -> 18
D28: Opp. Loss | E28: =ABS(IF(E27=M25,P28*R28,P25*R25)) -> 12 | P28: =$B$8 -> -30 | Q28: P(~S) | R28: =1-R25 -> 0.4
A29: Bayes Theorem | L29: Choice: | M29: Don't Invest
L30: Expected Gain: | M30: =P31 -> 0
P31: =$B$9 -> 0
A32: Law of Total Probability:

Sheet InfoValNormal
A1: Example: Continuous Information Value Calculation Using a Normal Distribution
A3: Instructions: This is an example of an information value calculation for a continuous quantity that is normally distributed (see the next worksheet tab for the example with a uniform distribution). One way to compute the value of reducing uncertainty about a range is to chop up the range into hundreds of small slices, compute the probability and loss for each slice, multiply each probability and loss, and add them all up. This is what this spreadsheet does. It slices the possible range of values of the quantity into 2000 pieces up to 5 standard deviations from the mean. For each slice, it computes the loss and the probability of that slice. The product of each loss & probability pair is added to all the other such products to get the Expected Value of Perfect Information (EVPI) for the uncertain quantity.
A5: This spreadsheet can give a slightly more accurate answer than the chart in the book for two reasons. First, it doesn't depend on "eyeballing" the lines on the chart. Second, the chart doesn't allow for truncated values. That is, the quantity which we are computing the information value for, could be much farther beyond either of the bounds of the 90% CI. But, in reality, we might want to put realistic "hard stops" on these values. This spreadsheet asks for "absolute" min and max bounds in addition to the 90% CI bounds. However, even this is still less accurate than the VIA calculation tools for many special cases. For example, the rate of loss in this spreadsheet is fixed and many loss functions accelerate as things get worse, or it may level off. Hubbard's more sophisticated Monte Carlo tool handles all of these issues. See Hubbard's tools on the catalog page at www.howtomeasureanything.com for more info. Input values into yellow shaded cells
A7: Inputs to Information Value Calculation
A8: 90% CI Upper Bound | D8: 1000000
A9: 90% CI Lower Bound | D9: -1000000
A10: Interval Range | D10: =D8-D9 -> 2000000
A11: Threshold | D11: 0
A12: Loss rate (on the undesirable side of the threshold) | D12: 1
A13: Mean | D13: =(D8+D9)/2 -> 0
A14: Standard deviation | D14: =(D8-D9)/3.29 -> 607902.7356
A15: Does the loss occur under or over the threshold? | D15: under
A16: The absolute minimum the quantity can reach | D16: -9999999999 | AG16: over
A17: The absolute maximum the quantity can reach | D17: 9999999999 | AG17: under
A18: Estimated Information Value for a normally distributed uncertain quantity with the 90% confidence interval adjusted for absolute constraints | D18: =SUMPRODUCT(C23:C2023,D23:D2023)*SUM(D23:D2023) -> 241757.6885
A22: Standard deviation | B22: Quantity | C22: Loss | D22: Incremental Probability | F22: cpf for Data | G22: Incremental P for Data | H22: Parameter Values | I22: Confidence Interval Bars | K22: Threshold Bars | N22: Truncated probabilities
A23: -5 | B23: =A23*D$14+D$13 -> -3039513.678 | C23: =IF(EXACT(D$15,"under"),IF(B23<D$11,D$12*(D$11-B23),0),IF(B23>D$11,D$12*(B23-D$11),0)) -> 3039513.678 | D23: 0 | F23: =NORMDIST(B23,D$13,D$14,1) -> 2.866515719e-07 | I23: =D9 -> -1000000 | J23: 0 | K23: =D11 -> 0 | L23: 0 | N23: Absolute lower | O23: =NORMDIST(D16,D13,D14,1) -> 0
A24: -4.995 | B24: -3036474.164 | C24: 3036474.164 | D24: =IF(OR(B24<D$16,B24>D$17),0,NORMDIST(B24,D$13,D$14,1)-NORMDIST(B23,D$13,D$14,1)) -> 7.527265181e-09 | F24: 2.941788371e-07 | G24: =IF(AND(H24>=D$16,H24<=D$17),(F24-F23)/(1-O$23-O$24),0) -> 7.527265181e-09 | H24: =D$13+A24*D$14 -> -3036474.164 | I24: =D9 -> -1000000 | J24: 0.0005 | K24: =D11 -> 0 | L24: 0.0019 | N24: Absolute upper | O24: =1-NORMDIST(D17,D13,D14,1) -> 0
A25: -4.99 | B25: -3033434.65 | C25: 3033434.65 | D25: 7.717625461e-09 | F25: 3.018964625e-07 | G25: 7.717625461e-09 | H25: -3033434.65 | I25: =D8 -> 1000000 | J25: 0 | AP25: 0
A26: -4.985 | B26: -3030395.137 | C26: 3030395.137 | D26: 7.912602029e-09 | F26: 3.098090645e-07 | G26: 7.912602029e-09 | H26: -3030395.137 | I26: =D8 -> 1000000 | J26: 0.0005 | AP26: 0
A27: -4.98 | B27: -3027355.623 | C27: 3027355.623 | D27: 8.112301636e-09 | F27: 3.179213662e-07 | G27: 8.112301636e-09 | H27: -3027355.623 | AP27: 0
A28: -4.975 | B28: -3024316.109 | C28: 3024316.109 | D28: 8.316833373e-09 | F28: 3.262381996e-07 | G28: 8.316833373e-09 | H28: -3024316.109 | AP28: 0
A29: -4.97 | B29: -3021276.596 | C29: 3021276.596 | D29: 8.526308715e-09 | F29: 3.347645083e-07 | G29: 8.526308715e-09 | H29: -3021276.596 | AP29: 0
A30: -4.965 | B30: -3018237.082 | C30: 3018237.082 | D30: 8.740841571e-09 | F30: 3.435053498e-07 | G30: 8.740841571e-09 | H30: -3018237.082 | AP30: 0
A31: -4.96 | B31: -3015197.568 | C31: 3015197.568 | D31: 8.960548332e-09 | F31: 3.524658982e-07 | G31: 8.960548332e-09 | H31: -3015197.568 | AP31: 0
A32: -4.955 | B32: -3012158.055 | C32: 3012158.055 | D32: 9.185547925e-09 | F32: 3.616514461e-07 | G32: 9.185547925e-09 | H32: -3012158.055 | AP32: 0
A33: -4.95 | B33: -3009118.541 | C33: 3009118.541 | D33: 9.415961862e-09 | F33: 3.71067408e-07 | G33: 9.415961862e-09 | H33: -3009118.541 | AP33: 0
A34: -4.945 | B34: -3006079.027 | C34: 3006079.027 | D34: 9.651914293e-09 | F34: 3.807193223e-07 | G34: 9.651914293e-09 | H34: -3006079.027 | AP34: 0
A35: -4.94 | B35: -3003039.514 | C35: 3003039.514 | D35: 9.893532062e-09 | F35: 3.906128543e-07 | G35: 9.893532062e-09 | H35: -3003039.514 | AP35: 0
A36: -4.935 | B36: -3000000 | C36: 3000000 | D36: 1.014094476e-08 | F36: 4.007537991e-07 | G36: 1.014094476e-08 | H36: -3000000 | AP36: 0
A37: -4.93 | B37: -2996960.486 | C37: 2996960.486 | D37: 1.039428477e-08 | F37: 4.111480838e-07 | G37: 1.039428477e-08 | H37: -2996960.486 | AP37: 0
A38: -4.925 | B38: -2993920.973 | C38: 2993920.973 | D38: 1.065368735e-08 | F38: 4.218017712e-07 | G38: 1.065368735e-08 | H38: -2993920.973 | AP38: 0
A39: -4.92 | B39: -2990881.459 | C39: 2990881.459 | D39: 1.091929067e-08 | F39: 4.327210619e-07 | G39: 1.091929067e-08 | H39: -2990881.459 | AP39: 0
A40: -4.915 | B40: -2987841.945 | C40: 2987841.945 | D40: 1.119123586e-08 | F40: 4.439122977e-07 | G40: 1.119123586e-08 | H40: -2987841.945 | AP40: 0
A41: -4.91 | B41: -2984802.432 | C41: 2984802.432 | D41: 1.146966712e-08 | F41: 4.553819648e-07 | G41: 1.146966712e-08 | H41: -2984802.432 | AP41: 0
A42: -4.905 | B42: -2981762.918 | C42: 2981762.918 | D42: 1.17547317e-08 | F42: 4.671366965e-07 | G42: 1.17547317e-08 | H42: -2981762.918 | AP42: 0
A43: -4.9 | B43: -2978723.404 | C43: 2978723.404 | D43: 1.204658005e-08 | F43: 4.791832766e-07 | G43: 1.204658005e-08 | H43: -2978723.404 | AP43: 0
A44: -4.895 | B44: -2975683.891 | C44: 2975683.891 | D44: 1.234536582e-08 | F44: 4.915286424e-07 | G44: 1.234536582e-08 | H44: -2975683.891 | AP44: 0
A45: -4.89 | B45: -2972644.377 | C45: 2972644.377 | D45: 1.265124595e-08 | F45: 5.041798884e-07 | G45: 1.265124595e-08 | H45: -2972644.377 | AP45: 0
A46: -4.885 | B46: -2969604.863 | C46: 2969604.863 | D46: 1.296438073e-08 | F46: 5.171442691e-07 | G46: 1.296438073e-08 | H46: -2969604.863 | AP46: 0
A47: -4.88 | B47: -2966565.35 | C47: 2966565.35 | D47: 1.328493388e-08 | F47: 5.30429203e-07 | G47: 1.328493388e-08 | H47: -2966565.35 | AP47: 0
A48: -4.875 | B48: -2963525.836 | C48: 2963525.836 | D48: 1.36130726e-08 | F48: 5.440422756e-07 | G48: 1.36130726e-08 | H48: -2963525.836 | AP48: 0
A49: -4.87 | B49: -2960486.322 | C49: 2960486.322 | D49: 1.394896763e-08 | F49: 5.579912432e-07 | G49: 1.394896763e-08 | H49: -2960486.322 | AP49: 0
A50: -4.865 | B50: -2957446.809 | C50: 2957446.809 | D50: 1.429279337e-08 | F50: 5.722840366e-07 | G50: 1.429279337e-08 | H50: -2957446.809 | AP50: 0
A51: -4.86 | B51: -2954407.295 | C51: 2954407.295 | D51: 1.464472789e-08 | F51: 5.869287645e-07 | G51: 1.464472789e-08 | H51: -2954407.295 | AP51: 0
A52: -4.855 | B52: -2951367.781 | C52: 2951367.781 | D52: 1.500495303e-08 | F52: 6.019337175e-07 | G52: 1.500495303e-08 | H52: -2951367.781 | AP52: 0
A53: -4.85 | B53: -2948328.267 | C53: 2948328.267 | D53: 1.537365451e-08 | F53: 6.17307372e-07 | G53: 1.537365451e-08 | H53: -2948328.267 | AP53: 0
A54: -4.845 | B54: -2945288.754 | C54: 2945288.754 | D54: 1.575102193e-08 | F54: 6.330583939e-07 | G54: 1.575102193e-08 | H54: -2945288.754 | AP54: 0
A55: -4.84 | B55: -2942249.24 | C55: 2942249.24 | D55: 1.613724892e-08 | F55: 6.491956429e-07 | G55: 1.613724892e-08 | H55: -2942249.24 | AP55: 0
A56: -4.835 | B56: -2939209.726 | C56: 2939209.726 | D56: 1.653253317e-08 | F56: 6.65728176e-07 | G56: 1.653253317e-08 | H56: -2939209.726 | AP56: 0
A57: -4.83 | B57: -2936170.213 | C57: 2936170.213 | D57: 1.693707653e-08 | F57: 6.826652526e-07 | G57: 1.693707653e-08 | H57: -2936170.213 | AP57: 0
A58: -4.825 | B58: -2933130.699 | C58: 2933130.699 | D58: 1.73510851e-08 | F58: 7.000163377e-07 | G58: 1.73510851e-08 | H58: -2933130.699 | AP58: 0
A59: -4.82 | B59: -2930091.185 | C59: 2930091.185 | D59: 1.777476929e-08 | F59: 7.177911069e-07 | G59: 1.777476929e-08 | H59: -2930091.185 | AP59: 0
A60: -4.815 | B60: -2927051.672 | C60: 2927051.672 | D60: 1.820834391e-08 | F60: 7.359994509e-07 | G60: 1.820834391e-08 | H60: -2927051.672 | AP60: 0
A61: -4.81 | B61: -2924012.158 | C61: 2924012.158 | D61: 1.865202829e-08 | F61: 7.546514791e-07 | G61: 1.865202829e-08 | H61: -2924012.158 | AP61: 0
A62: -4.805 | B62: -2920972.644 | C62: 2920972.644 | D62: 1.910604631e-08 | F62: 7.737575255e-07 | G62: 1.910604631e-08 | H62: -2920972.644 | AP62: 0
A63: -4.8 | B63: -2917933.131 | C63: 2917933.131 | D63: 1.957062652e-08 | F63: 7.93328152e-07 | G63: 1.957062652e-08 | H63: -2917933.131 | AP63: 0
A64: -4.795 | B64: -2914893.617 | C64: 2914893.617 | D64: 2.004600226e-08 | F64: 8.133741542e-07 | G64: 2.004600226e-08 | H64: -2914893.617 | AP64: 0
A65: -4.79 | B65: -2911854.103 | C65: 2911854.103 | D65: 2.053241169e-08 | F65: 8.339065659e-07 | G65: 2.053241169e-08 | H65: -2911854.103 | AP65: 0
A66: -4.785 | B66: -2908814.59 | C66: 2908814.59 | D66: 2.103009791e-08 | F66: 8.549366638e-07 | G66: 2.103009791e-08 | H66: -2908814.59 | AP66: 0
A67: -4.78 | B67: -2905775.076 | C67: 2905775.076 | D67: 2.153930909e-08 | F67: 8.764759729e-07 | G67: 2.153930909e-08 | H67: -2905775.076 | AP67: 0
A68: -4.775 | B68: -2902735.562 | C68: 2902735.562 | D68: 2.206029852e-08 | F68: 8.985362714e-07 | G68: 2.206029852e-08 | H68: -2902735.562 | AP68: 0
A69: -4.77 | B69: -2899696.049 | C69: 2899696.049 | D69: 2.259332472e-08 | F69: 9.211295962e-07 | G69: 2.259332472e-08 | H69: -2899696.049 | AP69: 0
A70: -4.765 | B70: -2896656.535 | C70: 2896656.535 | D70: 2.313865155e-08 | F70: 9.442682477e-07 | G70: 2.313865155e-08 | H70: -2896656.535 | AP70: 0
A71: -4.76 | B71: -2893617.021 | C71: 2893617.021 | D71: 2.369654832e-08 | F71: 9.67964796e-07 | G71: 2.369654832e-08 | H71: -2893617.021 | AP71: 0
A72: -4.755 | B72: -2890577.508 | C72: 2890577.508 | D72: 2.426728986e-08 | F72: 9.922320859e-07 | G72: 2.426728986e-08 | H72: -2890577.508 | AP72: 0
A73: -4.75 | B73: -2887537.994 | C73: 2887537.994 | D73: 2.485115668e-08 | F73: 1.017083243e-06 | G73: 2.485115668e-08 | H73: -2887537.994 | AP73: 0
A74: -4.745 | B74: -2884498.48 | C74: 2884498.48 | D74: 2.544843501e-08 | F74: 1.042531678e-06 | G74: 2.544843501e-08 | H74: -2884498.48 | AP74: 0
A75: -4.74 | B75: -2881458.967 | C75: 2881458.967 | D75: 2.605941697e-08 | F75: 1.068591095e-06 | G75: 2.605941697e-08 | H75: -2881458.967 | AP75: 0
A76: -4.735 | B76: -2878419.453 | C76: 2878419.453 | D76: 2.668440065e-08 | F76: 1.095275495e-06 | G76: 2.668440065e-08 | H76: -2878419.453 | AP76: 0
A77: -4.73 | B77: -2875379.939 | C77: 2875379.939 | D77: 2.732369024e-08 | F77: 1.122599185e-06 | G77: 2.732369024e-08 | H77: -2875379.939 | AP77: 0
A78: -4.725 | B78: -2872340.426 | C78: 2872340.426 | D78: 2.797759611e-08 | F78: 1.150576782e-06 | G78: 2.797759611e-08 | H78: -2872340.426 | AP78: 0
A79: -4.72 | B79: -2869300.912 | C79: 2869300.912 | D79: 2.864643497e-08 | F79: 1.179223217e-06 | G79: 2.864643497e-08 | H79: -2869300.912 | AP79: 0
A80: -4.715 | B80: -2866261.398 | C80: 2866261.398 | D80: 2.933052998e-08 | F80: 1.208553746e-06 | G80: 2.933052998e-08 | H80: -2866261.398 | AP80: 0
A81: -4.71 | B81: -2863221.884 | C81: 2863221.884 | D81: 3.003021085e-08 | F81: 1.238583957e-06 | G81: 3.003021085e-08 | H81: -2863221.884 | AP81: 0
A82: -4.705 | B82: -2860182.371 | C82: 2860182.371 | D82: 3.074581398e-08 | F82: 1.269329771e-06 | G82: 3.074581398e-08 | H82: -2860182.371 | AP82: 0
A83: -4.7 | B83: -2857142.857 | C83: 2857142.857 | D83: 3.147768258e-08 | F83: 1.300807454e-06 | G83: 3.147768258e-08 | H83: -2857142.857 | AP83: 0
A84: -4.695 | B84: -2854103.343 | C84: 2854103.343 | D84: 3.222616681e-08 | F84: 1.333033621e-06 | G84: 3.222616681e-08 | H84: -2854103.343 | AP84: 0
A85: -4.69 | B85: -2851063.83 | C85: 2851063.83 | D85: 3.299162388e-08 | F85: 1.366025245e-06 | G85: 3.299162388e-08 | H85: -2851063.83 | AP85: 0
A86: -4.685 | B86: -2848024.316 | C86: 2848024.316 | D86: 3.377441822e-08 | F86: 1.399799663e-06 | G86: 3.377441822e-08 | H86: -2848024.316 | AP86: 0
A87: -4.68 | B87: =A87*D$14+D$13 -> -2844984.802 | C87: =IF(EXACT(D$15,"under"),IF(B87<D$11,D$12*(D$11-B87),0),IF(B87>D$11,D$12*(B87-D$11),0)) -> 2844984.802 | D87: 3.457492159e-08 | F87: =NORMDIST(B87,D$13,D$14,1) -> 1.434374584e-06 | G87: 3.457492159e-08 | H87: -2844984.802 | AP87: 0
A88: -4.675 | B88: -2841945.289 | C88: 2841945.289 | D88: =IF(OR(B88<D$16,B88>D$17),0,NORMDIST(B88,D$13,D$14,1)-NORMDIST(B87,D$13,D$14,1)) -> 3.539351322e-08 | F88: 1.469768098e-06 | G88: =IF(AND(H88>=D$16,H88<=D$17),(F88-F87)/(1-O$23-O$24),0) -> 3.539351322e-08 | H88: =D$13+A88*D$14 -> -2841945.289 | AP88: 0
A89: -4.67 | B89: -2838905.775 | C89: 2838905.775 | D89: 3.623057995e-08 | F89: 1.505998678e-06 | G89: 3.623057995e-08 | H89: -2838905.775 | AP89: 0
A90: -4.665 | B90: -2835866.261 | C90: 2835866.261 | D90: 3.708651638e-08 | F90: 1.543085194e-06 | G90: 3.708651638e-08 | H90: -2835866.261 | AP90: 0
A91: -4.66 | B91: -2832826.748 | C91: 2832826.748 | D91: 3.796172499e-08 | F91: 1.581046919e-06 | G91: 3.796172499e-08 | H91: -2832826.748 | AP91: 0
A92: -4.655 | B92: -2829787.234 | C92: 2829787.234 | D92: 3.885661632e-08 | F92: 1.619903535e-06 | G92: 3.885661632e-08 | H92: -2829787.234 | AP92: 0
A93: -4.65 | B93: -2826747.72 | C93: 2826747.72 | D93: 3.977160908e-08 | F93: 1.659675144e-06 | G93: 3.977160908e-08 | H93: -2826747.72 | AP93: 0
A94: -4.645 | B94: -2823708.207 | C94: 2823708.207 | D94: 4.070713034e-08 | F94: 1.700382275e-06 | G94: 4.070713034e-08 | H94: -2823708.207 | AP94: 0
A95: -4.64 | B95: -2820668.693 | C95: 2820668.693 | D95: 4.166361564e-08 | F95: 1.74204589e-06 | G95: 4.166361564e-08 | H95: -2820668.693 | AP95: 0
A96: -4.635 | B96: -2817629.179 | C96: 2817629.179 | D96: 4.264150919e-08 | F96: 1.7846874e-06 | G96: 4.264150919e-08 | H96: -2817629.179 | AP96: 0
A97: -4.63 | B97: -2814589.666 | C97: 2814589.666 | D97: 4.364126399e-08 | F97: 1.828328664e-06 | G97: 4.364126399e-08 | H97: -2814589.666 | AP97: 0
A98: -4.625 | B98: -2811550.152 | C98: 2811550.152 | D98: 4.466334203e-08 | F98: 1.872992006e-06 | G98: 4.466334203e-08 | H98: -2811550.152 | AP98: 0
A99: -4.62 | B99: -2808510.638 | C99: 2808510.638 | D99: 4.570821441e-08 | F99: 1.91870022e-06 | G99: 4.570821441e-08 | H99: -2808510.638 | AP99: 0
A100: -4.615 | B100: -2805471.125 | C100: 2805471.125 | D100: 4.677636154e-08 | F100: 1.965476582e-06 | G100: 4.677636154e-08 | H100: -2805471.125 | AP100: 0
A101: -4.61 | B101: -2802431.611 | C101: 2802431.611 | D101: 4.786827329e-08 | F101: 2.013344855e-06 | G101: 4.786827329e-08 | H101: -2802431.611 | AP101: 0
A102: -4.605 | B102: -2799392.097 | C102: 2799392.097 | D102: 4.898444918e-08 | F102: 2.062329304e-06 | G102: 4.898444918e-08 | H102: -2799392.097 | AP102: 0
A103: -4.6 | B103: -2796352.584 | C103: 2796352.584 | D103: 5.012539852e-08 | F103: 2.112454703e-06 | G103: 5.012539852e-08 | H103: -2796352.584 | AP103: 0
A104: -4.595 | B104: -2793313.07 | C104: 2793313.07 | D104: 5.129164063e-08 | F104: 2.163746343e-06 | G104: 5.129164063e-08 | H104: -2793313.07 | AP104: 0
A105: -4.59 | B105: -2790273.556 | C105: 2790273.556 | D105: 5.248370499e-08 | F105: 2.216230048e-06 | G105: 5.248370499e-08 | H105: -2790273.556 | AP105: 0
A106: -4.585 | B106: -2787234.043 | C106: 2787234.043 | D106: 5.370213145e-08 | F106: 2.26993218e-06 | G106: 5.370213145e-08 | H106: -2787234.043 | AP106: 0
A107: -4.58 | B107: -2784194.529 | C107: 2784194.529 | D107: 5.494747037e-08 | F107: 2.32487965e-06 | G107: 5.494747037e-08 | H107: -2784194.529 | AP107: 0
A108: -4.575 | B108: -2781155.015 | C108: 2781155.015 | D108: 5.622028287e-08 | F108: 2.381099933e-06 | G108: 5.622028287e-08 | H108: -2781155.015 | AP108: 0
A109: -4.57 | B109: -2778115.502 | C109: 2778115.502 | D109: 5.752114097e-08 | F109: 2.438621074e-06 | G109: 5.752114097e-08 | H109: -2778115.502 | AP109: 0
A110: -4.565 | B110: -2775075.988 | C110: 2775075.988 | D110: 5.885062782e-08 | F110: 2.497471702e-06 | G110: 5.885062782e-08 | H110: -2775075.988 | AP110: 0
A111: -4.56 | B111: -2772036.474 | C111: 2772036.474 | D111: 6.020933786e-08 | F111: 2.557681039e-06 | G111: 6.020933786e-08 | H111: -2772036.474 | AP111: 0
A112: -4.555 | B112: -2768996.96 | C112: 2768996.96 | D112: 6.159787706e-08 | F112: 2.619278917e-06 | G112: 6.159787706e-08 | H112: -2768996.96 | AP112: 0
A113: -4.55 | B113: -2765957.447 | C113: 2765957.447 | D113: 6.301686312e-08 | F113: 2.68229578e-06 | G113: 6.301686312e-08 | H113: -2765957.447 | AP113: 0
A114: -4.545 | B114: -2762917.933 | C114: 2762917.933 | D114: 6.446692566e-08 | F114: 2.746762705e-06 | G114: 6.446692566e-08 | H114: -2762917.933 | AP114: 0
A115: -4.54 | B115: -2759878.419 | C115: 2759878.419 | D115: 6.594870642e-08 | F115: 2.812711412e-06 | G115: 6.594870642e-08 | H115: -2759878.419 | AP115: 0
A116: -4.535 | B116: -2756838.906 | C116: 2756838.906 | D116: 6.746285953e-08 | F116: 2.880174271e-06 | G116: 6.746285953e-08 | H116: -2756838.906 | AP116: 0
A117: -4.53 | B117: -2753799.392 | C117: 2753799.392 | D117: 6.901005164e-08 | F117: 2.949184323e-06 | G117: 6.901005164e-08 | H117: -2753799.392 | AP117: 0
A118: -4.525 | B118: -2750759.878 | C118: 2750759.878 | D118: 7.059096224e-08 | F118: 3.019775285e-06 | G118: 7.059096224e-08 | H118: -2750759.878 | AP118: 0
A119: -4.52 | B119: -2747720.365 | C119: 2747720.365 | D119: 7.220628382e-08 | F119: 3.091981569e-06 | G119: 7.220628382e-08 | H119: -2747720.365 | AP119: 0
A120: -4.515 | B120: -2744680.851 | C120: 2744680.851 | D120: 7.38567221e-08 | F120: 3.165838291e-06 | G120: 7.38567221e-08 | H120: -2744680.851 | AP120: 0
A121: -4.51 | B121: -2741641.337 | C121: 2741641.337 | D121: 7.55429963e-08 | F121: 3.241381287e-06 | G121: 7.55429963e-08 | H121: -2741641.337 | AP121: 0
A122: -4.505 | B122: -2738601.824 | C122: 2738601.824 | D122: 7.726583932e-08 | F122: 3.318647127e-06 | G122: 7.726583932e-08 | H122: -2738601.824 | AP122: 0
A123: -4.5 | B123: -2735562.31 | C123: 2735562.31 | D123: 7.902599805e-08 | F123: 3.397673125e-06 | G123: 7.902599805e-08 | H123: -2735562.31 | AP123: 0
A124: -4.495 | B124: -2732522.796 | C124: 2732522.796 | D124: 8.082423355e-08 | F124: 3.478497358e-06 | G124: 8.082423355e-08 | H124: -2732522.796 | AP124: 0
A125: -4.49 | B125: -2729483.283 | C125: 2729483.283 | D125: 8.266132132e-08 | F125: 3.56115868e-06 | G125: 8.266132132e-08 | H125: -2729483.283 | AP125: 0
A126: -4.485 | B126: -2726443.769 | C126: 2726443.769 | D126: 8.453805155e-08 | F126: 3.645696731e-06 | G126: 8.453805155e-08 | H126: -2726443.769 | AP126: 0
A127: -4.48 | B127: -2723404.255 | C127: 2723404.255 | D127: 8.645522937e-08 | F127: 3.732151961e-06 | G127: 8.645522937e-08 | H127: -2723404.255 | AP127: 0
A128: -4.475 | B128: -2720364.742 | C128: 2720364.742 | D128: 8.841367513e-08 | F128: 3.820565636e-06 | G128: 8.841367513e-08 | H128: -2720364.742 | AP128: 0
A129: -4.47 | B129: -2717325.228 | C129: 2717325.228 | D129: 9.041422463e-08 | F129: 3.91097986e-06 | G129: 9.041422463e-08 | H129: -2717325.228 | AP129: 0
A130: -4.465 | B130: -2714285.714 | C130: 2714285.714 | D130: 9.24577294e-08 | F130: 4.00343759e-06 | G130: 9.24577294e-08 | H130: -2714285.714 | AP130: 0
A131: -4.46 | B131: -2711246.201 | C131: 2711246.201 | D131: 9.454505696e-08 | F131: 4.097982647e-06 | G131: 9.454505696e-08 | H131: -2711246.201 | AP131: 0
A132: -4.455 | B132: -2708206.687 | C132: 2708206.687 | D132: 9.667709111e-08 | F132: 4.194659738e-06 | G132: 9.667709111e-08 | H132: -2708206.687 | AP132: 0
A133: -4.45 | B133: -2705167.173 | C133: 2705167.173 | D133: 9.885473222e-08 | F133: 4.29351447e-06 | G133: 9.885473222e-08 | H133: -2705167.173 | AP133: 0
A134: -4.445 | B134: -2702127.66 | C134: 2702127.66 | D134: 1.010788975e-07 | F134: 4.394593367e-06 | G134: 1.010788975e-07 | H134: -2702127.66 | AP134: 0
A135: -4.44 | B135: -2699088.146 | C135: 2699088.146 | D135: 1.033505211e-07 | F135: 4.497943889e-06 | G135: 1.033505211e-07 | H135: -2699088.146 | AP135: 0
A136: -4.435 | B136: -2696048.632 | C136: 2696048.632 | D136: 1.05670555e-07 | F136: 4.603614444e-06 | G136: 1.05670555e-07 | H136: -2696048.632 | AP136: 0
A137: -4.43 | B137: -2693009.119 | C137: 2693009.119 | D137: 1.080399684e-07 | F137: 4.711654412e-06 | G137: 1.080399684e-07 | H137: -2693009.119 | AP137: 0
A138: -4.425 | B138: -2689969.605 | C138: 2689969.605 | D138: 1.104597488e-07 | F138: 4.822114161e-06 | G138: 1.104597488e-07 | H138: -2689969.605 | AP138: 0
A139: -4.42 | B139: -2686930.091 | C139: 2686930.091 | D139: 1.129309019e-07 | F139: 4.935045063e-06 | G139: 1.129309019e-07 | H139: -2686930.091 | AP139: 0
A140: -4.415 | B140: -2683890.578 | C140: 2683890.578 | D140: 1.154544521e-07 | F140: 5.050499515e-06 | G140: 1.154544521e-07 | H140: -2683890.578 | AP140: 0
A141: -4.41 | B141: -2680851.064 | C141: 2680851.064 | D141: 1.180314426e-07 | F141: 5.168530957e-06 | G141: 1.180314426e-07 | H141: -2680851.064 | AP141: 0
A142: -4.405 | B142: -2677811.55 | C142: 2677811.55 | D142: 1.20662936e-07 | F142: 5.289193893e-06 | G142: 1.20662936e-07 | H142: -2677811.55 | AP142: 0
A143: -4.4 | B143: -2674772.036 | C143: 2674772.036 | D143: 1.233500144e-07 | F143: 5.412543908e-06 | G143: 1.233500144e-07 | H143: -2674772.036 | AP143: 0
A144: -4.395 | B144: -2671732.523 | C144: 2671732.523 | D144: 1.260937798e-07 | F144: 5.538637687e-06 | G144: 1.260937798e-07 | H144: -2671732.523 | AP144: 0
A145: -4.39 | B145: -2668693.009 | C145: 2668693.009 | D145: 1.288953543e-07 | F145: 5.667533042e-06 | G145: 1.288953543e-07 | H145: -2668693.009 | AP145: 0
A146: -4.385 | B146: -2665653.495 | C146: 2665653.495 | D146: 1.317558808e-07 | F146: 5.799288923e-06 | G146: 1.317558808e-07 | H146: -2665653.495 | AP146: 0
A147: -4.38 | B147: -2662613.982 | C147: 2662613.982 | D147: 1.34676523e-07 | F147: 5.933965446e-06 | G147: 1.34676523e-07 | H147: -2662613.982 | AP147: 0
A148: -4.375 | B148: -2659574.468 | C148: 2659574.468 | D148: 1.376584657e-07 | F148: 6.071623911e-06 | G148: 1.376584657e-07 | H148: -2659574.468 | AP148: 0
A149: -4.37 | B149: -2656534.954 | C149: 2656534.954 | D149: 1.407029156e-07 | F149: 6.212326827e-06 | G149: 1.407029156e-07 | H149: -2656534.954 | AP149: 0
A150: -4.365 | B150: -2653495.441 | C150: 2653495.441 | D150: 1.438111011e-07 | F150: 6.356137928e-06 | G150: 1.438111011e-07 | H150: -2653495.441 | AP150: 0
A151: -4.36 | B151: =A151*D$14+D$13 -> -2650455.927 | C151: =IF(EXACT(D$15,"under"),IF(B151<D$11,D$12*(D$11-B151),0),IF(B151>D$11,D$12*(B151-D$11),0)) -> 2650455.927 | D151: 1.46984273e-07 | F151: =NORMDIST(B151,D$13,D$14,1) -> 6.503122201e-06 | G151: 1.46984273e-07 | H151: -2650455.927 | AP151: 0
A152: -4.355 | B152: -2647416.413 | C152: 2647416.413 | D152: =IF(OR(B152<D$16,B152>D$17),0,NORMDIST(B152,D$13,D$14,1)-NORMDIST(B151,D$13,D$14,1)) -> 1.502237049e-07 | F152: 6.653345906e-06 | G152: =IF(AND(H152>=D$16,H152<=D$17),(F152-F151)/(1-O$23-O$24),0) -> 1.502237049e-07 | H152: =D$13+A152*D$14 -> -2647416.413 | AP152: 0
A153: -4.35 | B153: -2644376.9 | C153: 2644376.9 | D153: 1.535306934e-07 | F153: 6.806876599e-06 | G153: 1.535306934e-07 | H153: -2644376.9 | AP153: 0
A154: -4.345 | B154: -2641337.386 | C154: 2641337.386 | D154: 1.569065584e-07 | F154: 6.963783158e-06 | G154: 1.569065584e-07 | H154: -2641337.386 | AP154: 0
A155: -4.34 | B155: -2638297.872 | C155: 2638297.872 | D155: 1.603526438e-07 | F155: 7.124135801e-06 | G155: 1.603526438e-07 | H155: -2638297.872 | AP155: 0
A156: -4.335 | B156: -2635258.359 | C156: 2635258.359 | D156: 1.638703175e-07 | F156: 7.288006119e-06 | G156: 1.638703175e-07 | H156: -2635258.359 | AP156: 0
A157: -4.33 | B157: -2632218.845 | C157: 2632218.845 | D157: 1.674609723e-07 | F157: 7.455467091e-06 | G157: 1.674609723e-07 | H157: -2632218.845 | AP157: 0
A158: -4.325 | B158: -2629179.331 | C158: 2629179.331 | D158: 1.711260258e-07 | F158: 7.626593117e-06 | G158: 1.711260258e-07 | H158: -2629179.331 | AP158: 0
A159: -4.32 | B159: -2626139.818 | C159: 2626139.818 | D159: 1.74866921e-07 | F159: 7.801460038e-06 | G159: 1.74866921e-07 | H159: -2626139.818 | AP159: 0
A160: -4.315 | B160: -2623100.304 | C160: 2623100.304 | D160: 1.786851267e-07 | F160: 7.980145165e-06 | G160: 1.786851267e-07 | H160: -2623100.304 | AP160: 0
A161: -4.31 | B161: -2620060.79 | C161: 2620060.79 | D161: 1.82582138e-07 | F161: 8.162727303e-06 | G161: 1.82582138e-07 | H161: -2620060.79 | AP161: 0
A162: -4.305 | B162: -2617021.277 | C162: 2617021.277 | D162: 1.865594767e-07 | F162: 8.349286779e-06 | G162: 1.865594767e-07 | H162: -2617021.277 | AP162: 0
A163: -4.3 | B163: -2613981.763 | C163: 2613981.763 | D163: 1.906186915e-07 | F163: 8.539905471e-06 | G163: 1.906186915e-07 | H163: -2613981.763 | AP163: 0
A164: -4.295 | B164: -2610942.249 | C164: 2610942.249 | D164: 1.947613589e-07 | F164: 8.73466683e-06 | G164: 1.947613589e-07 | H164: -2610942.249 | AP164: 0
A165: -4.29 | B165: -2607902.736 | C165: 2607902.736 | D165: 1.98989083e-07 | F165: 8.933655913e-06 | G165: 1.98989083e-07 | H165: -2607902.736 | AP165: 0
A166: -4.285 | B166: -2604863.222 | C166: 2604863.222 | D166: 2.033034965e-07 | F166: 9.136959409e-06 | G166: 2.033034965e-07 | H166: -2604863.222 | AP166: 0
A167: -4.28 | B167: -2601823.708 | C167: 2601823.708 | D167: 2.077062609e-07 | F167: 9.34466567e-06 | G167: 2.077062609e-07 | H167: -2601823.708 | AP167: 0
A168: -4.275 | B168: -2598784.195 | C168: 2598784.195 | D168: 2.121990671e-07 | F168: 9.556864737e-06 | G168: 2.121990671e-07 | H168: -2598784.195 | AP168: 0
A169: -4.27 | B169: -2595744.681 | C169: 2595744.681 | D169: 2.167836356e-07 | F169: 9.773648373e-06 | G169: 2.167836356e-07 | H169: -2595744.681 | AP169: 0
A170: -4.265 | B170: -2592705.167 | C170: 2592705.167 | D170: 2.214617173e-07 | F170: 9.99511009e-06 | G170: 2.214617173e-07 | H170: -2592705.167 | AP170: 0
A171: -4.26 | B171: -2589665.653 | C171: 2589665.653 | D171: 2.262350937e-07 | F171: 1.022134518e-05 | G171: 2.262350937e-07 | H171: -2589665.653 | AP171: 0
A172: -4.255 | B172: -2586626.14 | C172: 2586626.14 | D172: 2.311055776e-07 | F172: 1.045245076e-05 | G172: 2.311055776e-07 | H172: -2586626.14 | AP172: 0
A173: -4.25 | B173: -2583586.626 | C173: 2583586.626 | D173: 2.360750133e-07 | F173: 1.068852577e-05 | G173: 2.360750133e-07 | H173: -2583586.626 | AP173: 0
A174: -4.245 | B174: -2580547.112 | C174: 2580547.112 | D174: 2.411452776e-07 | F174: 1.092967105e-05 | G174: 2.411452776e-07 | H174: -2580547.112 | AP174: 0
A175: -4.24 | B175: -2577507.599 | C175: 2577507.599 | D175: 2.463182796e-07 | F175: 1.117598933e-05 | G175: 2.463182796e-07 | H175: -2577507.599 | AP175: 0
A176: -4.235 | B176: -2574468.085 | C176: 2574468.085 | D176: 2.515959619e-07 | F176: 1.142758529e-05 | G176: 2.515959619e-07 | H176: -2574468.085 | AP176: 0
A177: -4.23 | B177: -2571428.571 | C177: 2571428.571 | D177: 2.569803007e-07 | F177: 1.168456559e-05 | G177: 2.569803007e-07 | H177: -2571428.571 | AP177: 0
A178: -4.225 | B178: -2568389.058 | C178: 2568389.058 | D178: 2.624733064e-07 | F178: 1.19470389e-05 | G178: 2.624733064e-07 | H178: -2568389.058 | AP178: 0
A179: -4.22 | B179: -2565349.544 | C179: 2565349.544 | D179: 2.680770242e-07 | F179: 1.221511593e-05 | G179: 2.680770242e-07 | H179: -2565349.544 | AP179: 0
A180: -4.215 | B180: -2562310.03 | C180: 2562310.03 | D180: 2.737935346e-07 | F180: 1.248890946e-05 | G180: 2.737935346e-07 | H180: -2562310.03 | AP180: 0
A181: -4.21 | B181: -2559270.517 | C181: 2559270.517 | D181: 2.796249539e-07 | F181: 1.276853441e-05 | G181: 2.796249539e-07 | H181: -2559270.517 | AP181: 0
A182: -4.205 | B182: -2556231.003 | C182: 2556231.003 | D182: 2.855734349e-07 | F182: 1.305410785e-05 | G182: 2.855734349e-07 | H182: -2556231.003 | AP182: 0
A183: -4.2 | B183: -2553191.489 | C183: 2553191.489 | D183: 2.916411673e-07 | F183: 1.334574902e-05 | G183: 2.916411673e-07 | H183: -2553191.489 | AP183: 0
A184: -4.195 | B184: -2550151.976 | C184: 2550151.976 | D184: 2.978303781e-07 | F184: 1.364357939e-05 | G184: 2.978303781e-07 | H184: -2550151.976 | AP184: 0
A185: -4.19 | B185: -2547112.462 | C185: 2547112.462 | D185: 3.041433328e-07 | F185: 1.394772273e-05 | G185: 3.041433328e-07 | H185: -2547112.462 | AP185: 0
A186: -4.185 | B186: -2544072.948 | C186: 2544072.948 | D186: 3.105823353e-07 | F186: 1.425830506e-05 | G186: 3.105823353e-07 | H186: -2544072.948 | AP186: 0
A187: -4.18 | B187: -2541033.435 | C187: 2541033.435 | D187: 3.171497287e-07 | F187: 1.457545479e-05 | G187: 3.171497287e-07 | H187: -2541033.435 | AP187: 0
A188: -4.175 | B188: -2537993.921 | C188: 2537993.921 | D188: 3.238478961e-07 | F188: 1.489930269e-05 | G188: 3.238478961e-07 | H188: -2537993.921 | AP188: 0
A189: -4.17 | B189: -2534954.407 | C189: 2534954.407 | D189: 3.30679261e-07 | F189: 1.522998195e-05 | G189: 3.30679261e-07 | H189: -2534954.407 | AP189: 0
A190: -4.165 | B190: -2531914.894 | C190: 2531914.894 | D190: 3.376462879e-07 | F190: 1.556762824e-05 | G190: 3.376462879e-07 | H190: -2531914.894 | AP190: 0
A191: -4.16 | B191: -2528875.38 | C191: 2528875.38 | D191: 3.447514832e-07 | F191: 1.591237972e-05 | G191: 3.447514832e-07 | H191: -2528875.38 | AP191: 0
A192: -4.155 | B192: -2525835.866 | C192: 2525835.866 | D192: 3.519973952e-07 | F192: 1.626437711e-05 | G192: 3.519973952e-07 | H192: -2525835.866 | AP192: 0
A193: -4.15 | B193: -2522796.353 | C193: 2522796.353 | D193: 3.593866154e-07 | F193: 1.662376373e-05 | G193: 3.593866154e-07 | H193: -2522796.353 | AP193: 0
A194: -4.145 | B194: -2519756.839 | C194: 2519756.839 | D194: 3.669217789e-07 | F194: 1.699068551e-05 | G194: 3.669217789e-07 | H194: -2519756.839 | AP194: 0
A195: -4.14 | B195: -2516717.325 | C195: 2516717.325 | D195: 3.74605565e-07 | F195: 1.736529107e-05 | G195: 3.74605565e-07 | H195: -2516717.325 | AP195: 0
A196: -4.135 | B196: -2513677.812 | C196: 2513677.812 | D196: 3.824406977e-07 | F196: 1.774773177e-05 | G196: 3.824406977e-07 | H196: -2513677.812 | AP196: 0
A197: -4.13 | B197: -2510638.298 | C197: 2510638.298 | D197: 3.904299468e-07 | F197: 1.813816172e-05 | G197: 3.904299468e-07 | H197: -2510638.298 | AP197: 0
A198: -4.125 | B198: -2507598.784 | C198: 2507598.784 | D198: 3.985761281e-07 | F198: 1.853673785e-05 | G198: 3.985761281e-07 | H198: -2507598.784 | AP198: 0
A199: -4.12 | B199: -2504559.271 | C199: 2504559.271 | D199: 4.068821044e-07 | F199: 1.894361995e-05 | G199: 4.068821044e-07 | H199: -2504559.271 | AP199: 0
A200: -4.115 | B200: -2501519.757 | C200: 2501519.757 | D200: 4.15350786e-07 | F200: 1.935897074e-05 | G200: 4.15350786e-07 | H200: -2501519.757 | AP200: 0
A201: -4.11 | B201: -2498480.243 | C201: 2498480.243 | D201: 4.239851317e-07 | F201: 1.978295587e-05 | G201: 4.239851317e-07 | H201: -2498480.243 | AP201: 0
A202: -4.105 | B202: -2495440.729 | C202: 2495440.729 | D202: 4.32788149e-07 | F202: 2.021574402e-05 | G202: 4.32788149e-07 | H202: -2495440.729 | AP202: 0
A203: -4.1 | B203: -2492401.216 | C203: 2492401.216 | D203: 4.417628953e-07 | F203: 2.065750691e-05 | G203: 4.417628953e-07 | H203: -2492401.216 | AP203: 0
A204: -4.095 | B204: -2489361.702 | C204: 2489361.702 | D204: 4.509124784e-07 | F204: 2.110841939e-05 | G204: 4.509124784e-07 | H204: -2489361.702 | AP204: 0
A205: -4.09 | B205: -2486322.188 | C205: 2486322.188 | D205: 4.602400572e-07 | F205: 2.156865945e-05 | G205: 4.602400572e-07 | H205: -2486322.188 | AP205: 0
A206: -4.085 | B206: -2483282.675 | C206: 2483282.675 | D206: 4.697488425e-07 | F206: 2.203840829e-05 | G206: 4.697488425e-07 | H206: -2483282.675 | AP206: 0
... 1819 more rows

Sheet InfoValUniform
A1: Example: Continuous Information Value Calculation Using a Uniform Distribution
A2: Instructions: This is an example of an information value calculation for a continuous quantity with a uniform distribution. This calculation is different from the information value calculation for a normal because it can be calculated exactly without needing to "slice up" the distribution as we did with the normal distribution. Input values are the yellow cells.
A4: As with the normal distribution, this spreadsheet can give a slightly more accurate answer than the chart in Doug's book HTMA. The lower and upper bounds of this spreadsheet are "absolute" bounds. Unlike the 90% confidence interval, there is no chance the value can be outside of the stated bounds. The only problem in using this spreadsheet is that for many special cases the "loss rate" may change depending on the quantity estimated. For example, the rate of loss in this spreadsheet is fixed and many loss functions accelerate as things get worse, or it may level off. Hubbard's more advanced Monte Carlo simulation tools address of these issues. See Hubbard's tools on the catalog page at www.howtomeasureanything.com for more info.
A5: Inputs to Information Value Calculation
A6: Upper Bound | D6: 700 | Z6: over
A7: Lower Bound | D7: 450 | Z7: under
A8: Interval Range | D8: =D6-D7 -> 250
A9: Threshold | D9: 500
A10: Loss rate (on the undesirable side of the threshold) | D10: 75000
A11: Mean | D11: =(D6+D7)/2 -> 575
A12: Standard deviation | D12: =(D6-D7)/12^0.5 -> 72.16878365
A13: Does the loss occur under or over the threshold? | D13: under
A14: Information Value if it were a uniform distribution with the absolute constraints above | D14: =IF(EXACT(D13,"under"),MAX(0,D9-D7)^2/2*D10/(D6-D7),MAX(0,D6-D9)^2/2*D10/(D6-D7)) -> 375000
A18: Confidence Interval Bars | C18: Mean Bar | E18: Threshold Bar | G18: Loss Function
A19: =D7 -> 450 | B19: 0 | C19: =D11 -> 575 | D19: 0 | E19: =D9 -> 500 | F19: 0 | G19: =IF(D13="under",D10*ABS(H19-D9),0) -> 13125000 | H19: =D11-D8 -> 325
A20: =D7 -> 450 | B20: 0.1 | C20: =D11 -> 575 | D20: 0.1 | E20: =D9 -> 500 | F20: 0.15 | G20: 0 | H20: =D9 -> 500
A21: =D6 -> 700 | B21: 0.1 | G21: =IF(D13="over",D10*ABS(D9-H21),0) -> 0 | H21: =D11+D8 -> 825
A22: =D6 -> 700 | B22: 0

Sheet InfoValTriangle
A1: Example: Continuous Information Value Calculation Using a Triangular Distribution
A2: Instructions: As with the normal distribution, this spreadsheet can calculate Information value using a triangular distribution. The lower and upper bounds of this spreadsheet are "absolute" bounds. Unlike the 90% confidence interval, there is no chance the value can be outside of the stated bounds. It also takes a mode and a threshold for loss.
A7: Parameters
A8: Lower Bound | B8: 0.1
A9: Mode | B9: 0.4
A10: Upper Bound | B10: 1.1
A11: Threshold | B11: 0.9
A12: Loss Rate | B12: 1
A13: Mean | B13: =AVERAGE(B8:B10) -> 0.5333333333
A14: EVPI | B14: =B18 -> 0.00188069
A15: threshold P | B15: =IF(B11<=B9,IF(B11<=B13,B17*B19,(1-B19)*B17+D19),IF(B11<B13,(1-D21)*D19+B17,D19*D21)) -> 0
A16: X Increment | B16: =(B10-B8)/1000 -> 0.001
A17: Prob of left Side | B17: =(B9-B8)/(B10-B8) -> 0.3
A18: OL | B18: =SUM(E40:E1039) -> 0.00188069
A19: partial triangle P | B19: =IF(B11<B9,IF(B8<B11,((B11-B8)/(B9-B8))^2,0),1) -> 1
A21: Triangle
A22: =B8 -> 0.1 | B22: 0
A23: =B9 -> 0.4 | B23: =2/(A24-A22) -> 2
A24: =B10 -> 1.1 | B24: 0
A26: Threshold
A27: =B11 -> 0.9 | B27: 0
A28: =B11 -> 0.9 | B28: =B23 -> 2
A30: Mean
A31: =($B$8+$B$9+$B$10)/3 -> 0.5333333333 | B31: 0
A32: =($B$8+$B$9+$B$10)/3 -> 0.5333333333 | B32: =B23 -> 2
A38: X Value | B38: Probability | C38: Probability Increment | D38: OL | E38: EOL
A39: =B8 -> 0.1 | B39: =IF(A39<$B$9,(A39-$B$8)^2/(($B$10-$B$8)*($B$9-$B$8)),1-(($B$10-A39)^2)/($B$10-$B$8)*($B$10-$B$9)) -> 0
A40: =A39+B$16 -> 0.101 | B40: =IF(A40<$B$9,(A40-$B$8)^2/(($B$10-$B$8)*($B$9-$B$8)),1-(($B$10-A40)^2)/($B$10-$B$8)*($B$10-$B$9)) -> 3.333333333e-06 | C40: =B40-B39 -> 3.333333333e-06 | D40: =IF(B$8=B$10,0,IF(OR(AND(A40<=B$11,B$11<=B$13),AND(A40>B$11,B$11>B$13)),ABS(A40-B$11)*B$12,0)) -> 0 | E40: =C40*D40 -> 0
A41: 0.102 | B41: =IF(A41<$B$9,(A41-$B$8)^2/(($B$10-$B$8)*($B$9-$B$8)),1-(($B$10-A41)^2)/($B$10-$B$8)*($B$10-$B$9)) -> 1.333333333e-05 | C41: =B41-B40 -> 1e-05 | D41: 0 | E41: =C41*D41 -> 0
A42: 0.103 | B42: 3e-05 | C42: 1.666666667e-05 | D42: 0 | E42: =C42*D42 -> 0
A43: 0.104 | B43: 5.333333333e-05 | C43: 2.333333333e-05 | D43: 0 | E43: 0
A44: 0.105 | B44: 8.333333333e-05 | C44: 3e-05 | D44: 0 | E44: 0
A45: 0.106 | B45: 0.00012 | C45: 3.666666667e-05 | D45: 0 | E45: 0
A46: 0.107 | B46: 0.0001633333333 | C46: 4.333333333e-05 | D46: 0 | E46: 0
A47: 0.108 | B47: 0.0002133333333 | C47: 5e-05 | D47: 0 | E47: 0
A48: 0.109 | B48: 0.00027 | C48: 5.666666667e-05 | D48: 0 | E48: 0
A49: 0.11 | B49: 0.0003333333333 | C49: 6.333333333e-05 | D49: 0 | E49: 0
A50: 0.111 | B50: 0.0004033333333 | C50: 7e-05 | D50: 0 | E50: 0
A51: 0.112 | B51: 0.00048 | C51: 7.666666667e-05 | D51: 0 | E51: 0
A52: 0.113 | B52: 0.0005633333333 | C52: 8.333333333e-05 | D52: 0 | E52: 0
A53: 0.114 | B53: 0.0006533333333 | C53: 9e-05 | D53: 0 | E53: 0
A54: 0.115 | B54: 0.00075 | C54: 9.666666667e-05 | D54: 0 | E54: 0
A55: 0.116 | B55: 0.0008533333333 | C55: 0.0001033333333 | D55: 0 | E55: 0
A56: 0.117 | B56: 0.0009633333333 | C56: 0.00011 | D56: 0 | E56: 0
A57: 0.118 | B57: 0.00108 | C57: 0.0001166666667 | D57: 0 | E57: 0
A58: 0.119 | B58: 0.001203333333 | C58: 0.0001233333333 | D58: 0 | E58: 0
A59: 0.12 | B59: 0.001333333333 | C59: 0.00013 | D59: 0 | E59: 0
A60: 0.121 | B60: 0.00147 | C60: 0.0001366666667 | D60: 0 | E60: 0
A61: 0.122 | B61: 0.001613333333 | C61: 0.0001433333333 | D61: 0 | E61: 0
A62: 0.123 | B62: 0.001763333333 | C62: 0.00015 | D62: 0 | E62: 0
A63: 0.124 | B63: 0.00192 | C63: 0.0001566666667 | D63: 0 | E63: 0
A64: 0.125 | B64: 0.002083333333 | C64: 0.0001633333333 | D64: 0 | E64: 0
A65: 0.126 | B65: 0.002253333333 | C65: 0.00017 | D65: 0 | E65: 0
A66: 0.127 | B66: 0.00243 | C66: 0.0001766666667 | D66: 0 | E66: 0
A67: 0.128 | B67: 0.002613333333 | C67: 0.0001833333333 | D67: 0 | E67: 0
A68: 0.129 | B68: 0.002803333333 | C68: 0.00019 | D68: 0 | E68: 0
A69: 0.13 | B69: 0.003 | C69: 0.0001966666667 | D69: 0 | E69: 0
A70: 0.131 | B70: 0.003203333333 | C70: 0.0002033333333 | D70: 0 | E70: 0
A71: 0.132 | B71: 0.003413333333 | C71: 0.00021 | D71: 0 | E71: 0
A72: 0.133 | B72: 0.00363 | C72: 0.0002166666667 | D72: 0 | E72: 0
A73: 0.134 | B73: 0.003853333333 | C73: 0.0002233333333 | D73: 0 | E73: 0
A74: 0.135 | B74: 0.004083333333 | C74: 0.00023 | D74: 0 | E74: 0
A75: 0.136 | B75: 0.00432 | C75: 0.0002366666667 | D75: 0 | E75: 0
A76: 0.137 | B76: 0.004563333333 | C76: 0.0002433333333 | D76: 0 | E76: 0
A77: 0.138 | B77: 0.004813333333 | C77: 0.00025 | D77: 0 | E77: 0
A78: 0.139 | B78: 0.00507 | C78: 0.0002566666667 | D78: 0 | E78: 0
A79: 0.14 | B79: 0.005333333333 | C79: 0.0002633333333 | D79: 0 | E79: 0
A80: 0.141 | B80: 0.005603333333 | C80: 0.00027 | D80: 0 | E80: 0
A81: 0.142 | B81: 0.00588 | C81: 0.0002766666667 | D81: 0 | E81: 0
A82: 0.143 | B82: 0.006163333333 | C82: 0.0002833333333 | D82: 0 | E82: 0
A83: 0.144 | B83: 0.006453333333 | C83: 0.00029 | D83: 0 | E83: 0
A84: 0.145 | B84: 0.00675 | C84: 0.0002966666667 | D84: 0 | E84: 0
A85: 0.146 | B85: 0.007053333333 | C85: 0.0003033333333 | D85: 0 | E85: 0
A86: 0.147 | B86: 0.007363333333 | C86: 0.00031 | D86: 0 | E86: 0
A87: 0.148 | B87: 0.00768 | C87: 0.0003166666667 | D87: 0 | E87: 0
A88: 0.149 | B88: 0.008003333333 | C88: 0.0003233333333 | D88: 0 | E88: 0
A89: 0.15 | B89: 0.008333333333 | C89: 0.00033 | D89: 0 | E89: 0
A90: 0.151 | B90: 0.00867 | C90: 0.0003366666667 | D90: 0 | E90: 0
A91: 0.152 | B91: 0.009013333333 | C91: 0.0003433333333 | D91: 0 | E91: 0
A92: 0.153 | B92: 0.009363333333 | C92: 0.00035 | D92: 0 | E92: 0
A93: 0.154 | B93: 0.00972 | C93: 0.0003566666667 | D93: 0 | E93: 0
A94: 0.155 | B94: 0.01008333333 | C94: 0.0003633333333 | D94: 0 | E94: 0
A95: 0.156 | B95: 0.01045333333 | C95: 0.00037 | D95: 0 | E95: 0
A96: 0.157 | B96: 0.01083 | C96: 0.0003766666667 | D96: 0 | E96: 0
A97: 0.158 | B97: 0.01121333333 | C97: 0.0003833333333 | D97: 0 | E97: 0
A98: 0.159 | B98: 0.01160333333 | C98: 0.00039 | D98: 0 | E98: 0
A99: 0.16 | B99: 0.012 | C99: 0.0003966666667 | D99: 0 | E99: 0
A100: 0.161 | B100: 0.01240333333 | C100: 0.0004033333333 | D100: 0 | E100: 0
A101: 0.162 | B101: 0.01281333333 | C101: 0.00041 | D101: 0 | E101: 0
A102: 0.163 | B102: 0.01323 | C102: 0.0004166666667 | D102: 0 | E102: 0
A103: 0.164 | B103: 0.01365333333 | C103: 0.0004233333333 | D103: 0 | E103: 0
A104: =A103+B$16 -> 0.165 | B104: =IF(A104<$B$9,(A104-$B$8)^2/(($B$10-$B$8)*($B$9-$B$8)),1-(($B$10-A104)^2)/($B$10-$B$8)*($B$10-$B$9)) -> 0.01408333333 | C104: 0.00043 | D104: =IF(B$8=B$10,0,IF(OR(AND(A104<=B$11,B$11<=B$13),AND(A104>B$11,B$11>B$13)),ABS(A104-B$11)*B$12,0)) -> 0 | E104: 0
A105: 0.166 | B105: 0.01452 | C105: =B105-B104 -> 0.0004366666667 | D105: 0 | E105: =C105*D105 -> 0
A106: 0.167 | B106: 0.01496333333 | C106: 0.0004433333333 | D106: 0 | E106: 0
A107: 0.168 | B107: 0.01541333333 | C107: 0.00045 | D107: 0 | E107: 0
A108: 0.169 | B108: 0.01587 | C108: 0.0004566666667 | D108: 0 | E108: 0
A109: 0.17 | B109: 0.01633333333 | C109: 0.0004633333333 | D109: 0 | E109: 0
A110: 0.171 | B110: 0.01680333333 | C110: 0.00047 | D110: 0 | E110: 0
A111: 0.172 | B111: 0.01728 | C111: 0.0004766666667 | D111: 0 | E111: 0
A112: 0.173 | B112: 0.01776333333 | C112: 0.0004833333333 | D112: 0 | E112: 0
A113: 0.174 | B113: 0.01825333333 | C113: 0.00049 | D113: 0 | E113: 0
A114: 0.175 | B114: 0.01875 | C114: 0.0004966666667 | D114: 0 | E114: 0
A115: 0.176 | B115: 0.01925333333 | C115: 0.0005033333333 | D115: 0 | E115: 0
A116: 0.177 | B116: 0.01976333333 | C116: 0.00051 | D116: 0 | E116: 0
A117: 0.178 | B117: 0.02028 | C117: 0.0005166666667 | D117: 0 | E117: 0
A118: 0.179 | B118: 0.02080333333 | C118: 0.0005233333333 | D118: 0 | E118: 0
A119: 0.18 | B119: 0.02133333333 | C119: 0.00053 | D119: 0 | E119: 0
A120: 0.181 | B120: 0.02187 | C120: 0.0005366666667 | D120: 0 | E120: 0
A121: 0.182 | B121: 0.02241333333 | C121: 0.0005433333333 | D121: 0 | E121: 0
A122: 0.183 | B122: 0.02296333333 | C122: 0.00055 | D122: 0 | E122: 0
A123: 0.184 | B123: 0.02352 | C123: 0.0005566666667 | D123: 0 | E123: 0
A124: 0.185 | B124: 0.02408333333 | C124: 0.0005633333333 | D124: 0 | E124: 0
A125: 0.186 | B125: 0.02465333333 | C125: 0.00057 | D125: 0 | E125: 0
A126: 0.187 | B126: 0.02523 | C126: 0.0005766666667 | D126: 0 | E126: 0
A127: 0.188 | B127: 0.02581333333 | C127: 0.0005833333333 | D127: 0 | E127: 0
A128: 0.189 | B128: 0.02640333333 | C128: 0.00059 | D128: 0 | E128: 0
A129: 0.19 | B129: 0.027 | C129: 0.0005966666667 | D129: 0 | E129: 0
A130: 0.191 | B130: 0.02760333333 | C130: 0.0006033333333 | D130: 0 | E130: 0
A131: 0.192 | B131: 0.02821333333 | C131: 0.00061 | D131: 0 | E131: 0
A132: 0.193 | B132: 0.02883 | C132: 0.0006166666667 | D132: 0 | E132: 0
A133: 0.194 | B133: 0.02945333333 | C133: 0.0006233333333 | D133: 0 | E133: 0
A134: 0.195 | B134: 0.03008333333 | C134: 0.00063 | D134: 0 | E134: 0
A135: 0.196 | B135: 0.03072 | C135: 0.0006366666667 | D135: 0 | E135: 0
A136: 0.197 | B136: 0.03136333333 | C136: 0.0006433333333 | D136: 0 | E136: 0
A137: 0.198 | B137: 0.03201333333 | C137: 0.00065 | D137: 0 | E137: 0
A138: 0.199 | B138: 0.03267 | C138: 0.0006566666667 | D138: 0 | E138: 0
A139: 0.2 | B139: 0.03333333333 | C139: 0.0006633333333 | D139: 0 | E139: 0
A140: 0.201 | B140: 0.03400333333 | C140: 0.00067 | D140: 0 | E140: 0
A141: 0.202 | B141: 0.03468 | C141: 0.0006766666667 | D141: 0 | E141: 0
A142: 0.203 | B142: 0.03536333333 | C142: 0.0006833333333 | D142: 0 | E142: 0
A143: 0.204 | B143: 0.03605333333 | C143: 0.00069 | D143: 0 | E143: 0
A144: 0.205 | B144: 0.03675 | C144: 0.0006966666667 | D144: 0 | E144: 0
A145: 0.206 | B145: 0.03745333333 | C145: 0.0007033333333 | D145: 0 | E145: 0
A146: 0.207 | B146: 0.03816333333 | C146: 0.00071 | D146: 0 | E146: 0
A147: 0.208 | B147: 0.03888 | C147: 0.0007166666667 | D147: 0 | E147: 0
A148: 0.209 | B148: 0.03960333333 | C148: 0.0007233333333 | D148: 0 | E148: 0
A149: 0.21 | B149: 0.04033333333 | C149: 0.00073 | D149: 0 | E149: 0
A150: 0.211 | B150: 0.04107 | C150: 0.0007366666667 | D150: 0 | E150: 0
A151: 0.212 | B151: 0.04181333333 | C151: 0.0007433333333 | D151: 0 | E151: 0
A152: 0.213 | B152: 0.04256333333 | C152: 0.00075 | D152: 0 | E152: 0
A153: 0.214 | B153: 0.04332 | C153: 0.0007566666667 | D153: 0 | E153: 0
A154: 0.215 | B154: 0.04408333333 | C154: 0.0007633333333 | D154: 0 | E154: 0
A155: 0.216 | B155: 0.04485333333 | C155: 0.00077 | D155: 0 | E155: 0
A156: 0.217 | B156: 0.04563 | C156: 0.0007766666667 | D156: 0 | E156: 0
A157: 0.218 | B157: 0.04641333333 | C157: 0.0007833333333 | D157: 0 | E157: 0
A158: 0.219 | B158: 0.04720333333 | C158: 0.00079 | D158: 0 | E158: 0
A159: 0.22 | B159: 0.048 | C159: 0.0007966666667 | D159: 0 | E159: 0
A160: 0.221 | B160: 0.04880333333 | C160: 0.0008033333333 | D160: 0 | E160: 0
A161: 0.222 | B161: 0.04961333333 | C161: 0.00081 | D161: 0 | E161: 0
A162: 0.223 | B162: 0.05043 | C162: 0.0008166666667 | D162: 0 | E162: 0
A163: 0.224 | B163: 0.05125333333 | C163: 0.0008233333333 | D163: 0 | E163: 0
A164: 0.225 | B164: 0.05208333333 | C164: 0.00083 | D164: 0 | E164: 0
A165: 0.226 | B165: 0.05292 | C165: 0.0008366666667 | D165: 0 | E165: 0
A166: 0.227 | B166: 0.05376333333 | C166: 0.0008433333333 | D166: 0 | E166: 0
A167: 0.228 | B167: 0.05461333333 | C167: 0.00085 | D167: 0 | E167: 0
A168: =A167+B$16 -> 0.229 | B168: =IF(A168<$B$9,(A168-$B$8)^2/(($B$10-$B$8)*($B$9-$B$8)),1-(($B$10-A168)^2)/($B$10-$B$8)*($B$10-$B$9)) -> 0.05547 | C168: 0.0008566666667 | D168: =IF(B$8=B$10,0,IF(OR(AND(A168<=B$11,B$11<=B$13),AND(A168>B$11,B$11>B$13)),ABS(A168-B$11)*B$12,0)) -> 0 | E168: 0
A169: 0.23 | B169: 0.05633333333 | C169: =B169-B168 -> 0.0008633333333 | D169: 0 | E169: =C169*D169 -> 0
A170: 0.231 | B170: 0.05720333333 | C170: 0.00087 | D170: 0 | E170: 0
A171: 0.232 | B171: 0.05808 | C171: 0.0008766666667 | D171: 0 | E171: 0
A172: 0.233 | B172: 0.05896333333 | C172: 0.0008833333333 | D172: 0 | E172: 0
A173: 0.234 | B173: 0.05985333333 | C173: 0.00089 | D173: 0 | E173: 0
A174: 0.235 | B174: 0.06075 | C174: 0.0008966666667 | D174: 0 | E174: 0
A175: 0.236 | B175: 0.06165333333 | C175: 0.0009033333333 | D175: 0 | E175: 0
A176: 0.237 | B176: 0.06256333333 | C176: 0.00091 | D176: 0 | E176: 0
A177: 0.238 | B177: 0.06348 | C177: 0.0009166666667 | D177: 0 | E177: 0
A178: 0.239 | B178: 0.06440333333 | C178: 0.0009233333333 | D178: 0 | E178: 0
A179: 0.24 | B179: 0.06533333333 | C179: 0.00093 | D179: 0 | E179: 0
A180: 0.241 | B180: 0.06627 | C180: 0.0009366666667 | D180: 0 | E180: 0
A181: 0.242 | B181: 0.06721333333 | C181: 0.0009433333333 | D181: 0 | E181: 0
A182: 0.243 | B182: 0.06816333333 | C182: 0.00095 | D182: 0 | E182: 0
A183: 0.244 | B183: 0.06912 | C183: 0.0009566666667 | D183: 0 | E183: 0
A184: 0.245 | B184: 0.07008333333 | C184: 0.0009633333333 | D184: 0 | E184: 0
A185: 0.246 | B185: 0.07105333333 | C185: 0.00097 | D185: 0 | E185: 0
A186: 0.247 | B186: 0.07203 | C186: 0.0009766666667 | D186: 0 | E186: 0
A187: 0.248 | B187: 0.07301333333 | C187: 0.0009833333333 | D187: 0 | E187: 0
A188: 0.249 | B188: 0.07400333333 | C188: 0.00099 | D188: 0 | E188: 0
A189: 0.25 | B189: 0.075 | C189: 0.0009966666667 | D189: 0 | E189: 0
A190: 0.251 | B190: 0.07600333333 | C190: 0.001003333333 | D190: 0 | E190: 0
A191: 0.252 | B191: 0.07701333333 | C191: 0.00101 | D191: 0 | E191: 0
A192: 0.253 | B192: 0.07803 | C192: 0.001016666667 | D192: 0 | E192: 0
A193: 0.254 | B193: 0.07905333333 | C193: 0.001023333333 | D193: 0 | E193: 0
A194: 0.255 | B194: 0.08008333333 | C194: 0.00103 | D194: 0 | E194: 0
A195: 0.256 | B195: 0.08112 | C195: 0.001036666667 | D195: 0 | E195: 0
A196: 0.257 | B196: 0.08216333333 | C196: 0.001043333333 | D196: 0 | E196: 0
A197: 0.258 | B197: 0.08321333333 | C197: 0.00105 | D197: 0 | E197: 0
A198: 0.259 | B198: 0.08427 | C198: 0.001056666667 | D198: 0 | E198: 0
A199: 0.26 | B199: 0.08533333333 | C199: 0.001063333333 | D199: 0 | E199: 0
A200: 0.261 | B200: 0.08640333333 | C200: 0.00107 | D200: 0 | E200: 0
A201: 0.262 | B201: 0.08748 | C201: 0.001076666667 | D201: 0 | E201: 0
A202: 0.263 | B202: 0.08856333333 | C202: 0.001083333333 | D202: 0 | E202: 0
A203: 0.264 | B203: 0.08965333333 | C203: 0.00109 | D203: 0 | E203: 0
A204: 0.265 | B204: 0.09075 | C204: 0.001096666667 | D204: 0 | E204: 0
A205: 0.266 | B205: 0.09185333333 | C205: 0.001103333333 | D205: 0 | E205: 0
A206: 0.267 | B206: 0.09296333333 | C206: 0.00111 | D206: 0 | E206: 0
A207: 0.268 | B207: 0.09408 | C207: 0.001116666667 | D207: 0 | E207: 0
A208: 0.269 | B208: 0.09520333333 | C208: 0.001123333333 | D208: 0 | E208: 0
A209: 0.27 | B209: 0.09633333333 | C209: 0.00113 | D209: 0 | E209: 0
A210: 0.271 | B210: 0.09747 | C210: 0.001136666667 | D210: 0 | E210: 0
A211: 0.272 | B211: 0.09861333333 | C211: 0.001143333333 | D211: 0 | E211: 0
A212: 0.273 | B212: 0.09976333333 | C212: 0.00115 | D212: 0 | E212: 0
... 827 more rows

Sheet Simple MC
A1: Worksheet: Simple Monte Carlo | F1: More calculations to the right. Un-collapse columns. >>> | U1: Excel What-If Data Table to Compute Monte Carlo Simulation
A2: Instructions: This worksheet provides an example of a simple Monte Carlo Model. In this example we model a project that would reduce potential labor costs for an upfront investment. Describe the Variables you want to use in your simulation here. Each distribution has a "Shape" (aka, probability distribution) described in the table below. Variables declared on this page can be used as random values on the Decision Model Summary table. Always recalculate by pressing the "Recalculate" button in cell I6. after making changes. Detailed calculations are grouped under hidden columns. Click on "+" signs in column headings to ungroup hidden columns. Below one will also find the model results as well as inputs for risk tolerance.
AMK5: Threshold Approximation for continuous variables
A6: Scenario # | B6: =ScenarioNum -> 365 | F6: Scenario NPV | H6: =IFERROR(NPV(CostM,C26:H26), "Check Variable Input") -> 4832.676671 | U6: Trial ID: | V6: 365 | X6: 1 | Y6: 2 | Z6: 3 | AA6: 4 | AB6: 5 | AC6: 6 | AD6: 7 | AE6: 8 | AF6: 9 | AG6: 10 | AH6: 11 | AI6: 12 | AJ6: 13 | AK6: 14 | AL6: 15 | AM6: 16 | AN6: 17 | AO6: 18 | AP6: 19 | AQ6: 20 | AR6: 21 | AS6: 22 | AT6: 23 | AU6: 24 | AV6: 25 | AW6: 26 | AX6: 27 | AY6: 28 | AZ6: 29 | BA6: 30 | BB6: 31 | BC6: 32 | BD6: 33 | BE6: 34 | BF6: 35 | BG6: 36 | BH6: 37 | BI6: 38 | BJ6: 39 | BK6: 40 | BL6: 41 | BM6: 42 | BN6: 43 | BO6: 44 | BP6: 45 | BQ6: 46 | BR6: 47 | BS6: 48 | BT6: 49 | BU6: 50 | BV6: 51 | BW6: 52 | BX6: 53 | BY6: 54 | BZ6: 55 | CA6: 56 | CB6: 57 | CC6: 58 | CD6: 59 | CE6: 60 | CF6: 61 | CG6: 62 | CH6: 63 | CI6: 64 | CJ6: 65 | CK6: 66 | CL6: 67 | CM6: 68 | CN6: 69 | CO6: 70 | CP6: 71 | CQ6: 72 | CR6: 73 | CS6: 74 | CT6: 75 | CU6: 76 | CV6: 77 | CW6: 78 | CX6: 79 | CY6: 80 | CZ6: 81 | DA6: 82 | DB6: 83 | DC6: 84 | DD6: 85 | DE6: 86 | DF6: 87 | DG6: 88 | DH6: 89 | DI6: 90 | DJ6: 91 | DK6: 92 | DL6: 93 | DM6: 94 | DN6: 95 | DO6: 96 | DP6: 97 | DQ6: 98 | DR6: 99 | DS6: 100 | DT6: 101 | DU6: 102 | DV6: 103 | DW6: 104 | DX6: 105 | DY6: 106 | DZ6: 107 | EA6: 108 | EB6: 109 | EC6: 110 | ED6: 111 | EE6: 112 | EF6: 113 | EG6: 114 | EH6: 115 | EI6: 116 | EJ6: 117 | EK6: 118 | EL6: 119 | EM6: 120 | EN6: 121 | EO6: 122 | EP6: 123 | EQ6: 124 | ER6: 125 | ES6: 126 | ET6: 127 | EU6: 128 | EV6: 129 | EW6: 130 | EX6: 131 | EY6: 132 | EZ6: 133 | FA6: 134 | FB6: 135 | FC6: 136 | FD6: 137 | FE6: 138 | FF6: 139 | FG6: 140 | FH6: 141 | FI6: 142 | FJ6: 143 | FK6: 144 | FL6: 145 | FM6: 146 | FN6: 147 | FO6: 148 | FP6: 149 | FQ6: 150 | FR6: 151 | FS6: 152 | FT6: 153 | FU6: 154 | FV6: 155 | FW6: 156 | FX6: 157 | FY6: 158 | FZ6: 159 | GA6: 160 | GB6: 161 | GC6: 162 | GD6: 163 | GE6: 164 | GF6: 165 | GG6: 166 | GH6: 167 | GI6: 168 | GJ6: 169 | GK6: 170 | GL6: 171 | GM6: 172 | GN6: 173 | GO6: 174 | GP6: 175 | GQ6: 176 | GR6: 177 | GS6: 178 | GT6: 179 | GU6: 180 | GV6: 181 | GW6: 182 | GX6: 183 | GY6: 184 | GZ6: 185 | HA6: 186 | HB6: 187 | HC6: 188 | HD6: 189 | HE6: 190 | HF6: 191 | HG6: 192 | HH6: 193 | HI6: 194 | HJ6: 195 | HK6: 196 | HL6: 197 | HM6: 198 | HN6: 199 | HO6: 200 | HP6: 201 | HQ6: 202 | HR6: 203 | HS6: 204 | HT6: 205 | HU6: 206 | HV6: 207 | HW6: 208 | HX6: 209 | HY6: 210 | HZ6: 211 | IA6: 212 | IB6: 213 | IC6: 214 | ID6: 215 | IE6: 216 | IF6: 217 | IG6: 218 | IH6: 219 | II6: 220 | IJ6: 221 | IK6: 222 | IL6: 223 | IM6: 224 | IN6: 225 | IO6: 226 | IP6: 227 | IQ6: 228 | IR6: 229 | IS6: 230 | IT6: 231 | IU6: 232 | IV6: 233 | IW6: 234 | IX6: 235 | IY6: 236 | IZ6: 237 | JA6: 238 | JB6: 239 | JC6: 240 | JD6: 241 | JE6: 242 | JF6: 243 | JG6: 244 | JH6: 245 | JI6: 246 | JJ6: 247 | JK6: 248 | JL6: 249 | JM6: 250 | JN6: 251 | JO6: 252 | JP6: 253 | JQ6: 254 | JR6: 255 | JS6: 256 | JT6: 257 | JU6: 258 | JV6: 259 | JW6: 260 | JX6: 261 | JY6: 262 | JZ6: 263 | KA6: 264 | KB6: 265 | KC6: 266 | KD6: 267 | KE6: 268 | KF6: 269 | KG6: 270 | KH6: 271 | KI6: 272 | KJ6: 273 | KK6: 274 | KL6: 275 | KM6: 276 | KN6: 277 | KO6: 278 | KP6: 279 | KQ6: 280 | KR6: 281 | KS6: 282 | KT6: 283 | KU6: 284 | KV6: 285 | KW6: 286 | KX6: 287 | KY6: 288 | KZ6: 289 | LA6: 290 | LB6: 291 | LC6: 292 | LD6: 293 | LE6: 294 | LF6: 295 | LG6: 296 | LH6: 297 | LI6: 298 | LJ6: 299 | LK6: 300 | LL6: 301 | LM6: 302 | LN6: 303 | LO6: 304 | LP6: 305 | LQ6: 306 | LR6: 307 | LS6: 308 | LT6: 309 | LU6: 310 | LV6: 311 | LW6: 312 | LX6: 313 | LY6: 314 | LZ6: 315 | MA6: 316 | MB6: 317 | MC6: 318 | MD6: 319 | ME6: 320 | MF6: 321 | MG6: 322 | MH6: 323 | MI6: 324 | MJ6: 325 | MK6: 326 | ML6: 327 | MM6: 328 | MN6: 329 | MO6: 330 | MP6: 331 | MQ6: 332 | MR6: 333 | MS6: 334 | MT6: 335 | MU6: 336 | MV6: 337 | MW6: 338 | MX6: 339 | MY6: 340 | MZ6: 341 | NA6: 342 | NB6: 343 | NC6: 344 | ND6: 345 | NE6: 346 | NF6: 347 | NG6: 348 | NH6: 349 | NI6: 350 | NJ6: 351 | NK6: 352 | NL6: 353 | NM6: 354 | NN6: 355 | NO6: 356 | NP6: 357 | NQ6: 358 | NR6: 359 | NS6: 360 | NT6: 361 | NU6: 362 | NV6: 363 | NW6: 364 | NX6: 365 | NY6: 366 | NZ6: 367 | OA6: 368 | OB6: 369 | OC6: 370 | OD6: 371 | OE6: 372 | OF6: 373 | OG6: 374 | OH6: 375 | OI6: 376 | OJ6: 377 | OK6: 378 | OL6: 379 | OM6: 380 | ON6: 381 | OO6: 382 | OP6: 383 | OQ6: 384 | OR6: 385 | OS6: 386 | OT6: 387 | OU6: 388 | OV6: 389 | OW6: 390 | OX6: 391 | OY6: 392 | OZ6: 393 | PA6: 394 | PB6: 395 | PC6: 396 | PD6: 397 | PE6: 398 | PF6: 399 | PG6: 400 | PH6: 401 | PI6: 402 | PJ6: 403 | PK6: 404 | PL6: 405 | PM6: 406 | PN6: 407 | PO6: 408 | PP6: 409 | PQ6: 410 | PR6: 411 | PS6: 412 | PT6: 413 | PU6: 414 | PV6: 415 | PW6: 416 | PX6: 417 | PY6: 418 | PZ6: 419 | QA6: 420 | QB6: 421 | QC6: 422 | QD6: 423 | QE6: 424 | QF6: 425 | QG6: 426 | QH6: 427 | QI6: 428 | QJ6: 429 | QK6: 430 | QL6: 431 | QM6: 432 | QN6: 433 | QO6: 434 | QP6: 435 | QQ6: 436 | QR6: 437 | QS6: 438 | QT6: 439 | QU6: 440 | QV6: 441 | QW6: 442 | QX6: 443 | QY6: 444 | QZ6: 445 | RA6: 446 | RB6: 447 | RC6: 448 | RD6: 449 | RE6: 450 | RF6: 451 | RG6: 452 | RH6: 453 | RI6: 454 | RJ6: 455 | RK6: 456 | RL6: 457 | RM6: 458 | RN6: 459 | RO6: 460 | RP6: 461 | RQ6: 462 | RR6: 463 | RS6: 464 | RT6: 465 | RU6: 466 | RV6: 467 | RW6: 468 | RX6: 469 | RY6: 470 | RZ6: 471 | SA6: 472 | SB6: 473 | SC6: 474 | SD6: 475 | SE6: 476 | SF6: 477 | SG6: 478 | SH6: 479 | SI6: 480 | SJ6: 481 | SK6: 482 | SL6: 483 | SM6: 484 | SN6: 485 | SO6: 486 | SP6: 487 | SQ6: 488 | SR6: 489 | SS6: 490 | ST6: 491 | SU6: 492 | SV6: 493 | SW6: 494 | SX6: 495 | SY6: 496 | SZ6: 497 | TA6: 498 | TB6: 499 | TC6: 500 | TD6: 501 | TE6: 502 | TF6: 503 | TG6: 504 | TH6: 505 | TI6: 506 | TJ6: 507 | TK6: 508 | TL6: 509 | TM6: 510 | TN6: 511 | TO6: 512 | TP6: 513 | TQ6: 514 | TR6: 515 | TS6: 516 | TT6: 517 | TU6: 518 | TV6: 519 | TW6: 520 | TX6: 521 | TY6: 522 | TZ6: 523 | UA6: 524 | UB6: 525 | UC6: 526 | UD6: 527 | UE6: 528 | UF6: 529 | UG6: 530 | UH6: 531 | UI6: 532 | UJ6: 533 | UK6: 534 | UL6: 535 | UM6: 536 | UN6: 537 | UO6: 538 | UP6: 539 | UQ6: 540 | UR6: 541 | US6: 542 | UT6: 543 | UU6: 544 | UV6: 545 | UW6: 546 | UX6: 547 | UY6: 548 | UZ6: 549 | VA6: 550 | VB6: 551 | VC6: 552 | VD6: 553 | VE6: 554 | VF6: 555 | VG6: 556 | VH6: 557 | VI6: 558 | VJ6: 559 | VK6: 560 | VL6: 561 | VM6: 562 | VN6: 563 | VO6: 564 | VP6: 565 | VQ6: 566 | VR6: 567 | VS6: 568 | VT6: 569 | VU6: 570 | VV6: 571 | VW6: 572 | VX6: 573 | VY6: 574 | VZ6: 575 | WA6: 576 | WB6: 577 | WC6: 578 | WD6: 579 | WE6: 580 | WF6: 581 | WG6: 582 | WH6: 583 | WI6: 584 | WJ6: 585 | WK6: 586 | WL6: 587 | WM6: 588 | WN6: 589 | WO6: 590 | WP6: 591 | WQ6: 592 | WR6: 593 | WS6: 594 | WT6: 595 | WU6: 596 | WV6: 597 | WW6: 598 | WX6: 599 | WY6: 600 | WZ6: 601 | XA6: 602 | XB6: 603 | XC6: 604 | XD6: 605 | XE6: 606 | XF6: 607 | XG6: 608 | XH6: 609 | XI6: 610 | XJ6: 611 | XK6: 612 | XL6: 613 | XM6: 614 | XN6: 615 | XO6: 616 | XP6: 617 | XQ6: 618 | XR6: 619 | XS6: 620 | XT6: 621 | XU6: 622 | XV6: 623 | XW6: 624 | XX6: 625 | XY6: 626 | XZ6: 627 | YA6: 628 | YB6: 629 | YC6: 630 | YD6: 631 | YE6: 632 | YF6: 633 | YG6: 634 | YH6: 635 | YI6: 636 | YJ6: 637 | YK6: 638 | YL6: 639 | YM6: 640 | YN6: 641 | YO6: 642 | YP6: 643 | YQ6: 644 | YR6: 645 | YS6: 646 | YT6: 647 | YU6: 648 | YV6: 649 | YW6: 650 | YX6: 651 | YY6: 652 | YZ6: 653 | ZA6: 654 | ZB6: 655 | ZC6: 656 | ZD6: 657 | ZE6: 658 | ZF6: 659 | ZG6: 660 | ZH6: 661 | ZI6: 662 | ZJ6: 663 | ZK6: 664 | ZL6: 665 | ZM6: 666 | ZN6: 667 | ZO6: 668 | ZP6: 669 | ZQ6: 670 | ZR6: 671 | ZS6: 672 | ZT6: 673 | ZU6: 674 | ZV6: 675 | ZW6: 676 | ZX6: 677 | ZY6: 678 | ZZ6: 679 | AAA6: 680 | AAB6: 681 | AAC6: 682 | AAD6: 683 | AAE6: 684 | AAF6: 685 | AAG6: 686 | AAH6: 687 | AAI6: 688 | AAJ6: 689 | AAK6: 690 | AAL6: 691 | AAM6: 692 | AAN6: 693 | AAO6: 694 | AAP6: 695 | AAQ6: 696 | AAR6: 697 | AAS6: 698 | AAT6: 699 | AAU6: 700 | AAV6: 701 | AAW6: 702 | AAX6: 703 | AAY6: 704 | AAZ6: 705 | ABA6: 706 | ABB6: 707 | ABC6: 708 | ABD6: 709 | ABE6: 710 | ABF6: 711 | ABG6: 712 | ABH6: 713 | ABI6: 714 | ABJ6: 715 | ABK6: 716 | ABL6: 717 | ABM6: 718 | ABN6: 719 | ABO6: 720 | ABP6: 721 | ABQ6: 722 | ABR6: 723 | ABS6: 724 | ABT6: 725 | ABU6: 726 | ABV6: 727 | ABW6: 728 | ABX6: 729 | ABY6: 730 | ABZ6: 731 | ACA6: 732 | ACB6: 733 | ACC6: 734 | ACD6: 735 | ACE6: 736 | ACF6: 737 | ACG6: 738 | ACH6: 739 | ACI6: 740 | ACJ6: 741 | ACK6: 742 | ACL6: 743 | ACM6: 744 | ACN6: 745 | ACO6: 746 | ACP6: 747 | ACQ6: 748 | ACR6: 749 | ACS6: 750 | ACT6: 751 | ACU6: 752 | ACV6: 753 | ACW6: 754 | ACX6: 755 | ACY6: 756 | ACZ6: 757 | ADA6: 758 | ADB6: 759 | ADC6: 760 | ADD6: 761 | ADE6: 762 | ADF6: 763 | ADG6: 764 | ADH6: 765 | ADI6: 766 | ADJ6: 767 | ADK6: 768 | ADL6: 769 | ADM6: 770 | ADN6: 771 | ADO6: 772 | ADP6: 773 | ADQ6: 774 | ADR6: 775 | ADS6: 776 | ADT6: 777 | ADU6: 778 | ADV6: 779 | ADW6: 780 | ADX6: 781 | ADY6: 782 | ADZ6: 783 | AEA6: 784 | AEB6: 785 | AEC6: 786 | AED6: 787 | AEE6: 788 | AEF6: 789 | AEG6: 790 | AEH6: 791 | AEI6: 792 | AEJ6: 793 | AEK6: 794 | AEL6: 795 | AEM6: 796 | AEN6: 797 | AEO6: 798 | AEP6: 799 | AEQ6: 800 | AER6: 801 | AES6: 802 | AET6: 803 | AEU6: 804 | AEV6: 805 | AEW6: 806 | AEX6: 807 | AEY6: 808 | AEZ6: 809 | AFA6: 810 | AFB6: 811 | AFC6: 812 | AFD6: 813 | AFE6: 814 | AFF6: 815 | AFG6: 816 | AFH6: 817 | AFI6: 818 | AFJ6: 819 | AFK6: 820 | AFL6: 821 | AFM6: 822 | AFN6: 823 | AFO6: 824 | AFP6: 825 | AFQ6: 826 | AFR6: 827 | AFS6: 828 | AFT6: 829 | AFU6: 830 | AFV6: 831 | AFW6: 832 | AFX6: 833 | AFY6: 834 | AFZ6: 835 | AGA6: 836 | AGB6: 837 | AGC6: 838 | AGD6: 839 | AGE6: 840 | AGF6: 841 | AGG6: 842 | AGH6: 843 | AGI6: 844 | AGJ6: 845 | AGK6: 846 | AGL6: 847 | AGM6: 848 | AGN6: 849 | AGO6: 850 | AGP6: 851 | AGQ6: 852 | AGR6: 853 | AGS6: 854 | AGT6: 855 | AGU6: 856 | AGV6: 857 | AGW6: 858 | AGX6: 859 | AGY6: 860 | AGZ6: 861 | AHA6: 862 | AHB6: 863 | AHC6: 864 | AHD6: 865 | AHE6: 866 | AHF6: 867 | AHG6: 868 | AHH6: 869 | AHI6: 870 | AHJ6: 871 | AHK6: 872 | AHL6: 873 | AHM6: 874 | AHN6: 875 | AHO6: 876 | AHP6: 877 | AHQ6: 878 | AHR6: 879 | AHS6: 880 | AHT6: 881 | AHU6: 882 | AHV6: 883 | AHW6: 884 | AHX6: 885 | AHY6: 886 | AHZ6: 887 | AIA6: 888 | AIB6: 889 | AIC6: 890 | AID6: 891 | AIE6: 892 | AIF6: 893 | AIG6: 894 | AIH6: 895 | AII6: 896 | AIJ6: 897 | AIK6: 898 | AIL6: 899 | AIM6: 900 | AIN6: 901 | AIO6: 902 | AIP6: 903 | AIQ6: 904 | AIR6: 905 | AIS6: 906 | AIT6: 907 | AIU6: 908 | AIV6: 909 | AIW6: 910 | AIX6: 911 | AIY6: 912 | AIZ6: 913 | AJA6: 914 | AJB6: 915 | AJC6: 916 | AJD6: 917 | AJE6: 918 | AJF6: 919 | AJG6: 920 | AJH6: 921 | AJI6: 922 | AJJ6: 923 | AJK6: 924 | AJL6: 925 | AJM6: 926 | AJN6: 927 | AJO6: 928 | AJP6: 929 | AJQ6: 930 | AJR6: 931 | AJS6: 932 | AJT6: 933 | AJU6: 934 | AJV6: 935 | AJW6: 936 | AJX6: 937 | AJY6: 938 | AJZ6: 939 | AKA6: 940 | AKB6: 941 | AKC6: 942 | AKD6: 943 | AKE6: 944 | AKF6: 945 | AKG6: 946 | AKH6: 947 | AKI6: 948 | AKJ6: 949 | AKK6: 950 | AKL6: 951 | AKM6: 952 | AKN6: 953 | AKO6: 954 | AKP6: 955 | AKQ6: 956 | AKR6: 957 | AKS6: 958 | AKT6: 959 | AKU6: 960 | AKV6: 961 | AKW6: 962 | AKX6: 963 | AKY6: 964 | AKZ6: 965 | ALA6: 966 | ALB6: 967 | ALC6: 968 | ALD6: 969 | ALE6: 970 | ALF6: 971 | ALG6: 972 | ALH6: 973 | ALI6: 974 | ALJ6: 975 | ALK6: 976 | ALL6: 977 | ALM6: 978 | ALN6: 979 | ALO6: 980 | ALP6: 981 | ALQ6: 982 | ALR6: 983 | ALS6: 984 | ALT6: 985 | ALU6: 986 | ALV6: 987 | ALW6: 988 | ALX6: 989 | ALY6: 990 | ALZ6: 991 | AMA6: 992 | AMB6: 993 | AMC6: 994 | AMD6: 995 | AME6: 996 | AMF6: 997 | AMG6: 998 | AMH6: 999 | AMI6: 1000 | AMK6: Clustering Variables by Nth size | ANF6: Average NPV by variable cluster | ANY6: Selection of nearest points and forecast
A7: Variable Summary | V7: NPV | W7: =H6 -> 4832.676671 | X7: 43.37813526 | Y7: -2953.118128 | Z7: 1581.510267 | AA7: 10860.31905 | AB7: 5739.556433 | AC7: -1839.494446 | AD7: -3290.2525 | AE7: 4719.37637 | AF7: 20874.5862 | AG7: -2569.447427 | AH7: 8533.766264 | AI7: 12020.53954 | AJ7: -2567.200832 | AK7: 4784.38616 | AL7: 48.89855347 | AM7: 8466.38567 | AN7: 9884.767968 | AO7: 5922.658701 | AP7: 17606.50919 | AQ7: 14748.04985 | AR7: 991.8096341 | AS7: -2132.27037 | AT7: -6687.027119 | AU7: 24339.89063 | AV7: 12057.79949 | AW7: 2221.780532 | AX7: 7342.282064 | AY7: 6249.930501 | AZ7: 3798.667411 | BA7: -3301.330079 | BB7: 12928.02389 | BC7: 9703.000853 | BD7: -2422.550124 | BE7: 2437.911115 | BF7: -5212.001659 | BG7: -5686.916988 | BH7: 3386.399174 | BI7: 5209.983026 | BJ7: 6282.676437 | BK7: 3693.76393 | BL7: 7845.845909 | BM7: 2994.819056 | BN7: 6634.078677 | BO7: 14446.72345 | BP7: 19602.43754 | BQ7: 911.0317595 | BR7: 1172.075427 | BS7: 18353.60257 | BT7: 4549.389844 | BU7: 683.1306705 | BV7: 2714.305174 | BW7: -4.231493295 | BX7: 967.5349543 | BY7: 4295.436447 | BZ7: 4119.95601 | CA7: 13158.50081 | CB7: 8600.2629 | CC7: 646.6070935 | CD7: 6985.738956 | CE7: 1316.841694 | CF7: 3820.976321 | CG7: 927.0722967 | CH7: 1548.006944 | CI7: 12556.26573 | CJ7: 14639.16224 | CK7: 2698.932144 | CL7: 9557.028828 | CM7: 7777.686454 | CN7: 4777.574863 | CO7: 2670.864199 | CP7: -3351.832667 | CQ7: 3341.439967 | CR7: -2437.581664 | CS7: 266.4083111 | CT7: 7166.319706 | CU7: -4245.326135 | CV7: 2785.532567 | CW7: 3362.909552 | CX7: 4651.175002 | CY7: 12568.25232 | CZ7: 10599.31577 | DA7: 7533.471087 | DB7: 1819.104042 | DC7: 6945.656516 | DD7: 4576.086103 | DE7: 4716.752458 | DF7: 4632.610158 | DG7: -1833.4716 | DH7: 8269.665626 | DI7: -3053.725441 | DJ7: 16723.06402 | DK7: 2070.539371 | DL7: 10149.43679 | DM7: -3153.680066 | DN7: 13859.41015 | DO7: 98.14694328 | DP7: 1034.549968 | DQ7: 14949.46126 | DR7: 16128.61099 | DS7: 1708.787754 | DT7: 2680.302309 | DU7: 17201.9955 | DV7: 2350.269147 | DW7: 5780.515427 | DX7: 4261.545794 | DY7: 15809.35862 | DZ7: 17438.94028 | EA7: 3324.806811 | EB7: -2162.099852 | EC7: -7736.604271 | ED7: 817.2417121 | EE7: 2599.226572 | EF7: -1181.864404 | EG7: 10974.77266 | EH7: 134.0123984 | EI7: 7324.090898 | EJ7: -203.392588 | EK7: 7994.878711 | EL7: 11555.55277 | EM7: 6140.791406 | EN7: 4807.017839 | EO7: 14530.01007 | EP7: 5419.900053 | EQ7: -4060.518474 | ER7: 2572.792657 | ES7: 7016.016725 | ET7: -11832.20709 | EU7: 9125.833174 | EV7: 11262.7441 | EW7: 11686.30177 | EX7: 1503.178173 | EY7: 12756.04545 | EZ7: -5270.194032 | FA7: -5470.943886 | FB7: -4394.913547 | FC7: 16113.62396 | FD7: 17039.10929 | FE7: 8774.801722 | FF7: 4593.121028 | FG7: -1858.136178 | FH7: -977.4620217 | FI7: 2858.581255 | FJ7: 11692.01263 | FK7: 335.060171 | FL7: 5442.598114 | FM7: -1207.489373 | FN7: -4098.878705 | FO7: 1398.830023 | FP7: 17474.98947 | FQ7: -10619.73465 | FR7: 2691.366574 | FS7: 3774.325413 | FT7: 17550.07069 | FU7: 7233.766226 | FV7: 4107.238501 | FW7: 2013.722737 | FX7: 7917.711139 | FY7: 448.9498676 | FZ7: -4800.599384 | GA7: 3703.43403 | GB7: 1708.787235 | GC7: -2606.513485 | GD7: 12466.74193 | GE7: -1222.423241 | GF7: -10788.21294 | GG7: -2052.540856 | GH7: 7038.568811 | GI7: -971.0086415 | GJ7: 2382.937115 | GK7: -801.1297426 | GL7: 4996.137497 | GM7: 1300.769575 | GN7: -1349.407133 | GO7: 2271.981401 | GP7: 16587.38104 | GQ7: 6531.053427 | GR7: 9629.282366 | GS7: 6008.308957 | GT7: 5810.161911 | GU7: 18686.79198 | GV7: 10269.20262 | GW7: 1373.185695 | GX7: -138.4755948 | GY7: 7315.853703 | GZ7: 599.7340831 | HA7: -12380.61339 | HB7: -3024.055299 | HC7: 19452.28834 | HD7: 10854.93144 | HE7: -6506.675244 | HF7: -5906.100144 | HG7: 4197.342805 | HH7: 8861.390553 | HI7: 5001.586992 | HJ7: 9066.94412 | HK7: 3036.033714 | HL7: 9644.975333 | HM7: -10034.68204 | HN7: 188.3324454 | HO7: 7700.563854 | HP7: 5808.827844 | HQ7: 8711.004104 | HR7: -639.8454037 | HS7: 7124.907422 | HT7: 774.29505 | HU7: 328.8370442 | HV7: -6154.244129 | HW7: 2421.377919 | HX7: 9265.442409 | HY7: 3343.319534 | HZ7: 15283.55337 | IA7: 2069.997416 | IB7: -1918.350449 | IC7: 7388.95868 | ID7: 11052.46784 | IE7: 9707.994132 | IF7: -227.035698 | IG7: 3489.327552 | IH7: 10584.25957 | II7: 5661.689109 | IJ7: 1054.693102 | IK7: 9412.221208 | IL7: -4064.407621 | IM7: -6309.851947 | IN7: 8478.483393 | IO7: 4665.93947 | IP7: 5748.124381 | IQ7: 4008.3155 | IR7: 7405.987733 | IS7: 6782.748293 | IT7: 1310.191036 | IU7: 6049.015823 | IV7: 3170.453132 | IW7: -838.1024968 | IX7: 4302.283965 | IY7: 261.5380206 | IZ7: 7716.48076 | JA7: -13494.65064 | JB7: 513.9161404 | JC7: 9652.145106 | JD7: -2531.12618 | JE7: -938.2678311 | JF7: 5310.600418 | JG7: 22046.41065 | JH7: 1825.057249 | JI7: 4431.89183 | JJ7: 3975.130547 | JK7: -741.7918184 | JL7: -2077.263093 | JM7: -5044.002522 | JN7: 16763.01998 | JO7: 4229.964371 | JP7: -850.1811906 | JQ7: 9336.490048 | JR7: 12665.13879 | JS7: 299.6982725 | JT7: -4781.315889 | JU7: 7509.822483 | JV7: 10186.92003 | JW7: -2827.592409 | JX7: 2727.143188 | JY7: 4605.495842 | JZ7: -2227.340368 | KA7: 7405.485612 | KB7: 6377.759917 | KC7: -5214.40853 | KD7: 5220.857839 | KE7: 3577.690743 | KF7: 5562.497918 | KG7: 6313.924245 | KH7: 7292.460158 | KI7: 1443.931532 | KJ7: 655.8638231 | KK7: 10352.62973 | KL7: 4073.353118 | KM7: -4774.933416 | KN7: 4853.543851 | KO7: 4152.8413 | KP7: 8312.737053 | KQ7: 6726.382403 | KR7: 10706.56946 | KS7: 8647.090366 | KT7: -9050.445504 | KU7: -4614.3281 | KV7: 11095.96 | KW7: 4425.224718 | KX7: 2115.282026 | KY7: 4172.664663 | KZ7: 8701.968757 | LA7: 17263.66051 | LB7: 10842.50428 | LC7: 8293.83854 | LD7: -5341.604805 | LE7: 13310.71019 | LF7: 2934.130632 | LG7: 3895.856088 | LH7: 4270.25722 | LI7: 6055.229371 | LJ7: 6563.848298 | LK7: 761.358639 | LL7: 9981.141768 | LM7: 1989.196303 | LN7: -1449.140301 | LO7: 3367.077901 | LP7: -4004.179253 | LQ7: 9979.139644 | LR7: 8140.905545 | LS7: 5667.903765 | LT7: 2985.847397 | LU7: 6358.092329 | LV7: -8446.534914 | LW7: 627.4445127 | LX7: 6032.865973 | LY7: -7450.917148 | LZ7: 2211.252821 | MA7: 847.6435193 | MB7: 18507.94459 | MC7: -12439.02885 | MD7: -5474.785643 | ME7: 19618.81965 | MF7: 5935.513827 | MG7: 3881.04703 | MH7: 1466.027874 | MI7: 6767.961938 | MJ7: 746.4519254 | MK7: 4485.461994 | ML7: 7012.254428 | MM7: 4815.655714 | MN7: 1118.284973 | MO7: 2921.235552 | MP7: 5210.440884 | MQ7: 335.1168064 | MR7: -284.980319 | MS7: -1664.230461 | MT7: 6721.221666 | MU7: -656.4667915 | MV7: 891.5850518 | MW7: -6153.325623 | MX7: -1117.381746 | MY7: 5203.415584 | MZ7: -3983.89522 | NA7: 861.8282541 | NB7: 19927.8152 | NC7: 10901.99554 | ND7: 14651.81609 | NE7: -625.9671444 | NF7: 10138.68568 | NG7: 3230.24595 | NH7: 5637.357643 | NI7: -1348.525393 | NJ7: 3816.073787 | NK7: 2449.922205 | NL7: 6414.402068 | NM7: -2746.304394 | NN7: 6859.009711 | NO7: 2151.019624 | NP7: 12898.20712 | NQ7: 3904.60712 | NR7: 3231.039232 | NS7: -671.0476401 | NT7: 3815.941194 | NU7: 11342.98043 | NV7: 4788.085344 | NW7: -10664.51441 | NX7: 4832.676671 | NY7: -3473.475552 | NZ7: 21263.36386 | OA7: -9352.677125 | OB7: 8058.321648 | OC7: 17254.48173 | OD7: -1095.402965 | OE7: -294.2262421 | OF7: 4412.597052 | OG7: 7794.965612 | OH7: 3858.540748 | OI7: -24.38120774 | OJ7: -557.2290498 | OK7: 3941.323662 | OL7: 24949.25773 | OM7: 8010.967082 | ON7: 1307.714379 | OO7: 7426.515773 | OP7: 7920.928594 | OQ7: 10600.89495 | OR7: 1853.762209 | OS7: 5336.619268 | OT7: 9225.741438 | OU7: 15746.76611 | OV7: 19949.77571 | OW7: 3069.684543 | OX7: 4762.142985 | OY7: -4551.568545 | OZ7: -7055.165434 | PA7: -3758.938047 | PB7: 1520.43415 | PC7: 5944.785502 | PD7: 11291.36322 | PE7: 3573.483019 | PF7: -5088.81108 | PG7: 6784.213953 | PH7: -7019.270631 | PI7: -2258.662505 | PJ7: 10219.07669 | PK7: 9271.860671 | PL7: -828.0892725 | PM7: 10515.54546 | PN7: 2566.62015 | PO7: -6028.261115 | PP7: 11382.9606 | PQ7: 4268.486166 | PR7: 7161.8631 | PS7: -6191.934909 | PT7: 4858.249852 | PU7: -7812.528954 | PV7: 14987.60818 | PW7: 15495.47534 | PX7: 3885.96797 | PY7: -957.2190635 | PZ7: 2612.556245 | QA7: 996.0433624 | QB7: 4433.171161 | QC7: 726.9351341 | QD7: 10232.87909 | QE7: 4993.565195 | QF7: 4452.236911 | QG7: -1841.959172 | QH7: 6865.204773 | QI7: 20519.33782 | QJ7: 3706.726302 | QK7: 3221.311487 | QL7: 1216.252908 | QM7: 15824.86609 | QN7: -4829.837906 | QO7: 10095.6711 | QP7: 6152.32449 | QQ7: -4937.214258 | QR7: 205.1207746 | QS7: 10373.72771 | QT7: 218.273454 | QU7: 3607.918751 | QV7: 7287.811724 | QW7: 8335.294702 | QX7: 7343.601667 | QY7: 4436.932578 | QZ7: 10709.16835 | RA7: 873.3637411 | RB7: -4840.18803 | RC7: 7239.595926 | RD7: 1869.432928 | RE7: 833.5099439 | RF7: 2434.038954 | RG7: 199.3653706 | RH7: 7064.171207 | RI7: 9539.985161 | RJ7: -4353.099682 | RK7: 627.5107716 | RL7: 15650.9641 | RM7: 1627.379041 | RN7: -331.9293693 | RO7: -1957.844741 | RP7: 694.6596852 | RQ7: 8851.553844 | RR7: 796.4583803 | RS7: -3097.64321 | RT7: 2028.841071 | RU7: 23431.85322 | RV7: 8201.972611 | RW7: 1026.561375 | RX7: -8368.203477 | RY7: 4861.824959 | RZ7: 13179.88025 | SA7: 7429.540646 | SB7: 15919.1238 | SC7: 15103.96476 | SD7: 5332.662574 | SE7: 9995.284142 | SF7: 7530.286063 | SG7: -5524.560993 | SH7: 4306.63054 | SI7: 5459.321314 | SJ7: 2554.841901 | SK7: -3322.612275 | SL7: 12098.13198 | SM7: 2766.202431 | SN7: 7732.726427 | SO7: -3165.350979 | SP7: -4397.453908 | SQ7: 2313.399871 | SR7: -6135.899841 | SS7: 16109.91477 | ST7: 15610.44271 | SU7: -5247.359474 | SV7: 3590.214561 | SW7: -8393.02861 | SX7: 10929.45666 | SY7: 12359.94089 | SZ7: -4769.963969 | TA7: 11917.44299 | TB7: 1305.016685 | TC7: 2091.385172 | TD7: 4563.793029 | TE7: 5494.261121 | TF7: 6960.333907 | TG7: 5249.99248 | TH7: -3151.255771 | TI7: 1056.297168 | TJ7: 3262.141525 | TK7: 16400.19761 | TL7: 8209.278757 | TM7: 1952.979884 | TN7: 431.1436523 | TO7: 6554.445408 | TP7: 5399.680557 | TQ7: -3338.591379 | TR7: 17201.68776 | TS7: 8627.680365 | TT7: 1633.250584 | TU7: 438.1258657 | TV7: -1106.975212 | TW7: 11231.45579 | TX7: -169.8090957 | TY7: -368.6267969 | TZ7: 3355.712944 | UA7: 4051.937125 | UB7: 7197.383387 | UC7: 1136.241731 | UD7: 230.3396184 | UE7: 365.6703661 | UF7: 5823.127236 | UG7: -1022.74159 | UH7: 1802.46837 | UI7: 8338.027871 | UJ7: 10965.8511 | UK7: 13313.2917 | UL7: 11560.13733 | UM7: 11377.01695 | UN7: 7949.698045 | UO7: 7029.933649 | UP7: 429.8597408 | UQ7: -1942.728503 | UR7: 12121.49211 | US7: -293.0721001 | UT7: 1642.005298 | UU7: -1740.714889 | UV7: 5491.646771 | UW7: 3471.218283 | UX7: 4211.146723 | UY7: -1199.800124 | UZ7: 14251.27287 | VA7: 6561.186842 | VB7: -1650.259579 | VC7: 2743.78941 | VD7: -11920.0847 | VE7: 523.998412 | VF7: 532.1347909 | VG7: 9723.457903 | VH7: 5173.492135 | VI7: 11839.86081 | VJ7: 2880.214709 | VK7: 5457.351047 | VL7: 2715.808149 | VM7: -2030.740795 | VN7: 1260.130469 | VO7: 4715.505774 | VP7: 5431.27957 | VQ7: 2818.880229 | VR7: 7032.720381 | VS7: 7898.665747 | VT7: -1152.870472 | VU7: -7183.100567 | VV7: -9852.571202 | VW7: 3162.124404 | VX7: 20124.78909 | VY7: 11612.42214 | VZ7: 1993.265092 | WA7: 5599.645895 | WB7: 10933.03408 | WC7: 13726.31208 | WD7: 8349.441833 | WE7: 20111.89722 | WF7: 1040.383107 | WG7: 7945.011564 | WH7: -5023.750754 | WI7: 3490.44658 | WJ7: 7837.416111 | WK7: -505.2132912 | WL7: 11070.62519 | WM7: -5528.846777 | WN7: -9013.929214 | WO7: -7050.146934 | WP7: -971.1334223 | WQ7: 51.02094034 | WR7: -540.2354399 | WS7: 3569.990738 | WT7: -7494.888591 | WU7: 26769.15983 | WV7: 3436.232045 | WW7: 2576.271558 | WX7: -784.5476714 | WY7: 8315.796819 | WZ7: -1947.887231 | XA7: 6922.373001 | XB7: 2171.666565 | XC7: 4001.095435 | XD7: -10612.3266 | XE7: 5285.926996 | XF7: -5702.322303 | XG7: 13285.54684 | XH7: -5046.001559 | XI7: 3107.468149 | XJ7: 12447.61745 | XK7: 19736.88505 | XL7: -1041.224783 | XM7: 1245.530595 | XN7: 3242.773575 | XO7: -7893.25433 | XP7: -590.7476322 | XQ7: 6362.206492 | XR7: 3601.303787 | XS7: 6334.117406 | XT7: -7531.657035 | XU7: 8262.105328 | XV7: 18617.21785 | XW7: 19905.98912 | XX7: 10105.27184 | XY7: 15826.14718 | XZ7: 1800.041367 | YA7: 15988.23077 | YB7: 328.4611474 | YC7: 24454.01958 | YD7: -1355.114366 | YE7: 5998.185905 | YF7: 4100.765594 | YG7: 14282.04621 | YH7: 26591.44875 | YI7: 5905.967732 | YJ7: -1432.099948 | YK7: 467.5581402 | YL7: 5058.489309 | YM7: 647.9915069 | YN7: 9828.132605 | YO7: 3710.547266 | YP7: 8006.574667 | YQ7: 5580.26948 | YR7: 6593.327235 | YS7: 4610.349319 | YT7: 3476.44249 | YU7: 5334.760191 | YV7: 1135.185253 | YW7: -1237.788389 | YX7: 6824.417417 | YY7: 2299.356471 | YZ7: 1394.392272 | ZA7: 11673.77059 | ZB7: 3827.444939 | ZC7: 11196.61341 | ZD7: -13046.97727 | ZE7: 3233.253587 | ZF7: 5286.80654 | ZG7: 3819.920259 | ZH7: 1678.443929 | ZI7: 3.936455887 | ZJ7: 12182.26917 | ZK7: 15121.57996 | ZL7: -12199.78049 | ZM7: 6514.462971 | ZN7: 17176.09759 | ZO7: 2056.32584 | ZP7: 15178.66555 | ZQ7: 5692.851731 | ZR7: 3799.895565 | ZS7: -6795.93508 | ZT7: -1305.810528 | ZU7: 8306.000887 | ZV7: 15554.29042 | ZW7: -6962.059596 | ZX7: 2495.424013 | ZY7: -5275.2713 | ZZ7: 1697.919824 | AAA7: 7162.932719 | AAB7: 2681.134048 | AAC7: 3737.759476 | AAD7: 9594.07522 | AAE7: 6572.662069 | AAF7: 10050.96712 | AAG7: -3242.721775 | AAH7: 11877.79844 | AAI7: 4036.550025 | AAJ7: 362.1061405 | AAK7: -8718.061006 | AAL7: 4658.406162 | AAM7: 4968.184051 | AAN7: 17647.79525 | AAO7: 2666.799763 | AAP7: 6623.960695 | AAQ7: 2773.794576 | AAR7: 13924.06983 | AAS7: 6950.688932 | AAT7: 10199.22351 | AAU7: 7139.290227 | AAV7: -7965.760047 | AAW7: 2803.773255 | AAX7: 9599.550713 | AAY7: 1671.105656 | AAZ7: -5045.352365 | ABA7: -1214.412679 | ABB7: 2649.648173 | ABC7: 4146.223984 | ABD7: 8521.554174 | ABE7: 4970.524317 | ABF7: 9906.258004 | ABG7: 2334.509492 | ABH7: 5035.222614 | ABI7: 12582.36128 | ABJ7: 409.9901122 | ABK7: 2936.960448 | ABL7: 2080.203471 | ABM7: 8961.364423 | ABN7: -1596.745107 | ABO7: 9244.990458 | ABP7: -6771.17536 | ABQ7: 3337.275971 | ABR7: 256.3276623 | ABS7: 13894.86627 | ABT7: -2470.607809 | ABU7: 7481.15578 | ABV7: 1250.890418 | ABW7: -13722.19383 | ABX7: -717.1212623 | ABY7: -3763.41855 | ABZ7: 10592.23412 | ACA7: 4153.845387 | ACB7: 3489.838689 | ACC7: -670.8723493 | ACD7: 5392.003598 | ACE7: 9923.081655 | ACF7: 19913.9065 | ACG7: 16484.27105 | ACH7: 877.7144794 | ACI7: 1337.247532 | ACJ7: 7157.689169 | ACK7: 15806.30645 | ACL7: 2481.319056 | ACM7: 2431.915196 | ACN7: 20844.20851 | ACO7: 24907.6678 | ACP7: 5270.483615 | ACQ7: 5880.900559 | ACR7: 1057.531978 | ACS7: 5070.733177 | ACT7: 4098.219549 | ACU7: 218.4977776 | ACV7: 1435.472938 | ACW7: 2930.775536 | ACX7: 2083.528591 | ACY7: 2561.230322 | ACZ7: -2037.514666 | ADA7: -5699.869463 | ADB7: 5664.460241 | ADC7: -2481.022317 | ADD7: 15346.83932 | ADE7: -8502.60976 | ADF7: 12992.25473 | ADG7: 3405.02807 | ADH7: 3750.078797 | ADI7: 3851.693931 | ADJ7: 16879.57169 | ADK7: 3817.419537 | ADL7: 1269.471067 | ADM7: 5594.054886 | ADN7: 7655.811445 | ADO7: 2101.408922 | ADP7: 1462.514086 | ADQ7: 4257.855383 | ADR7: 17217.34927 | ADS7: -1692.40097 | ADT7: 1276.404174 | ADU7: 3613.114028 | ADV7: 783.6786315 | ADW7: 15279.4923 | ADX7: 8747.496812 | ADY7: 13249.13184 | ADZ7: -12882.73319 | AEA7: 4837.793393 | AEB7: 489.6819284 | AEC7: 3617.795537 | AED7: 7377.404379 | AEE7: -609.9558951 | AEF7: -2868.817421 | AEG7: 11364.93898 | AEH7: 16690.45011 | AEI7: 15212.47423 | AEJ7: 260.6695416 | AEK7: -3847.671874 | AEL7: 7704.575155 | AEM7: 21249.71016 | AEN7: 23.3755488 | AEO7: 5051.567374 | AEP7: 3082.429787 | AEQ7: 16153.90188 | AER7: -1291.711145 | AES7: 1449.814508 | AET7: -975.6644125 | AEU7: 4772.854955 | AEV7: 12829.20812 | AEW7: 2393.273072 | AEX7: 10110.35466 | AEY7: -1710.437816 | AEZ7: 253.3230241 | AFA7: 3440.904248 | AFB7: -1201.344878 | AFC7: 4062.933064 | AFD7: -340.0150364 | AFE7: 19940.69967 | AFF7: 360.2823479 | AFG7: 1099.990027 | AFH7: 12782.34321 | AFI7: -16099.99318 | AFJ7: -3866.90505 | AFK7: 1651.607571 | AFL7: 2056.466655 | AFM7: -453.9277377 | AFN7: -10569.94018 | AFO7: 6883.300109 | AFP7: 10680.43032 | AFQ7: 13195.51442 | AFR7: 6135.957867 | AFS7: 9030.505188 | AFT7: 13748.56126 | AFU7: 20160.4823 | AFV7: 6284.667405 | AFW7: 3479.71789 | AFX7: -9580.574169 | AFY7: -211.9098991 | AFZ7: 6564.903923 | AGA7: 12226.5449 | AGB7: 5091.584449 | AGC7: 3999.423022 | AGD7: -8016.453386 | AGE7: 6042.204079 | AGF7: 17210.37399 | AGG7: 6229.180953 | AGH7: 15137.27856 | AGI7: 6298.209243 | AGJ7: 1985.12326 | AGK7: 577.4518915 | AGL7: 14781.10631 | AGM7: -2677.616394 | AGN7: 3041.579268 | AGO7: -546.1006646 | AGP7: 3338.719073 | AGQ7: 10471.04153 | AGR7: -861.8439821 | AGS7: 5732.528971 | AGT7: 12898.03352 | AGU7: 3147.56296 | AGV7: -13220.39334 | AGW7: -3109.75473 | AGX7: 15384.9907 | AGY7: 8697.956155 | AGZ7: -4380.773574 | AHA7: 5849.475545 | AHB7: 12804.62668 | AHC7: 27769.49822 | AHD7: 4087.012894 | AHE7: 14313.9157 | AHF7: -805.0533998 | AHG7: 2954.626242 | AHH7: 10707.97873 | AHI7: 2595.45337 | AHJ7: 2692.716312 | AHK7: 4621.112525 | AHL7: -1766.8504 | AHM7: 13492.92882 | AHN7: 6816.754922 | AHO7: -13199.61811 | AHP7: 11820.42505 | AHQ7: 9371.474388 | AHR7: 9427.491826 | AHS7: 11231.63361 | AHT7: 19164.84362 | AHU7: 2951.385997 | AHV7: 1427.747097 | AHW7: 613.3357314 | AHX7: 6656.403519 | AHY7: -6165.772052 | AHZ7: -4599.205037 | AIA7: 11496.77594 | AIB7: 28927.88222 | AIC7: -7957.315742 | AID7: -174.7973039 | AIE7: -4670.27436 | AIF7: -602.951978 | AIG7: -6753.528666 | AIH7: 3980.709167 | AII7: 6470.060607 | AIJ7: 9637.024961 | AIK7: 11092.43792 | AIL7: -4621.201065 | AIM7: -1437.767776 | AIN7: 6813.338927 | AIO7: 7048.522884 | AIP7: 2709.295433 | AIQ7: 1034.077764 | AIR7: -1181.681185 | AIS7: 14364.85613 | AIT7: 4616.740935 | AIU7: 5139.510084 | AIV7: 8383.297348 | AIW7: -3201.229437 | AIX7: -11971.36645 | AIY7: 3382.580157 | AIZ7: 6391.265238 | AJA7: -1222.697801 | AJB7: 3776.577908 | AJC7: -4360.181028 | AJD7: 6375.046198 | AJE7: 5346.790562 | AJF7: 396.9135707 | AJG7: -795.6528717 | AJH7: 5262.383831 | AJI7: 9700.043454 | AJJ7: 134.4322074 | AJK7: 4254.818281 | AJL7: 97.82282041 | AJM7: 5296.964361 | AJN7: -1061.357185 | AJO7: 12521.93524 | AJP7: 2265.572814 | AJQ7: -1586.458204 | AJR7: -1700.905508 | AJS7: 13281.59737 | AJT7: -4352.27642 | AJU7: 1682.674826 | AJV7: -864.98806 | AJW7: 1831.716561 | AJX7: 3207.800828 | AJY7: 1374.142608 | AJZ7: 5733.771081 | AKA7: 1092.900153 | AKB7: -6984.875493 | AKC7: 3369.936264 | AKD7: 4799.583913 | AKE7: -1057.244176 | AKF7: 740.0593837 | AKG7: 6456.304914 | AKH7: -1773.79994 | AKI7: -598.3465233 | AKJ7: 3745.176173 | AKK7: -6455.891454 | AKL7: 15731.6026 | AKM7: 2601.459811 | AKN7: 16518.14931 | AKO7: -3457.319129 | AKP7: 7706.029955 | AKQ7: -1239.563018 | AKR7: 8976.421275 | AKS7: -589.7510973 | AKT7: 18899.46962 | AKU7: 5380.300675 | AKV7: -354.9362428 | AKW7: 610.0174482 | AKX7: -2572.166498 | AKY7: -634.0027474 | AKZ7: 20974.25971 | ALA7: 8727.245827 | ALB7: -10930.51686 | ALC7: -552.8716261 | ALD7: 12580.35978 | ALE7: -2080.00891 | ALF7: 2920.27703 | ALG7: 10803.58261 | ALH7: -501.402423 | ALI7: 6171.03142 | ALJ7: -1540.778028 | ALK7: 4936.205025 | ALL7: 5323.044077 | ALM7: -1369.709383 | ALN7: 5575.055109 | ALO7: 3686.156968 | ALP7: 2410.139734 | ALQ7: 3811.211077 | ALR7: 9677.730318 | ALS7: -11305.95486 | ALT7: -2682.614586 | ALU7: 7097.719295 | ALV7: -3209.930308 | ALW7: 6679.121214 | ALX7: 19641.01203 | ALY7: 12103.54228 | ALZ7: 1256.209186 | AMA7: 6889.864831 | AMB7: 1244.032068 | AMC7: 2290.58884 | AMD7: 1953.349402 | AME7: -651.5941461 | AMF7: 1726.477413 | AMG7: 10414.28844 | AMH7: -57.40331188 | AMI7: 12768.80863 | AMK7: 1 | AML7: 50 | AMM7: 100 | AMN7: 150 | AMO7: 200 | AMP7: 250 | AMQ7: 300 | AMR7: 350 | AMS7: 400 | AMT7: 450 | AMU7: 500 | AMV7: 550 | AMW7: 600 | AMX7: 650 | AMY7: 700 | AMZ7: 750 | ANA7: 800 | ANB7: 850 | ANC7: 900 | AND7: 950 | ANE7: 1000
A8: VarID | B8: Variable Name | C8: Short Name | D8: Simulated Value | E8: Shape | F8: Lower Bound | G8: Mode or P | H8: Upper Bound | I8: Notes | J8: EVPI Estimate | K8: Mean | L8: Uniform PRNG | M8: P(X<T) | N8: P(X>T) | O8: EOL(X<T) | P8: EOL(X>T) | Q8: Threshold Estimate | S8: Normal | V8: RRA | W8: =(((W7)+$E$52)^(1-$G$52)-1)/(1-$G$52) -> 778.0581716 | X8: 661.8078073 | Y8: 582.3297432 | Z8: 700.4130784 | AA8: 910.8450576 | AB8: 798.8820433 | AC8: 612.5960757 | AD8: 572.9776558 | AE8: 775.4327777 | AF8: 1108.755951 | AG8: 592.8630057 | AH8: 861.0760116 | AI8: 935.0540554 | AJ8: 592.9243481 | AK8: 776.9398435 | AL8: 661.948791 | AM8: 859.6087266 | AN8: 890.1825363 | AO8: 803.0464444 | AP8: 1046.697802 | AQ8: 990.5236835 | AR8: 685.7686839 | AS8: 604.728384 | AT8: 472.8424517 | AU8: 1172.330675 | AV8: 935.825183 | AW8: 716.1055089 | AX8: 834.900786 | AY8: 810.4572784 | AZ8: 753.8936968 | BA8: 572.668794 | BB8: 953.7268902 | BC8: 886.3004125 | BD8: 596.8659001 | BE8: 721.3556145 | BF8: 517.7684316 | BG8: 503.5704017 | BH8: 744.1271507 | BI8: 786.7625933 | BJ8: 811.1965185 | BK8: 751.4158797 | BL8: 846.0234018 | BM8: 734.7780178 | BN8: 819.1038372 | BO8: 984.4895059 | BP8: 1084.855973 | BQ8: 683.7478895 | BR8: 690.265347 | BS8: 1061.078349 | BT8: 771.4836841 | BU8: 678.0268846 | BV8: 728.0359656 | BW8: 660.5911655 | BX8: 685.1617927 | BY8: 765.5608858 | BZ8: 761.4519454 | CA8: 958.4339367 | CB8: 862.5225588 | CC8: 677.107306 | CD8: 826.9707814 | CE8: 693.8636397 | CF8: 754.4199945 | CG8: 684.1494591 | CH8: 699.586073 | CI8: 946.1045233 | CJ8: 988.3457526 | CK8: 727.6653845 | CL8: 883.1752892 | CM8: 844.5231269 | CN8: 776.7820265 | CO8: 726.9884847 | CP8: 571.2594114 | CQ8: 743.0573688 | CR8: 596.4570464 | CS8: 667.4892553 | CT8: 830.9928925 | CU8: 545.9637697 | CV8: 729.7514743 | CW8: 743.5683436 | CX8: 773.8498084 | CY8: 946.3508731 | CZ8: 905.3450459 | DA8: 839.1342795 | DB8: 706.2609872 | DC8: 826.0764043 | DD8: 772.1046986 | DE8: 775.3719124 | DF8: 773.4185733 | DG8: 612.7572808 | DH8: 855.3161944 | DI8: 579.5485055 | DJ8: 1029.536015 | DK8: 712.4177053 | DL8: 895.8169192 | DM8: 576.7772601 | DN8: 972.6631722 | DO8: 663.20572 | DP8: 686.8364427 | DQ8: 994.5445891 | DR8: 1017.889666 | DS8: 703.5494399 | DT8: 727.2161414 | DU8: 1038.861129 | DV8: 719.2294796 | DW8: 799.8147413 | DX8: 764.7683693 | DY8: 1011.60142 | DZ8: 1043.45582 | EA8: 742.6613539 | EB8: 603.9232963 | EC8: 439.231974 | ED8: 681.397011 | EE8: 725.2590989 | EF8: 630.0488807 | EG8: 913.250529 | EH8: 664.1201764 | EI8: 834.4972999 | EJ8: 655.4868568 | EK8: 849.2981808 | EL8: 925.3979757 | EM8: 807.9904957 | EN8: 777.4640774 | EO8: 986.1595969 | EP8: 791.5800958 | EQ8: 551.2534739 | ER8: 724.6203313 | ES8: 827.6459929 | ET8: 288.5898431 | EU8: 873.9042492 | EV8: 919.2858631 | EW8: 928.1193248 | EX8: 698.4785769 | EY8: 950.2053409 | EZ8: 516.0415023 | FA8: 510.0568556 | FB8: 541.6592716 | FC8: 1017.594998 | FD8: 1035.695358 | FE8: 866.3124276 | FF8: 772.5008103 | FG8: 612.0969551 | FH8: 635.4138344 | FI8: 731.5083069 | FJ8: 928.2380773 | FK8: 669.2321767 | FL8: 792.0999382 | FM8: 629.3743446 | FN8: 550.1580404 | FO8: 695.8965098 | FP8: 1044.153786 | FQ8: 337.3821272 | FR8: 727.4829674 | FS8: 753.319181 | FT8: 1045.60656 | FU8: 832.4921091 | FV8: 761.1536367 | FW8: 711.0293116 | FX8: 847.6034958 | FY8: 672.1175229 | FZ8: 529.8791901 | GA8: 751.6444948 | GB8: 703.5494271 | GC8: 591.8503754 | GD8: 944.263386 | GE8: 628.9810318 | GF8: 330.8670439 | GG8: 606.8770687 | GH8: 828.1486998 | GI8: 635.5827678 | GJ8: 720.0224284 | GK8: 640.0200157 | GL8: 781.8364272 | GM8: 693.4647132 | GN8: 625.6306022 | GO8: 717.3270371 | GP8: 1026.884833 | GQ8: 816.7903675 | GR8: 884.723008 | GS8: 804.9899367 | GT8: 800.4894242 | GU8: 1067.453685 | GV8: 898.3594738 | GW8: 695.2610565 | GX8: 657.1532625 | GY8: 834.3145571 | GZ8: 675.9260398 | HA8: 264.8147 | HB8: 580.3695628 | HC8: 1082.013998 | HD8: 910.731731 | HE8: 478.4717606 | HF8: 496.9352583 | HG8: 763.2656432 | HH8: 868.1888477 | HI8: 781.9621963 | HJ8: 872.6334499 | HK8: 735.7654293 | HL8: 885.0589443 | HM8: 359.440014 | HN8: 665.5037121 | HO8: 842.8236059 | HP8: 800.4590715 | HQ8: 864.9283215 | HR8: 644.2155462 | HS8: 830.0715557 | HT8: 680.3188927 | HU8: 669.0742987 | HV8: 489.3578756 | HW8: 720.954822 | HX8: 876.9124757 | HY8: 743.1021109 | HZ8: 1001.192583 | IA8: 712.4044696 | IB8: 610.483064 | IC8: 835.9355472 | ID8: 914.8812558 | IE8: 886.4071953 | IF8: 654.8793035 | IG8: 746.5727686 | IH8: 905.0271534 | II8: 797.107059 | IJ8: 687.3393183 | IK8: 880.068438 | IL8: 551.1424737 | IM8: 484.569673 | IN8: 859.8722797 | IO8: 774.1926619 | IP8: 799.0772031 | IQ8: 758.8308143 | IR8: 836.3128658 | IS8: 822.4352851 | IT8: 693.6985805 | IU8: 805.912618 | IV8: 738.9802405 | IW8: 639.0558793 | IX8: 765.7209511 | IY8: 667.3655042 | IZ8: 843.1745311 | JA8: 211.9349127 | JB8: 673.7600485 | JC8: 885.2124004 | JD8: 593.908824 | JE8: 636.4394212 | JF8: 789.0739484 | JG8: 1130.497114 | JH8: 706.4071356 | JI8: 768.7467981 | JJ8: 758.0506263 | JK8: 641.5655259 | JL8: 606.2113073 | JM8: 522.7345179 | JN8: 1030.315944 | JO8: 764.0294034 | JP8: 638.7407124 | JQ8: 878.4409662 | JR8: 948.3406645 | JS8: 668.3347599 | JT8: 530.4427202 | JU8: 838.6113335 | JV8: 896.6131363 | JW8: 585.7885671 | JX8: 728.34535 | JY8: 772.7884834 | JZ8: 602.1602002 | KA8: 836.3017416 | KB8: 813.3407133 | KC8: 517.6970742 | KD8: 787.0126054 | KE8: 748.6684344 | KF8: 794.8425119 | KG8: 811.9015567 | KH8: 833.795437 | KI8: 697.0132477 | KJ8: 677.3404407 | KK8: 900.1279977 | KL8: 760.3584558 | KM8: 530.6291579 | KN8: 778.5411187 | KO8: 762.2229914 | KP8: 856.2571531 | KQ8: 821.1731828 | KR8: 907.6076097 | KS8: 863.5403446 | KT8: 394.8099755 | KU8: 535.307574 | KV8: 915.793332 | KW8: 768.5913233 | KX8: 713.5098983 | KY8: 762.6875516 | KZ8: 864.7321884 | LA8: 1040.058088 | LB8: 910.4702972 | LC8: 855.8443647 | LD8: 513.9174936 | LE8: 961.5348268 | LF8: 733.3225883 | LG8: 756.1848818 | LH8: 764.9721294 | LI8: 806.0534008 | LJ8: 817.52722 | LK8: 679.9939379 | LL8: 892.2366866 | LM8: 710.4294647 | LN8: 622.9915137 | LO8: 743.6675253 | LP8: 552.8599323 | LQ8: 892.1940417 | LR8: 852.4994798 | LS8: 797.2488101 | LT8: 734.5629699 | LU8: 812.8974784 | LV8: 415.58627 | LW8: 676.6245333 | LX8: 805.5466346 | LY8: 448.5312705 | LZ8: 715.8491794 | MA8: 682.1595815 | MB8: 1064.034459 | MC8: 262.2063758 | MD8: 509.941912 | ME8: 1085.165774 | MF8: 803.3383226 | MG8: 755.8360367 | MH8: 697.5599686 | MI8: 822.1043142 | MJ8: 679.6193734 | MK8: 769.9953434 | ML8: 827.5621097 | MM8: 777.6641061 | MN8: 688.9254316 | MO8: 733.0131125 | MP8: 786.7731205 | MQ8: 669.2336134 | MR8: 653.3888592 | MS8: 617.2766457 | MT8: 821.0575686 | MU8: 643.7839381 | MV8: 683.2608553 | MW8: 489.3860543 | MX8: 631.7443457 | MY8: 786.6115844 | MZ8: 553.4376181 | NA8: 682.5152009 | NB8: 1090.999137 | NC8: 911.7214191 | ND8: 988.599 | NE8: 644.5757889 | NF8: 895.5884652 | NG8: 740.4075328 | NH8: 796.5519309 | NI8: 625.6539042 | NJ8: 754.3043562 | NK8: 721.6466987 | NL8: 814.166101 | NM8: 588.0218305 | NN8: 824.1410014 | NO8: 714.3815435 | NP8: 953.1169085 | NQ8: 756.3909768 | NR8: 740.4264577 | NS8: 643.4051719 | NT8: 754.3012285 | NU8: 920.9631751 | NV8: 777.0255451 | NW8: 335.6579742 | NX8: 778.0581716 | NY8: 567.8560025 | NZ8: 1115.997573 | OA8: 384.1600544 | OB8: 850.6899194 | OC8: 1039.879975 | OD8: 632.32161 | OE8: 653.1508456 | OF8: 768.296798 | OG8: 844.903616 | OH8: 755.3056869 | OI8: 660.0758388 | OJ8: 646.3582474 | OK8: 757.2553144 | OL8: 1183.29334 | OM8: 849.6512402 | ON8: 693.6371075 | OO8: 836.7675752 | OP8: 847.6741958 | OQ8: 905.3783843 | OR8: 707.1115711 | OS8: 789.6709768 | OT8: 876.0576591 | OU8: 1010.365762 | OV8: 1091.412995 | OW8: 736.5710316 | OX8: 776.4243993 | OY8: 537.129016 | OZ8: 461.223398 | PA8: 559.8200142 | PB8: 698.9050126 | PC8: 803.5487979 | PD8: 919.8843491 | PE8: 748.5687228 | PF8: 521.4127784 | PG8: 822.4680873 | PH8: 462.3640741 | PI8: 601.3126185 | PJ8: 897.2958642 | PK8: 877.0506221 | PL8: 639.3170808 | PM8: 903.5754805 | PN8: 724.4711252 | PO8: 493.2137544 | PP8: 921.7982534 | PQ8: 764.9307071 | PR8: 830.8937722 | PS8: 488.2007119 | PT8: 778.6500085 | PU8: 436.7404542 | PV8: 995.3050271 | PW8: 1005.39567 | PX8: 755.9519662 | PY8: 635.9436534 | PZ8: 725.5810768 | QA8: 685.874498 | QB8: 768.7766295 | QC8: 679.1287806 | QD8: 897.5888103 | QE8: 781.7770567 | QF8: 769.2211205 | QG8: 612.5300984 | QH8: 824.2794703 | QI8: 1102.113626 | QJ8: 751.7223192 | QK8: 740.1943679 | QL8: 691.3646233 | QM8: 1011.907416 | QN8: 529.024045 | QO8: 894.674079 | QP8: 808.2513849 | QQ8: 525.8763553 | QR8: 665.9309587 | QS8: 900.574907 | QT8: 666.2655653 | QU8: 749.3845189 | QV8: 833.6922613 | QW8: 856.7497075 | QX8: 834.9300507 | QY8: 768.864334 | QZ8: 907.6623918 | RA8: 682.8043192 | RB8: 528.7211316 | RC8: 832.621616 | RD8: 707.4959592 | RE8: 681.8051326 | RF8: 721.2617589 | RG8: 665.7845081 | RH8: 828.7191761 | RI8: 882.8099621 | RJ8: 542.8645853 | RK8: 676.6262029 | RL8: 1008.472723 | RM8: 701.5443548 | RN8: 652.1797251 | RO8: 609.4231107 | RP8: 678.317001 | RQ8: 867.9758058 | RR8: 680.8754029 | RS8: 578.3318773 | RT8: 711.3989099 | RU8: 1155.878114 | RV8: 853.8360677 | RW8: 686.6369447 | RX8: 418.2348476 | RY8: 778.732725 | RZ8: 958.869858 | SA8: 836.8345654 | SB8: 1013.766116 | SC8: 997.6223538 | SD8: 789.5802042 | SE8: 892.5378809 | SF8: 839.06386 | SG8: 508.4512317 | SH8: 765.8225447 | SI8: 792.4828088 | SJ8: 724.1863615 | SK8: 572.075126 | SL8: 936.6594646 | SM8: 729.2861513 | SN8: 843.5326131 | SO8: 576.4531565 | SP8: 541.5859914 | SQ8: 718.3339139 | SR8: 489.9204722 | SS8: 1017.522062 | ST8: 1007.671373 | SU8: 516.7195633 | SV8: 748.9651671 | SW8: 417.3965532 | SX8: 912.2985838 | SY8: 942.0640673 | SZ8: 530.7742924 | TA8: 932.9183627 | TB8: 693.5701444 | TC8: 712.9266893 | TD8: 771.818772 | TE8: 793.2823782 | TF8: 826.4039757 | TG8: 787.6821732 | TH8: 576.8445694 | TI8: 687.3793543 | TJ8: 741.1682168 | TK8: 1023.220511 | TL8: 853.9958937 | TM8: 709.5431508 | TN8: 671.666907 | TO8: 817.3159922 | TP8: 791.1168438 | TQ8: 571.629142 | TR8: 1038.855153 | TS8: 863.1185606 | TT8: 701.6890866 | TU8: 671.8436254 | TV8: 632.0177092 | TW8: 918.6312878 | TX8: 656.349259 | TY8: 651.2336641 | TZ8: 743.3970885 | UA8: 759.8556306 | UB8: 831.6835872 | UC8: 689.3729088 | UD8: 666.5724409 | UE8: 670.0084144 | UF8: 800.7843754 | UG8: 634.2277592 | UH8: 705.8524919 | UI8: 856.8093755 | UJ8: 913.0631631 | UK8: 961.5873661 | UL8: 925.4934789 | UM8: 921.6741356 | UN8: 848.3062132 | UO8: 827.9562359 | UP8: 671.6344084 | UQ8: 609.8289346 | UR8: 937.1424645 | US8: 653.180559 | UT8: 701.9048539 | UU8: 615.236726 | UV8: 793.2225679 | UW8: 746.1428386 | UX8: 763.5888874 | UY8: 629.5767978 | UZ8: 980.5634825 | VA8: 817.4674361 | VB8: 617.6488214 | VC8: 728.7463898 | VD8: 284.8615536 | VE8: 674.014738 | VF8: 674.2202293 | VG8: 886.7378434 | VH8: 785.9233143 | VI8: 931.30925 | VJ8: 732.0281029 | VK8: 792.4377062 | VL8: 728.0721901 | VM8: 607.4637691 | VN8: 692.4553862 | VO8: 775.3429928 | VP8: 791.8407412 | VQ8: 730.5538094 | VR8: 828.0183507 | VS8: 847.1849211 | VT8: 630.8115708 | VU8: 457.1438227 | VV8: 366.1394879 | VW8: 738.7812955 | VX8: 1094.70782 | VY8: 926.5822255 | VZ8: 710.528997 | WA8: 795.6910636 | WB8: 912.373756 | WC8: 969.9709079 | WD8: 857.0585273 | WE8: 1094.465322 | WF8: 686.9820907 | WG8: 848.2032785 | WH8: 523.3312286 | WI8: 746.5993304 | WJ8: 845.837939 | WK8: 647.7050937 | WL8: 915.2621016 | WM8: 508.3227563 | WN8: 396.0849102 | WO8: 461.3829803 | WP8: 635.5795016 | WQ8: 662.002989 | WR8: 646.798451 | WS8: 748.4859591 | WT8: 447.1076292 | WU8: 1215.672976 | WV8: 745.3118079 | WW8: 724.7044174 | WX8: 640.452139 | WY8: 856.3239743 | WZ8: 609.6904572 | XA8: 825.5565987 | XB8: 714.884831 | XC8: 758.66111 | XD8: 337.6668438 | XE8: 788.5075385 | XF8: 503.1057882 | XG8: 961.0226056 | XH8: 522.6755946 | XI8: 737.474935 | XJ8: 943.8697909 | XK8: 1087.396914 | XL8: 633.743214 | XM8: 692.0925604 | XN8: 740.7063633 | XO8: 434.0819007 | XP8: 645.4894453 | XQ8: 812.9902086 | XR8: 749.2278497 | XS8: 812.3569732 | XT8: 445.9150807 | XU8: 855.1509636 | XV8: 1066.124351 | XW8: 1090.587717 | XX8: 894.8782168 | XY8: 1011.932693 | XZ8: 705.7928839 | YA8: 1015.127545 | YB8: 669.0647617 | YC8: 1174.388616 | YD8: 625.4797629 | YE8: 804.7603829 | YF8: 761.0017774 | YG8: 981.182261 | YH8: 1212.534382 | YI8: 802.6673763 | YJ8: 623.4429074 | YK8: 672.5882401 | YL8: 783.2747137 | YM8: 677.1421762 | YN8: 888.974042 | YO8: 751.812635 | YP8: 849.5548575 | YQ8: 795.248527 | YR8: 818.189224 | YS8: 772.9012928 | YT8: 746.2668813 | YU8: 789.6283275 | YV8: 689.3465866 | YW8: 628.5762045 | YX8: 823.3675521 | YY8: 717.9926171 | YZ8: 695.7865699 | ZA8: 927.8587169 | ZB8: 754.5725563 | ZC8: 917.9020247 | ZD8: 234.0508118 | ZE8: 740.4792828 | ZF8: 788.5277338 | ZG8: 754.3950856 | ZH8: 702.8024822 | ZI8: 660.7999903 | ZJ8: 938.398398 | ZK8: 997.9728881 | ZL8: 272.7925485 | ZM8: 816.4174505 | ZN8: 1038.358183 | ZO8: 712.0705321 | ZP8: 999.108351 | ZQ8: 797.8176985 | ZR8: 753.9226765 | ZS8: 469.4233425 | ZT8: 626.7821109 | ZU8: 856.1100332 | ZV8: 1006.560267 | ZW8: 464.1786226 | ZX8: 722.7487712 | ZY8: 515.8906618 | ZZ8: 703.2819653 | AAA8: 830.9175624 | AAB8: 727.2362017 | AAC8: 752.4556569 | AAD8: 883.9690533 | AAE8: 817.7251837 | AAF8: 893.7231779 | AAG8: 574.3017476 | AAH8: 932.096316 | AAI8: 759.4942327 | AAJ8: 669.918058 | AAK8: 406.324782 | AAL8: 774.0177385 | AAM8: 781.1910951 | AAN8: 1047.495632 | AAO8: 726.8904332 | AAP8: 818.8768102 | AAQ8: 729.468934 | AAR8: 973.9694527 | AAS8: 826.1887271 | AAT8: 896.8743926 | AAU8: 830.3916135 | AAV8: 431.6855979 | AAW8: 730.1904063 | AAX8: 884.0863357 | AAY8: 702.6217674 | AAZ8: 522.6947306 | ABA8: 629.1920243 | ABB8: 726.4765748 | ABC8: 762.0678764 | ABD8: 860.810193 | ABE8: 781.2451348 | ABF8: 890.6408331 | ABG8: 718.8467558 | ABH8: 782.7382023 | ABI8: 946.6407918 | ABJ8: 671.1313426 | ABK8: 733.390492 | ABL8: 712.6536974 | ABM8: 870.3522659 | ABN8: 619.0731558 | ABO8: 876.4721803 | ABP8: 470.2019858 | ABQ8: 742.9582413 | ABR8: 667.2330967 | ABS8: 973.3796028 | ABT8: 595.558146 | ABU8: 837.9771555 | ABV8: 692.2257724 | ABW8: 200.1442543 | ABX8: 642.2074276 | ABY8: 559.6933272 | ABZ8: 905.1955342 | ACA8: 762.2465263 | ACB8: 746.5849013 | ACC8: 643.4097262 | ACD8: 790.9409127 | ACE8: 890.9995145 | ACF8: 1090.73697 | ACG8: 1024.867327 | ACH8: 682.9133441 | ACI8: 694.3699328 | ACJ8: 830.8009323 | ACK8: 1011.541188 | ACL8: 722.4072526 | ACM8: 721.210279 | ACN8: 1108.188905 | ACO8: 1182.547094 | ACP8: 788.1528901 | ACQ8: 802.0978719 | ACR8: 687.4101731 | ACS8: 783.5569578 | ACT8: 760.9420402 | ACU8: 666.2712712 | ACV8: 696.8038912 | ACW8: 733.2420752 | ACX8: 712.7348841 | ACY8: 724.3408233 | ACZ8: 607.2815022 | ADA8: 503.1797815 | ADB8: 797.1702681 | ADC8: 595.2745146 | ADD8: 1002.448867 | ADE8: 413.6839367 | ADF8: 955.0400987 | ADG8: 744.5701422 | ADH8: 752.7466515 | ADI8: 755.1443 | ADJ8: 1032.588954 | ADK8: 754.3361001 | ADL8: 692.6874517 | ADM8: 795.5633863 | ADN8: 841.8364585 | ADO8: 713.1713569 | ADP8: 697.4730457 | ADQ8: 764.6820406 | ADR8: 1039.159234 | ADS8: 616.5257858 | ADT8: 692.8596729 | ADU8: 749.5075502 | ADV8: 680.5545435 | ADW8: 1001.111935 | ADX8: 865.7202051 | ADY8: 960.2810533 | ADZ8: 241.8516602 | AEA8: 778.1766092 | AEB8: 673.1476259 | AEC8: 749.6184043 | AED8: 835.6794756 | AEE8: 644.9912465 | AEF8: 584.6539951 | AEG8: 921.4218871 | AEH8: 1028.899134 | AEI8: 999.7804539 | AEJ8: 667.3434352 | AEK8: 557.3077961 | AEL8: 842.9120527 | AEM8: 1115.743735 | AEN8: 661.2968162 | AEO8: 783.1151227 | AEP8: 736.8760134 | AEQ8: 1018.386805 | AER8: 627.1542403 | AES8: 697.1588333 | AET8: 635.460894 | AEU8: 776.6726553 | AEV8: 951.7044386 | AEW8: 720.2732023 | AEX8: 894.9862798 | AEY8: 616.0447378 | AEZ8: 667.1567346 | AFA8: 745.4228196 | AFB8: 629.5361285 | AFC8: 760.113829 | AFD8: 651.971348 | AFE8: 1091.241964 | AFF8: 669.8718204 | AFG8: 688.4693452 | AFH8: 950.7443455 | AFI8: -1.609040551 | AFJ8: 556.7623624 | AFK8: 702.1414637 | AFL8: 712.0739721 | AFM8: 649.031369 | AFN8: 339.2931114 | AFO8: 824.683847 | AFP8: 907.0565092 | AFQ8: 959.1885583 | AFR8: 807.8811413 | AFS8: 871.8465504 | AFT8: 970.4212732 | AFU8: 1095.379045 | AFV8: 811.2414514 | AFW8: 746.3446455 | AFX8: 376.0096516 | AFY8: 655.2680282 | AFZ8: 817.5509317 | AGA8: 939.3126949 | AGB8: 784.0374766 | AGC8: 758.6217974 | AGD8: 430.0053862 | AGE8: 805.7582645 | AGF8: 1039.02381 | AGG8: 809.9886448 | AGH8: 998.28522 | AGI8: 811.5470287 | AGJ8: 710.3298199 | AGK8: 675.3640569 | AGL8: 991.184291 | AGM8: 589.9049195 | AGN8: 735.898227 | AGO8: 646.6465384 | AGP8: 742.9925965 | AGQ8: 902.6345214 | AGR8: 638.4363078 | AGS8: 798.7219509 | AGT8: 953.1133565 | AGU8: 738.433394 | AGV8: 225.6398159 | AGW8: 577.9960854 | AGX8: 1003.205744 | AGY8: 864.6450769 | AGZ8: 542.0670482 | AHA8: 801.3835756 | AHB8: 951.2009271 | AHC8: 1233.249153 | AHD8: 760.6790675 | AHE8: 981.8228306 | AHF8: 639.9177406 | AHG8: 733.8143101 | AHH8: 907.637316 | AHI8: 725.1679415 | AHJ8: 727.5155136 | AHK8: 773.1514263 | AHL8: 614.5387224 | AHM8: 965.2391036 | AHN8: 823.1961666 | AHO8: 226.6573686 | AHP8: 930.905873 | AHQ8: 879.1930115 | AHR8: 880.3963837 | AHS8: 918.6350087 | AHT8: 1076.560632 | AHU8: 733.7365849 | AHV8: 696.6126375 | AHW8: 676.2689497 | AHX8: 819.6046261 | AHY8: 489.0041275 | AHZ8: 535.7468276 | AIA8: 924.1730357 | AIB8: 1253.413787 | AIC8: 431.9650957 | AID8: 656.2212086 | AIE8: 533.6806928 | AIF8: 645.172932 | AIG8: 470.7564615 | AIH8: 758.1818154 | AII8: 815.4188729 | AIJ8: 884.8887619 | AIK8: 915.7194908 | AIL8: 535.1078745 | AIM8: 623.2927904 | AIN8: 823.1197547 | AIO8: 828.3705263 | AIP8: 727.9152138 | AIQ8: 686.8246514 | AIR8: 630.0537021 | AIS8: 982.8461944 | AIT8: 773.0498378 | AIU8: 785.1412478 | AIV8: 857.7972899 | AIW8: 575.4561106 | AIX8: 282.6721692 | AIY8: 744.0363154 | AIZ8: 813.6449885 | AJA8: 628.9737994 | AJB8: 753.3723552 | AJC8: 542.6605749 | AJD8: 813.2795648 | AJE8: 789.9042927 | AJF8: 670.8001414 | AJG8: 640.1627608 | AJH8: 787.9668444 | AJI8: 886.2371639 | AJJ8: 664.1308757 | AJK8: 764.6109902 | AJL8: 663.1974524 | AJM8: 788.7609459 | AJN8: 633.2151779 | AJO8: 945.3987438 | AJP8: 717.1711686 | AJQ8: 619.3467226 | AJR8: 616.2989957 | AJS8: 960.9421957 | AJT8: 542.8883 | AJU8: 702.9066608 | AJV8: 638.3542308 | AJW8: 706.5705968 | AJX8: 739.8719497 | AJY8: 695.2847746 | AJZ8: 798.7502487 | AKA8: 688.2925478 | AKB8: 463.4554933 | AKC8: 743.7355325 | AKD8: 777.2919037 | AKE8: 633.3230763 | AKF8: 679.458708 | AKG8: 815.1093663 | AKH8: 614.3530393 | AKI8: 645.2923831 | AKJ8: 752.6308548 | AKK8: 480.0496239 | AKL8: 1010.066276 | AKM8: 725.3130488 | AKN8: 1025.530474 | AKO8: 568.3087506 | AKP8: 842.9441288 | AKQ8: 628.529438 | AKR8: 870.6778105 | AKS8: 645.5152857 | AKT8: 1071.511034 | AKU8: 790.6726737 | AKV8: 651.5867046 | AKW8: 676.1853025 | AKX8: 592.7887575 | AKY8: 644.367221 | AKZ8: 1110.61527 | ALA8: 865.2808176 | ALB8: 325.3029558 | ALC8: 646.4711397 | ALD8: 946.5996672 | ALE8: 606.137336 | ALF8: 732.9901052 | ALG8: 909.651195 | ALH8: 647.8037018 | ALI8: 808.6744443 | ALJ8: 620.5606419 | ALK8: 780.452431 | ALL8: 789.3595148 | ALM8: 625.0939232 | ALN8: 795.1294108 | ALO8: 751.2360104 | ALP8: 720.6823121 | ALQ8: 754.1896465 | ALR8: 885.7598741 | ALS8: 310.3375121 | ALT8: 589.7680168 | ALU8: 829.4663385 | ALV8: 575.2141593 | ALW8: 820.1140367 | ALX8: 1085.585367 | ALY8: 936.7713427 | ALZ8: 692.3579486 | AMA8: 824.8305192 | AMB8: 692.0553135 | AMC8: 717.7794873 | AMD8: 709.5521973 | AME8: 643.9104845 | AMF8: 703.9846745 | AMG8: 901.4337088 | AMH8: 659.2307732 | AMI8: 950.466961
A9: =ROW(Variables[[#This Row],[Variable Name]])-ROW(Variables[[#Headers],[Variable Name]]) -> 1 | B9: Percent reduction in labor cost | C9: Reduc | D9: =IF(COUNTA(Variables[[#This Row],[Lower Bound]], Variables[[#This Row],[Mode or P]], Variables[[#This Row],[Upper Bound]])=0, "", IF(Variables[[#This Row],[Shape]]="Constant",Variables[[#This Row],[Mode or P]],IF(Variables[[#This Row],[Shape]]="Lognorm",LOGINV(Variables[[#This Row],[Uniform PRNG]],((LN(Variables[[#This Row],[Lower Bound]]) + LN(Variables[[#This Row],[Upper Bound]]))/2),((LN(Variables[[#This Row],[Upper Bound]]) - LN(Variables[[#This Row],[Lower Bound]]))/3.28971)),IF(Variables[[#This Row],[Shape]]="Normal",NORMINV(Variables[[#This Row],[Uniform PRNG]],(Variables[[#This Row],[Upper Bound]]+Variables[[#This Row],[Lower Bound]])/2,(Variables[[#This Row],[Upper Bound]]-Variables[[#This Row],[Lower Bound]])/3.29),IF(Variables[[#This Row],[Shape]]="Uniform",(Variables[[#This Row],[Upper Bound]]-Variables[[#This Row],[Lower Bound]])*Variables[[#This Row],[Uniform PRNG]]+Variables[[#This Row],[Lower Bound]],IF(Variables[[#This Row],[Shape]]="Binary",IF(Variables[[#This Row],[Uniform PRNG]]<Variables[[#This Row],[Mode or P]],1,0),IF(Variables[[#This Row],[Shape]]="Triangular",IF(Variables[[#This Row],[Uniform PRNG]]<(Variables[[#This Row],[Mode or P]]-Variables[[#This Row],[Lower Bound]])/(Variables[[#This Row],[Upper Bound]]-Variables[[#This Row],[Lower Bound]]), 1, 0) * (Variables[[#This Row],[Lower Bound]] + SQRT(Variables[[#This Row],[Uniform PRNG]]*(Variables[[#This Row],[Upper Bound]]-Variables[[#This Row],[Lower Bound]])*(Variables[[#This Row],[Mode or P]]-Variables[[#This Row],[Lower Bound]]))) + IF(Variables[[#This Row],[Uniform PRNG]]>= (Variables[[#This Row],[Mode or P]]-Variables[[#This Row],[Lower Bound]])/(Variables[[#This Row],[Upper Bound]]-Variables[[#This Row],[Lower Bound]]), 1, 0) * (Variables[[#This Row],[Upper Bound]] - SQRT((1-Variables[[#This Row],[Uniform PRNG]]) * (Variables[[#This Row],[Upper Bound]] - Variables[[#This Row],[Lower Bound]]) * (Variables[[#This Row],[Upper Bound]] - Variables[[#This Row],[Mode or P]]))),""))))))) -> 0.06382204901 | E9: Triangular | F9: 0.02 | G9: 0.03 | H9: 0.1 | I9: CE, PM 2/15/2019 | J9: =IFERROR(IF(OR(MIN(Variables[[#This Row],[P(X<T)]], Variables[[#This Row],[P(X>T)]])<0.002,SIGN(Variables[[#This Row],[EOL(X<T)]])=SIGN(Variables[[#This Row],[EOL(X>T)]])),0,IFERROR(IF(B$38=1,IF(Variables[[#This Row],[EOL(X<T)]]<Variables[[#This Row],[EOL(X>T)]],-Variables[[#This Row],[EOL(X<T)]]*Variables[[#This Row],[P(X<T)]],-Variables[[#This Row],[EOL(X>T)]]*Variables[[#This Row],[P(X>T)]]),IF(Variables[[#This Row],[EOL(X<T)]]>Variables[[#This Row],[EOL(X>T)]],Variables[[#This Row],[EOL(X<T)]]*Variables[[#This Row],[P(X<T)]],Variables[[#This Row],[EOL(X>T)]]*Variables[[#This Row],[P(X>T)]])),"")),0) -> 345.2178108 | K9: =IF(Variables[[#This Row],[Shape]]="Constant",Variables[[#This Row],[Mode or P]],IF(Variables[[#This Row],[Shape]]="Lognorm",EXP((LN(Variables[[#This Row],[Upper Bound]])+LN(Variables[[#This Row],[Lower Bound]]))/2+((LN(Variables[[#This Row],[Upper Bound]])-LN(Variables[[#This Row],[Lower Bound]]))/3.29)^2/2),IF(Variables[[#This Row],[Shape]]="Normal",(Variables[[#This Row],[Lower Bound]]+Variables[[#This Row],[Upper Bound]])/2,IF(Variables[[#This Row],[Shape]]="Uniform",(Variables[[#This Row],[Lower Bound]]+Variables[[#This Row],[Upper Bound]])/2,IF(Variables[[#This Row],[Shape]]="Binary",Variables[[#This Row],[Mode or P]],IF(Variables[[#This Row],[Shape]]="Triangular",(Variables[[#This Row],[Lower Bound]]+Variables[[#This Row],[Mode or P]]+Variables[[#This Row],[Upper Bound]])/3,"")))))) -> 0.05 | L9: =IF(Variables[[#This Row],[Shape]]="","",(MOD((MOD(MOD(999999999999989,MOD(ScenarioNum*2499997+Variables[[#This Row],[VarID]]*1800451,7450589)*4658+7450581)*383,99991)*7440893+MOD(MOD(999999999999989,MOD(ScenarioNum*2246527+Variables[[#This Row],[VarID]]*2399993,7450987)*7580+7560584)*17669,7440893))*1343,4294967296)+0.5)/4294967296) -> 0.7662778326 | M9: =IF(Variables[[#This Row],[Shape]]="Binary", 1-Variables[[#This Row],[Mode or P]], IF(Variables[[#This Row],[Shape]]<>"",COUNTIF(INDEX($X$9:$AMI$159, ROW(Variables[[#This Row],[Variable Name]])-ROW(Variables[[#Headers],[Variable Name]]), ),"<"&Variables[[#This Row],[Threshold Estimate]])/1000,"")) -> 0.215 | N9: =IF(Variables[[#This Row],[Shape]]<>"",1-Variables[[#This Row],[P(X<T)]],"") -> 0.785 | O9: =IFERROR(AVERAGEIFS(X$7:AMI$7,INDEX(X$9:$AMI$159, ROW(Variables[[#This Row],[Variable Name]])-ROW(Variables[[#Headers],[Variable Name]]), ),IF(Variables[[#This Row],[Shape]]="Binary","=0","<"&Variables[[#This Row],[Threshold Estimate]])),"") -> -1605.664236 | P9: =IFERROR(AVERAGEIFS(X$7:AMI$7,INDEX($X$9:$AMI$159, ROW(Variables[[#This Row],[Variable Name]])-ROW(Variables[[#Headers],[Variable Name]]), ),IF(Variables[[#This Row],[Shape]]="Binary","=1",">"&Variables[[#This Row],[Threshold Estimate]])),"") -> 5905.024283 | Q9: =IFERROR(IF(Variables[[#This Row],[Shape]]="Binary",IF(B$38=1,IF(Variables[[#This Row],[EOL(X<T)]]<Variables[[#This Row],[EOL(X>T)]],0,1),IF(Variables[[#This Row],[EOL(X<T)]]<Variables[[#This Row],[EOL(X>T)]],1,0)), INDEX($AOF$9:$AOF$159, ROW(Variables[[#This Row],[Variable Name]])-ROW(Variables[[#Headers],[Variable Name]]))),"") -> 0.03287553688 | S9: Binary | U9: Sampled Variable Values | V9: =IFERROR(IF(ISBLANK(Variables[[#This Row],[Variable Name]]), "", Variables[[#This Row],[Variable Name]]), "") -> Percent reduction in labor cost | W9: =IFERROR(IF(ISBLANK(D9), "", D9), "") -> 0.06382204901 | X9: 0.03292308599 | Y9: 0.02917435005 | Z9: 0.04227840377 | AA9: 0.04797592888 | AB9: 0.04421837811 | AC9: 0.04159081669 | AD9: 0.02368799278 | AE9: 0.06700404424 | AF9: 0.08745892625 | AG9: 0.03306796984 | AH9: 0.0523907751 | AI9: 0.04521083093 | AJ9: 0.03074736438 | AK9: 0.05128060565 | AL9: 0.03821503969 | AM9: 0.06076862285 | AN9: 0.05907365729 | AO9: 0.05826623327 | AP9: 0.08797858621 | AQ9: 0.09465055138 | AR9: 0.03894408295 | AS9: 0.03731560073 | AT9: 0.02644397549 | AU9: 0.09594164729 | AV9: 0.0681089669 | AW9: 0.03457179289 | AX9: 0.04912609904 | AY9: 0.05171385995 | AZ9: 0.05349548144 | BA9: 0.02264830082 | BB9: 0.09420262759 | BC9: 0.06114735218 | BD9: 0.03513177202 | BE9: 0.02998765386 | BF9: 0.02965357586 | BG9: 0.02325000967 | BH9: 0.03451723691 | BI9: 0.03927079357 | BJ9: 0.04073224976 | BK9: 0.04642497312 | BL9: 0.04710428406 | BM9: 0.02968683608 | BN9: 0.05650863074 | BO9: 0.07678492255 | BP9: 0.09220455757 | BQ9: 0.02811371402 | BR9: 0.02557171546 | BS9: 0.07233786437 | BT9: 0.03561056348 | BU9: 0.04494383562 | BV9: 0.0407364748 | BW9: 0.03331921214 | BX9: 0.04216076958 | BY9: 0.04481564679 | BZ9: 0.03192202574 | CA9: 0.06082224075 | CB9: 0.05834124716 | CC9: 0.03233661202 | CD9: 0.06891581888 | CE9: 0.04078862344 | CF9: 0.04292803235 | CG9: 0.02977109102 | CH9: 0.05418650365 | CI9: 0.086457943 | CJ9: 0.06946494845 | CK9: 0.03295318906 | CL9: 0.04339359685 | CM9: 0.04379151374 | CN9: 0.03446759833 | CO9: 0.04048398469 | CP9: 0.04889996384 | CQ9: 0.04891440253 | CR9: 0.03085894256 | CS9: 0.03690636816 | CT9: 0.07075902482 | CU9: 0.02585851896 | CV9: 0.03917744728 | CW9: 0.04550816392 | CX9: 0.03677493212 | CY9: 0.07451249646 | CZ9: 0.05169241561 | DA9: 0.04822353065 | DB9: 0.03788544272 | DC9: 0.04110382238 | DD9: 0.06651551575 | DE9: 0.04305850351 | DF9: 0.0815598542 | DG9: 0.0463331289 | DH9: 0.0496162258 | DI9: 0.02209737173 | DJ9: 0.08304893254 | DK9: 0.02334827033 | DL9: 0.07540778049 | DM9: 0.02645318899 | DN9: 0.07253905927 | DO9: 0.04302262607 | DP9: 0.02913058953 | DQ9: 0.0592538534 | DR9: 0.07912945384 | DS9: 0.03588827948 | DT9: 0.02612210523 | DU9: 0.06496081689 | DV9: 0.03476623016 | DW9: 0.05731117451 | DX9: 0.04550028406 | DY9: 0.06821136276 | DZ9: 0.06695446997 | EA9: 0.05373443894 | EB9: 0.02916373321 | EC9: 0.04174221139 | ED9: 0.03571053033 | EE9: 0.05137891618 | EF9: 0.0256802178 | EG9: 0.06625044731 | EH9: 0.02818529245 | EI9: 0.05202437737 | EJ9: 0.04820655855 | EK9: 0.03732769444 | EL9: 0.07114409137 | EM9: 0.06350991194 | EN9: 0.0535482898 | EO9: 0.06510514353 | EP9: 0.04166656591 | EQ9: 0.02527797866 | ER9: 0.04293548765 | ES9: 0.05614243993 | ET9: 0.03661123046 | EU9: 0.05561295845 | EV9: 0.05263137641 | EW9: 0.06111240627 | EX9: 0.06097676674 | EY9: 0.06603482683 | EZ9: 0.02790603028 | FA9: 0.06372179902 | FB9: 0.02907503144 | FC9: 0.08914615643 | FD9: 0.08395968191 | FE9: 0.06606264321 | FF9: 0.06461711392 | FG9: 0.03574616797 | FH9: 0.0453908317 | FI9: 0.04157191084 | FJ9: 0.06299257205 | FK9: 0.0493501517 | FL9: 0.06174859487 | FM9: 0.02473045499 | FN9: 0.03464769774 | FO9: 0.03897262533 | FP9: 0.08271656936 | FQ9: 0.08074450624 | FR9: 0.03649476422 | FS9: 0.06334745257 | FT9: 0.0760371277 | FU9: 0.04461734864 | FV9: 0.05506379325 | FW9: 0.03275499838 | FX9: 0.08244229181 | FY9: 0.02907815728 | FZ9: 0.03643257003 | GA9: 0.04352395298 | GB9: 0.05683312521 | GC9: 0.02123863602 | GD9: 0.06752997219 | GE9: 0.02526700404 | GF9: 0.07487004087 | GG9: 0.03546036006 | GH9: 0.0342420382 | GI9: 0.02508605504 | GJ9: 0.05538985151 | GK9: 0.03204288214 | GL9: 0.05666662434 | GM9: 0.03372833194 | GN9: 0.03112237234 | GO9: 0.03374499203 | GP9: 0.08451858582 | GQ9: 0.05760448362 | GR9: 0.05082605442 | GS9: 0.05708193121 | GT9: 0.03779714128 | GU9: 0.08947261782 | GV9: 0.09147448764 | GW9: 0.02784808469 | GX9: 0.03661360922 | GY9: 0.06032992039 | GZ9: 0.0470897418 | HA9: 0.02949771552 | HB9: 0.06555374665 | HC9: 0.07947782338 | HD9: 0.05643469492 | HE9: 0.037765973 | HF9: 0.05976269778 | HG9: 0.05275620301 | HH9: 0.0753468458 | HI9: 0.05758514183 | HJ9: 0.05136796439 | HK9: 0.04516745286 | HL9: 0.04960250582 | HM9: 0.02972831999 | HN9: 0.02982936746 | HO9: 0.05216646903 | HP9: 0.05177641896 | HQ9: 0.08604674979 | HR9: 0.04176063115 | HS9: 0.05872987429 | HT9: 0.03893635523 | HU9: 0.05856065638 | HV9: 0.06309457169 | HW9: 0.03255107616 | HX9: 0.05390852519 | HY9: 0.05531045885 | HZ9: 0.07362901958 | IA9: 0.02982121862 | IB9: 0.03483005739 | IC9: 0.05242012596 | ID9: 0.06665644801 | IE9: 0.06697750864 | IF9: 0.03585188211 | IG9: 0.03977695739 | IH9: 0.06880643091 | II9: 0.06130995437 | IJ9: 0.03063131234 | IK9: 0.08225993996 | IL9: 0.03349582962 | IM9: 0.02921366673 | IN9: 0.06303766857 | IO9: 0.0276069327 | IP9: 0.03916965605 | IQ9: 0.04051819261 | IR9: 0.04098635643 | IS9: 0.0804461172 | IT9: 0.06134234641 | IU9: 0.03538251436 | IV9: 0.02814969721 | IW9: 0.06235298433 | IX9: 0.04643731359 | IY9: 0.04157371475 | IZ9: 0.05686725767 | JA9: 0.03066547997 | JB9: 0.0558567408 | JC9: 0.07502972539 | JD9: 0.03098945704 | JE9: 0.04821240065 | JF9: 0.03952136495 | JG9: 0.0737064794 | JH9: 0.05581824201 | JI9: 0.04293102147 | JJ9: 0.03507845518 | JK9: 0.06559671449 | JL9: 0.02519118497 | JM9: 0.03466481292 | JN9: 0.08169519132 | JO9: 0.0414168786 | JP9: 0.03800193895 | JQ9: 0.05287367192 | JR9: 0.06306972947 | JS9: 0.05035293909 | JT9: 0.03202263262 | JU9: 0.05403300677 | JV9: 0.07789525635 | JW9: 0.02138205836 | JX9: 0.04239772655 | JY9: 0.06316370551 | JZ9: 0.05180492575 | KA9: 0.0544682705 | KB9: 0.05415352637 | KC9: 0.02656351216 | KD9: 0.03550635475 | KE9: 0.04093882141 | KF9: 0.03690746308 | KG9: 0.05663166278 | KH9: 0.04816957233 | KI9: 0.03465057227 | KJ9: 0.03407949022 | KK9: 0.06711722079 | KL9: 0.05020697006 | KM9: 0.03550553058 | KN9: 0.03787009703 | KO9: 0.04841703755 | KP9: 0.05812330646 | KQ9: 0.05159988465 | KR9: 0.07518150035 | KS9: 0.05191636547 | KT9: 0.06933066283 | KU9: 0.02260821104 | KV9: 0.07061042041 | KW9: 0.05374420344 | KX9: 0.03216710252 | KY9: 0.04272973555 | KZ9: 0.06068255051 | LA9: 0.07071271877 | LB9: 0.07091931132 | LC9: 0.06172613509 | LD9: 0.02853650097 | LE9: 0.08663993845 | LF9: 0.04158679978 | LG9: 0.04775859096 | LH9: 0.0478713875 | LI9: 0.04651152336 | LJ9: 0.04482159071 | LK9: 0.0309703417 | LL9: 0.06544211412 | LM9: 0.03312345635 | LN9: 0.05459323109 | LO9: 0.03358769265 | LP9: 0.02834041251 | LQ9: 0.0802363685 | LR9: 0.05278044395 | LS9: 0.05388767838 | LT9: 0.04708548261 | LU9: 0.05935808912 | LV9: 0.02555912729 | LW9: 0.05074592788 | LX9: 0.04836164823 | LY9: 0.0318569817 | LZ9: 0.03339395554 | MA9: 0.0389589991 | MB9: 0.08797399638 | MC9: 0.02663446995 | MD9: 0.05808669812 | ME9: 0.08590815388 | MF9: 0.04505659819 | MG9: 0.03416729593 | MH9: 0.03111969739 | MI9: 0.07442679864 | MJ9: 0.03962709259 | MK9: 0.05238392537 | ML9: 0.0495623779 | MM9: 0.04852653139 | MN9: 0.04363390188 | MO9: 0.03093912454 | MP9: 0.05195517716 | MQ9: 0.0416575355 | MR9: 0.03085483745 | MS9: 0.03186832389 | MT9: 0.04965460824 | MU9: 0.02701495078 | MV9: 0.04128463402 | MW9: 0.04063840483 | MX9: 0.02704307904 | MY9: 0.04713709972 | MZ9: 0.0362341267 | NA9: 0.02555640422 | NB9: 0.06888530994 | NC9: 0.05044208604 | ND9: 0.0573147295 | NE9: 0.02640767549 | NF9: 0.05341707403 | NG9: 0.03952002225 | NH9: 0.06074771877 | NI9: 0.0354164259 | NJ9: 0.03986436808 | NK9: 0.04082752761 | NL9: 0.05497033642 | NM9: 0.04231996944 | NN9: 0.07153746502 | NO9: 0.05113011946 | NP9: 0.07783013534 | NQ9: 0.02998876184 | NR9: 0.03607948983 | NS9: 0.04374061596 | NT9: 0.04372584187 | NU9: 0.05547378487 | NV9: 0.05652942493 | NW9: 0.05969733608 | NX9: 0.06382204901 | NY9: 0.02918822836 | NZ9: 0.07674918793 | OA9: 0.04907912494 | OB9: 0.06319775945 | OC9: 0.07879958792 | OD9: 0.05319547022 | OE9: 0.03638007825 | OF9: 0.06230469727 | OG9: 0.049046009 | OH9: 0.04354671933 | OI9: 0.03699469048 | OJ9: 0.03158322247 | OK9: 0.03924242114 | OL9: 0.08147170408 | OM9: 0.05105373251 | ON9: 0.02839471976 | OO9: 0.05382491346 | OP9: 0.03956283883 | OQ9: 0.07688910293 | OR9: 0.04048332562 | OS9: 0.06597685754 | OT9: 0.07196780462 | OU9: 0.07906390036 | OV9: 0.09558631144 | OW9: 0.05766851493 | OX9: 0.03761563336 | OY9: 0.04317113589 | OZ9: 0.06806185358 | PA9: 0.0227102968 | PB9: 0.04386717624 | PC9: 0.03979222333 | PD9: 0.06971959735 | PE9: 0.07176295959 | PF9: 0.05046109707 | PG9: 0.0441016935 | PH9: 0.08495235638 | PI9: 0.03358937678 | PJ9: 0.07082897535 | PK9: 0.04785199499 | PL9: 0.03480063897 | PM9: 0.0584822377 | PN9: 0.06092007753 | PO9: 0.09566528442 | PP9: 0.07773998469 | PQ9: 0.04447027342 | PR9: 0.05741287707 | PS9: 0.0320289036 | PT9: 0.0530737323 | PU9: 0.02581380931 | PV9: 0.08314607686 | PW9: 0.07255308526 | PX9: 0.05757988602 | PY9: 0.02396046859 | PZ9: 0.04118737793 | QA9: 0.02950801004 | QB9: 0.03734158727 | QC9: 0.06724383976 | QD9: 0.08293693915 | QE9: 0.04624764281 | QF9: 0.05002667529 | QG9: 0.02953359622 | QH9: 0.07463007981 | QI9: 0.06991932482 | QJ9: 0.04261451752 | QK9: 0.08289125959 | QL9: 0.07503767956 | QM9: 0.07614290217 | QN9: 0.02552631228 | QO9: 0.06941778665 | QP9: 0.05502523468 | QQ9: 0.02567958336 | QR9: 0.03076756887 | QS9: 0.04769621429 | QT9: 0.03557613251 | QU9: 0.03448394538 | QV9: 0.05019671562 | QW9: 0.08448436646 | QX9: 0.04556339095 | QY9: 0.03976251028 | QZ9: 0.06520930628 | RA9: 0.02646869311 | RB9: 0.05152427684 | RC9: 0.03678565038 | RD9: 0.03091051817 | RE9: 0.02989960842 | RF9: 0.03789198735 | RG9: 0.0427453691 | RH9: 0.04654463457 | RI9: 0.06913411538 | RJ9: 0.03400376065 | RK9: 0.02677965457 | RL9: 0.08958312036 | RM9: 0.04957657926 | RN9: 0.03293534627 | RO9: 0.03299988211 | RP9: 0.0360028016 | RQ9: 0.05409796237 | RR9: 0.04611532231 | RS9: 0.02470026251 | RT9: 0.03422297991 | RU9: 0.08198884538 | RV9: 0.06403606119 | RW9: 0.02441240411 | RX9: 0.03004319065 | RY9: 0.04949241643 | RZ9: 0.08608560373 | SA9: 0.06296777897 | SB9: 0.07766934247 | SC9: 0.07371581531 | SD9: 0.05299523733 | SE9: 0.06520965832 | SF9: 0.03785183759 | SG9: 0.03178900941 | SH9: 0.06012904234 | SI9: 0.03235712568 | SJ9: 0.03909050538 | SK9: 0.03046327899 | SL9: 0.07987850972 | SM9: 0.07159956219 | SN9: 0.06071797214 | SO9: 0.03737932486 | SP9: 0.02570274678 | SQ9: 0.03531471524 | SR9: 0.03843370104 | SS9: 0.08689933701 | ST9: 0.08818083339 | SU9: 0.0309129863 | SV9: 0.03827563408 | SW9: 0.02538878327 | SX9: 0.05921467206 | SY9: 0.0721210136 | SZ9: 0.03100874657 | TA9: 0.05910593543 | TB9: 0.04828669661 | TC9: 0.0491825351 | TD9: 0.05798107116 | TE9: 0.05752515776 | TF9: 0.0787863579 | TG9: 0.0314925954 | TH9: 0.03842084017 | TI9: 0.02339303578 | TJ9: 0.03478201872 | TK9: 0.08566820455 | TL9: 0.07076389562 | TM9: 0.03120432994 | TN9: 0.04641262797 | TO9: 0.04387313035 | TP9: 0.04562860598 | TQ9: 0.0270958031 | TR9: 0.09051518796 | TS9: 0.03687621695 | TT9: 0.03159249302 | TU9: 0.03286430731 | TV9: 0.02967768784 | TW9: 0.07533681169 | TX9: 0.03119004446 | TY9: 0.02976345929 | TZ9: 0.04126474278 | UA9: 0.03492299952 | UB9: 0.04905127275 | UC9: 0.03511004594 | UD9: 0.04519518904 | UE9: 0.03562615149 | UF9: 0.0539600999 | UG9: 0.02783661699 | UH9: 0.04390508171 | UI9: 0.07012589407 | UJ9: 0.06843692951 | UK9: 0.06460056595 | UL9: 0.08140246281 | UM9: 0.0632217553 | UN9: 0.06836510283 | UO9: 0.0446250751 | UP9: 0.05937248373 | UQ9: 0.02800188306 | UR9: 0.09241681791 | US9: 0.02871412217 | UT9: 0.0581612422 | UU9: 0.0440500248 | UV9: 0.0561327361 | UW9: 0.06866481753 | UX9: 0.0283604887 | UY9: 0.02446964097 | UZ9: 0.06451994272 | VA9: 0.03558430711 | VB9: 0.03328684093 | VC9: 0.06308504092 | VD9: 0.04226047337 | VE9: 0.04983259914 | VF9: 0.04833923575 | VG9: 0.08642874073 | VH9: 0.06150535595 | VI9: 0.06693137102 | VJ9: 0.06353129258 | VK9: 0.03157056069 | VL9: 0.0431695309 | VM9: 0.02844599816 | VN9: 0.04067536666 | VO9: 0.04823224004 | VP9: 0.06185757257 | VQ9: 0.04064407736 | VR9: 0.05259857382 | VS9: 0.05625955512 | VT9: 0.02615677287 | VU9: 0.0293105581 | VV9: 0.06747333367 | VW9: 0.03433826735 | VX9: 0.08623562795 | VY9: 0.09441696603 | VZ9: 0.03612760621 | WA9: 0.05417587795 | WB9: 0.08136089228 | WC9: 0.05817357644 | WD9: 0.04346512815 | WE9: 0.05729232995 | WF9: 0.03121570963 | WG9: 0.05569177357 | WH9: 0.03147694931 | WI9: 0.03704253382 | WJ9: 0.06206105692 | WK9: 0.03664511732 | WL9: 0.06944687188 | WM9: 0.02358427755 | WN9: 0.05490631844 | WO9: 0.02839664974 | WP9: 0.03068988248 | WQ9: 0.03605643635 | WR9: 0.0266208683 | WS9: 0.03304246443 | WT9: 0.06256441025 | WU9: 0.07513559164 | WV9: 0.04264629257 | WW9: 0.03727381448 | WX9: 0.02796925818 | WY9: 0.07753518693 | WZ9: 0.06146365757 | XA9: 0.04773499156 | XB9: 0.03044789815 | XC9: 0.03460901531 | XD9: 0.02966226155 | XE9: 0.04637651076 | XF9: 0.07078421535 | XG9: 0.06041065707 | XH9: 0.04765127842 | XI9: 0.03606231761 | XJ9: 0.05286461257 | XK9: 0.08361291218 | XL9: 0.03693119963 | XM9: 0.02168699022 | XN9: 0.04326950527 | XO9: 0.03403890293 | XP9: 0.02752789105 | XQ9: 0.0432032752 | XR9: 0.04952943984 | XS9: 0.06178987947 | XT9: 0.02789082419 | XU9: 0.09119034816 | XV9: 0.07274133879 | XW9: 0.08535801864 | XX9: 0.05635583341 | XY9: 0.0877406673 | XZ9: 0.0281485763 | YA9: 0.09403644835 | YB9: 0.04417757287 | YC9: 0.0877850871 | YD9: 0.02248061411 | YE9: 0.06017244083 | YF9: 0.03427995393 | YG9: 0.06020651637 | YH9: 0.09603933546 | YI9: 0.07073415328 | YJ9: 0.04482828577 | YK9: 0.02542868422 | YL9: 0.05463953078 | YM9: 0.02654435676 | YN9: 0.05804784094 | YO9: 0.04575558308 | YP9: 0.05040074498 | YQ9: 0.0551241853 | YR9: 0.04564334113 | YS9: 0.03304886873 | YT9: 0.04617056754 | YU9: 0.05795240616 | YV9: 0.02950491334 | YW9: 0.03361104562 | YX9: 0.06966824823 | YY9: 0.03359493685 | YZ9: 0.03970358439 | ZA9: 0.07032547132 | ZB9: 0.04760081849 | ZC9: 0.06599914269 | ZD9: 0.02249695348 | ZE9: 0.04037407192 | ZF9: 0.02656535879 | ZG9: 0.06493236331 | ZH9: 0.04444018793 | ZI9: 0.04011374361 | ZJ9: 0.07636834246 | ZK9: 0.06642631296 | ZL9: 0.04023772763 | ZM9: 0.03979442802 | ZN9: 0.0791966602 | ZO9: 0.06706087385 | ZP9: 0.0696481521 | ZQ9: 0.0536264814 | ZR9: 0.03330514237 | ZS9: 0.07822836009 | ZT9: 0.02962306584 | ZU9: 0.04857344945 | ZV9: 0.08242466785 | ZW9: 0.02818948079 | ZX9: 0.03331381451 | ZY9: 0.02956715341 | ZZ9: 0.043529335 | AAA9: 0.05132842635 | AAB9: 0.03029889176 | AAC9: 0.0268628544 | AAD9: 0.06795999902 | AAE9: 0.0606774099 | AAF9: 0.07594843724 | AAG9: 0.02460284562 | AAH9: 0.05515049079 | AAI9: 0.03991917612 | AAJ9: 0.0301695526 | AAK9: 0.06620625224 | AAL9: 0.05232275129 | AAM9: 0.037656067 | AAN9: 0.08287224666 | AAO9: 0.04094283519 | AAP9: 0.05546202126 | AAQ9: 0.03646136624 | AAR9: 0.08347311721 | AAS9: 0.05995203627 | AAT9: 0.04800348122 | AAU9: 0.04455741668 | AAV9: 0.05182434532 | AAW9: 0.0514929232 | AAX9: 0.05579215159 | AAY9: 0.03848457537 | AAZ9: 0.03847763283 | ABA9: 0.03000542234 | ABB9: 0.05443233389 | ABC9: 0.04641099776 | ABD9: 0.05821417243 | ABE9: 0.04536637695 | ABF9: 0.05573858113 | ABG9: 0.05085920488 | ABH9: 0.07851049578 | ABI9: 0.05362486968 | ABJ9: 0.03843842877 | ABK9: 0.02752578172 | ABL9: 0.0320934008 | ABM9: 0.04973590279 | ABN9: 0.03272580182 | ABO9: 0.0760405859 | ABP9: 0.02751518055 | ABQ9: 0.05533789285 | ABR9: 0.02895227283 | ABS9: 0.06512327987 | ABT9: 0.0351565222 | ABU9: 0.06748330558 | ABV9: 0.02193994277 | ABW9: 0.02348702404 | ABX9: 0.02956164519 | ABY9: 0.04434542727 | ABZ9: 0.04247227073 | ACA9: 0.04930418385 | ACB9: 0.04232639215 | ACC9: 0.04787900034 | ACD9: 0.03512077838 | ACE9: 0.05950222797 | ACF9: 0.06854251549 | ACG9: 0.06505445159 | ACH9: 0.0257899875 | ACI9: 0.04563359772 | ACJ9: 0.05280231444 | ACK9: 0.07472051881 | ACL9: 0.03665097456 | ACM9: 0.03169218028 | ACN9: 0.06132902549 | ACO9: 0.09206447787 | ACP9: 0.06609409058 | ACQ9: 0.04156669903 | ACR9: 0.02840749198 | ACS9: 0.05180013175 | ACT9: 0.05877764701 | ACU9: 0.03982910308 | ACV9: 0.04987777369 | ACW9: 0.06102254141 | ACX9: 0.02847824765 | ACY9: 0.0281342202 | ACZ9: 0.04871898895 | ADA9: 0.06166781759 | ADB9: 0.0726488054 | ADC9: 0.03809779621 | ADD9: 0.06805536931 | ADE9: 0.03145498497 | ADF9: 0.05580224325 | ADG9: 0.04678335393 | ADH9: 0.04569639453 | ADI9: 0.03335438269 | ADJ9: 0.08605019191 | ADK9: 0.02859240984 | ADL9: 0.04038606357 | ADM9: 0.03481615561 | ADN9: 0.05805688999 | ADO9: 0.03113092422 | ADP9: 0.02661949323 | ADQ9: 0.04698996061 | ADR9: 0.07680328114 | ADS9: 0.05653904054 | ADT9: 0.03504784589 | ADU9: 0.04846315924 | ADV9: 0.0332021429 | ADW9: 0.09410592688 | ADX9: 0.06338256745 | ADY9: 0.07635797785 | ADZ9: 0.06166847816 | AEA9: 0.02895534705 | AEB9: 0.0270653057 | AEC9: 0.04783536648 | AED9: 0.07917964892 | AEE9: 0.03325123693 | AEF9: 0.02462066336 | AEG9: 0.05227631168 | AEH9: 0.06921543136 | AEI9: 0.0792771781 | AEJ9: 0.02334665119 | AEK9: 0.02278042449 | AEL9: 0.06122113711 | AEM9: 0.0690765403 | AEN9: 0.03276654402 | AEO9: 0.02598158989 | AEP9: 0.04700874517 | AEQ9: 0.07484754147 | AER9: 0.02223695265 | AES9: 0.0737507314 | AET9: 0.04054576002 | AEU9: 0.05102509633 | AEV9: 0.0649069375 | AEW9: 0.03156970061 | AEX9: 0.06687258576 | AEY9: 0.03207806471 | AEZ9: 0.03085619274 | AFA9: 0.07970784208 | AFB9: 0.02618757776 | AFC9: 0.05104946583 | AFD9: 0.02805136266 | AFE9: 0.08847615403 | AFF9: 0.05053959291 | AFG9: 0.03439212111 | AFH9: 0.06446502825 | AFI9: 0.02979062558 | AFJ9: 0.03380908142 | AFK9: 0.03657983466 | AFL9: 0.04056307667 | AFM9: 0.06054348032 | AFN9: 0.0267940774 | AFO9: 0.03540637125 | AFP9: 0.06689474505 | AFQ9: 0.04672568201 | AFR9: 0.05219507338 | AFS9: 0.05304254382 | AFT9: 0.07329128522 | AFU9: 0.07854075995 | AFV9: 0.04955476514 | AFW9: 0.03702559339 | AFX9: 0.03230382677 | AFY9: 0.05178180483 | AFZ9: 0.06344451506 | AGA9: 0.05873195974 | AGB9: 0.03920934432 | AGC9: 0.03007636987 | AGD9: 0.06352781977 | AGE9: 0.05047085564 | AGF9: 0.08483516888 | AGG9: 0.04613201916 | AGH9: 0.06775552403 | AGI9: 0.05044896519 | AGJ9: 0.06303356734 | AGK9: 0.02698475983 | AGL9: 0.05991489854 | AGM9: 0.07220564263 | AGN9: 0.04731116191 | AGO9: 0.02570547941 | AGP9: 0.03147640609 | AGQ9: 0.05868404245 | AGR9: 0.02264501923 | AGS9: 0.04335156324 | AGT9: 0.06958680828 | AGU9: 0.04204475389 | AGV9: 0.06243100721 | AGW9: 0.05334162124 | AGX9: 0.06999708744 | AGY9: 0.05497914794 | AGZ9: 0.03044085341 | AHA9: 0.04416664662 | AHB9: 0.06871868888 | AHC9: 0.08045877045 | AHD9: 0.05043868257 | AHE9: 0.07000381678 | AHF9: 0.02930793205 | AHG9: 0.04060192608 | AHH9: 0.05840069478 | AHI9: 0.02780171903 | AHJ9: 0.04246334165 | AHK9: 0.04275498964 | AHL9: 0.02885288679 | AHM9: 0.08801679437 | AHN9: 0.04776519035 | AHO9: 0.03468887605 | AHP9: 0.07205659054 | AHQ9: 0.06373210721 | AHR9: 0.06062658541 | AHS9: 0.07942455881 | AHT9: 0.08058234653 | AHU9: 0.06951754379 | AHV9: 0.04254749943 | AHW9: 0.03066964521 | AHX9: 0.04771424845 | AHY9: 0.02656062678 | AHZ9: 0.03749794166 | AIA9: 0.06148835721 | AIB9: 0.09806969366 | AIC9: 0.0222757251 | AID9: 0.03460248416 | AIE9: 0.03066738192 | AIF9: 0.02612769271 | AIG9: 0.03615688864 | AIH9: 0.03734002176 | AII9: 0.04411417456 | AIJ9: 0.06925604847 | AIK9: 0.06529852261 | AIL9: 0.04468336023 | AIM9: 0.04104328466 | AIN9: 0.05036890158 | AIO9: 0.05959270949 | AIP9: 0.02989278119 | AIQ9: 0.05021992789 | AIR9: 0.02678671427 | AIS9: 0.06196081414 | AIT9: 0.04274964927 | AIU9: 0.05405194101 | AIV9: 0.07008700187 | AIW9: 0.03230699127 | AIX9: 0.04755239221 | AIY9: 0.04379472556 | AIZ9: 0.05052046015 | AJA9: 0.02414827112 | AJB9: 0.06159145226 | AJC9: 0.02624951335 | AJD9: 0.03762368766 | AJE9: 0.05695424453 | AJF9: 0.03174844989 | AJG9: 0.03234775458 | AJH9: 0.0473770762 | AJI9: 0.07216248245 | AJJ9: 0.03285755859 | AJK9: 0.03683253675 | AJL9: 0.04307796044 | AJM9: 0.03997727316 | AJN9: 0.03206462562 | AJO9: 0.06747239474 | AJP9: 0.03334010475 | AJQ9: 0.03921031832 | AJR9: 0.03645126747 | AJS9: 0.05796675263 | AJT9: 0.02950661626 | AJU9: 0.05142777596 | AJV9: 0.02342903538 | AJW9: 0.05742756874 | AJX9: 0.05145641123 | AJY9: 0.04181724673 | AJZ9: 0.05133216687 | AKA9: 0.04099079125 | AKB9: 0.03270465696 | AKC9: 0.06775583808 | AKD9: 0.02753790331 | AKE9: 0.02399853908 | AKF9: 0.03275486255 | AKG9: 0.03721242957 | AKH9: 0.03287177121 | AKI9: 0.02288835186 | AKJ9: 0.03890115797 | AKK9: 0.03276123328 | AKL9: 0.0567085227 | AKM9: 0.04113340499 | AKN9: 0.09564492853 | AKO9: 0.02761363581 | AKP9: 0.07868004682 | AKQ9: 0.04195635321 | AKR9: 0.05856531207 | AKS9: 0.03878870508 | AKT9: 0.09136413451 | AKU9: 0.04492404332 | AKV9: 0.04943118597 | AKW9: 0.03716875936 | AKX9: 0.02770997044 | AKY9: 0.02760109063 | AKZ9: 0.08945383791 | ALA9: 0.04488661355 | ALB9: 0.02949072943 | ALC9: 0.03818431773 | ALD9: 0.06283851572 | ALE9: 0.04098738595 | ALF9: 0.034120785 | ALG9: 0.08457475922 | ALH9: 0.0280941666 | ALI9: 0.04433153845 | ALJ9: 0.02680462036 | ALK9: 0.03755405347 | ALL9: 0.05222676462 | ALM9: 0.03050816331 | ALN9: 0.05059742917 | ALO9: 0.05529301102 | ALP9: 0.0423399881 | ALQ9: 0.04001819571 | ALR9: 0.06314847556 | ALS9: 0.04468888517 | ALT9: 0.02491443419 | ALU9: 0.03551369245 | ALV9: 0.03345190757 | ALW9: 0.05883338872 | ALX9: 0.07659341692 | ALY9: 0.07219544076 | ALZ9: 0.03252184839 | AMA9: 0.04567823657 | AMB9: 0.05285521132 | AMC9: 0.03797620881 | AMD9: 0.03561269667 | AME9: 0.03901591263 | AMF9: 0.02763319955 | AMG9: 0.04873653203 | AMH9: 0.02827702184 | AMI9: 0.06236179479 | AML9: =IFERROR(AVERAGEIFS($X9:$AMI9,$X9:$AMI9,"<"&SMALL($X9:$AMI9,AMM$7),$X9:$AMI9,">"&SMALL($X9:$AMI9,AMK$7)),"") -> 0.02560410322 | AMM9: =IFERROR(AVERAGEIFS($X9:$AMI9,$X9:$AMI9,"<"&SMALL($X9:$AMI9,AMN$7),$X9:$AMI9,">"&SMALL($X9:$AMI9,AML$7)),"") -> 0.02820074673 | AMN9: =IFERROR(AVERAGEIFS($X9:$AMI9,$X9:$AMI9,"<"&SMALL($X9:$AMI9,AMO$7),$X9:$AMI9,">"&SMALL($X9:$AMI9,AMM$7)),"") -> 0.03023889867 | AMO9: 0.03223696424 | AMP9: 0.03427833909 | AMQ9: 0.03640156651 | AMR9: 0.03878192572 | AMS9: 0.04126379879 | AMT9: 0.04371711826 | AMU9: 0.0464258875 | AMV9: 0.04923075875 | AMW9: 0.05191264094 | AMX9: 0.05491620618 | AMY9: 0.05823654172 | AMZ9: 0.06162860927 | ANA9: 0.06551446259 | ANB9: 0.06999423661 | ANC9: =IFERROR(AVERAGEIFS($X9:$AMI9,$X9:$AMI9,"<"&SMALL($X9:$AMI9,AND$7),$X9:$AMI9,">"&SMALL($X9:$AMI9,ANB$7)),"") -> 0.07581327883 | AND9: =IFERROR(AVERAGEIFS($X9:$AMI9,$X9:$AMI9,"<"&SMALL($X9:$AMI9,ANE$7),$X9:$AMI9,">"&SMALL($X9:$AMI9,ANC$7)),"") -> 0.08411039022 | ANF9: =IFERROR(AVERAGEIFS($X$7:$AMI$7,$X9:$AMI9,"<"&SMALL($X9:$AMI9,AMM$7),$X9:$AMI9,">"&SMALL($X9:$AMI9,AMK$7)),"") -> -1836.402828 | ANG9: =IFERROR(AVERAGEIFS($X$7:$AMI$7,$X9:$AMI9,"<"&SMALL($X9:$AMI9,AMN$7),$X9:$AMI9,">"&SMALL($X9:$AMI9,AML$7)),"") -> -1527.418291 | ANH9: -1469.922176 | ANI9: -356.0033706 | ANJ9: 644.5006182 | ANK9: 1233.903311 | ANL9: 1987.115259 | ANM9: 2325.078067 | ANN9: 2908.754566 | ANO9: 3766.177831 | ANP9: 4264.558238 | ANQ9: 4898.499492 | ANR9: 6024.647635 | ANS9: 6972.899124 | ANT9: 6805.597384 | ANU9: 7400.829682 | ANV9: 9485.231568 | ANW9: 11462.06093 | ANX9: 14047.94021 | ANY9: =IFERROR(MATCH(MIN(ABS(ANF9:ANX9)),ABS(ANF9:ANX9),0),"") -> 4 | ANZ9: =IFERROR(INDEX(ANF9:ANX9,MIN(MAX(ANY9-1,1),17)),"") -> -1469.922176 | AOA9: =IFERROR(INDEX(ANF9:ANX9,MIN(MAX(ANY9,2),18)),"") -> -356.0033706 | AOB9: =IFERROR(INDEX(ANF9:ANX9,MIN(MAX(ANY9,3),19)),"") -> -356.0033706 | AOC9: =IFERROR(INDEX(AML9:AND9,MIN(MAX(ANY9-1,1),17)),"") -> 0.03023889867 | AOD9: =IFERROR(INDEX(AML9:AND9,MIN(MAX(ANY9,2),18)),"") -> 0.03223696424 | AOE9: =IFERROR(INDEX(AML9:AND9,MIN(MAX(ANY9,3),19)),"") -> 0.03223696424 | AOF9: =IFERROR(FORECAST(0,AOC9:AOE9,ANZ9:AOB9),"") -> 0.03287553688
A10: =ROW(Variables[[#This Row],[Variable Name]])-ROW(Variables[[#Headers],[Variable Name]]) -> 2 | B10: Current total labor cost | C10: LoadLab | D10: =IF(COUNTA(Variables[[#This Row],[Lower Bound]], Variables[[#This Row],[Mode or P]], Variables[[#This Row],[Upper Bound]])=0, "", IF(Variables[[#This Row],[Shape]]="Constant",Variables[[#This Row],[Mode or P]],IF(Variables[[#This Row],[Shape]]="Lognorm",LOGINV(Variables[[#This Row],[Uniform PRNG]],((LN(Variables[[#This Row],[Lower Bound]]) + LN(Variables[[#This Row],[Upper Bound]]))/2),((LN(Variables[[#This Row],[Upper Bound]]) - LN(Variables[[#This Row],[Lower Bound]]))/3.28971)),IF(Variables[[#This Row],[Shape]]="Normal",NORMINV(Variables[[#This Row],[Uniform PRNG]],(Variables[[#This Row],[Upper Bound]]+Variables[[#This Row],[Lower Bound]])/2,(Variables[[#This Row],[Upper Bound]]-Variables[[#This Row],[Lower Bound]])/3.29),IF(Variables[[#This Row],[Shape]]="Uniform",(Variables[[#This Row],[Upper Bound]]-Variables[[#This Row],[Lower Bound]])*Variables[[#This Row],[Uniform PRNG]]+Variables[[#This Row],[Lower Bound]],IF(Variables[[#This Row],[Shape]]="Binary",IF(Variables[[#This Row],[Uniform PRNG]]<Variables[[#This Row],[Mode or P]],1,0),IF(Variables[[#This Row],[Shape]]="Triangular",IF(Variables[[#This Row],[Uniform PRNG]]<(Variables[[#This Row],[Mode or P]]-Variables[[#This Row],[Lower Bound]])/(Variables[[#This Row],[Upper Bound]]-Variables[[#This Row],[Lower Bound]]), 1, 0) * (Variables[[#This Row],[Lower Bound]] + SQRT(Variables[[#This Row],[Uniform PRNG]]*(Variables[[#This Row],[Upper Bound]]-Variables[[#This Row],[Lower Bound]])*(Variables[[#This Row],[Mode or P]]-Variables[[#This Row],[Lower Bound]]))) + IF(Variables[[#This Row],[Uniform PRNG]]>= (Variables[[#This Row],[Mode or P]]-Variables[[#This Row],[Lower Bound]])/(Variables[[#This Row],[Upper Bound]]-Variables[[#This Row],[Lower Bound]]), 1, 0) * (Variables[[#This Row],[Upper Bound]] - SQRT((1-Variables[[#This Row],[Uniform PRNG]]) * (Variables[[#This Row],[Upper Bound]] - Variables[[#This Row],[Lower Bound]]) * (Variables[[#This Row],[Upper Bound]] - Variables[[#This Row],[Mode or P]]))),""))))))) -> 52564.23923 | E10: Lognorm | F10: 50000 | H10: 90000 | I10: HR | J10: =IFERROR(IF(OR(MIN(Variables[[#This Row],[P(X<T)]], Variables[[#This Row],[P(X>T)]])<0.002,SIGN(Variables[[#This Row],[EOL(X<T)]])=SIGN(Variables[[#This Row],[EOL(X>T)]])),0,IFERROR(IF(B$38=1,IF(Variables[[#This Row],[EOL(X<T)]]<Variables[[#This Row],[EOL(X>T)]],-Variables[[#This Row],[EOL(X<T)]]*Variables[[#This Row],[P(X<T)]],-Variables[[#This Row],[EOL(X>T)]]*Variables[[#This Row],[P(X>T)]]),IF(Variables[[#This Row],[EOL(X<T)]]>Variables[[#This Row],[EOL(X>T)]],Variables[[#This Row],[EOL(X<T)]]*Variables[[#This Row],[P(X<T)]],Variables[[#This Row],[EOL(X>T)]]*Variables[[#This Row],[P(X>T)]])),"")),0) -> 2.316476384 | K10: =IF(Variables[[#This Row],[Shape]]="Constant",Variables[[#This Row],[Mode or P]],IF(Variables[[#This Row],[Shape]]="Lognorm",EXP((LN(Variables[[#This Row],[Upper Bound]])+LN(Variables[[#This Row],[Lower Bound]]))/2+((LN(Variables[[#This Row],[Upper Bound]])-LN(Variables[[#This Row],[Lower Bound]]))/3.29)^2/2),IF(Variables[[#This Row],[Shape]]="Normal",(Variables[[#This Row],[Lower Bound]]+Variables[[#This Row],[Upper Bound]])/2,IF(Variables[[#This Row],[Shape]]="Uniform",(Variables[[#This Row],[Lower Bound]]+Variables[[#This Row],[Upper Bound]])/2,IF(Variables[[#This Row],[Shape]]="Binary",Variables[[#This Row],[Mode or P]],IF(Variables[[#This Row],[Shape]]="Triangular",(Variables[[#This Row],[Lower Bound]]+Variables[[#This Row],[Mode or P]]+Variables[[#This Row],[Upper Bound]])/3,"")))))) -> 68161.2198 | L10: =IF(Variables[[#This Row],[Shape]]="","",(MOD((MOD(MOD(999999999999989,MOD(ScenarioNum*2499997+Variables[[#This Row],[VarID]]*1800451,7450589)*4658+7450581)*383,99991)*7440893+MOD(MOD(999999999999989,MOD(ScenarioNum*2246527+Variables[[#This Row],[VarID]]*2399993,7450987)*7580+7560584)*17669,7440893))*1343,4294967296)+0.5)/4294967296) -> 0.08613542758 | M10: =IF(Variables[[#This Row],[Shape]]="Binary", 1-Variables[[#This Row],[Mode or P]], IF(Variables[[#This Row],[Shape]]<>"",COUNTIF(INDEX($X$9:$AMI$159, ROW(Variables[[#This Row],[Variable Name]])-ROW(Variables[[#Headers],[Variable Name]]), ),"<"&Variables[[#This Row],[Threshold Estimate]])/1000,"")) -> 0.014 | N10: =IF(Variables[[#This Row],[Shape]]<>"",1-Variables[[#This Row],[P(X<T)]],"") -> 0.986 | O10: =IFERROR(AVERAGEIFS(X$7:AMI$7,INDEX(X$9:$AMI$159, ROW(Variables[[#This Row],[Variable Name]])-ROW(Variables[[#Headers],[Variable Name]]), ),IF(Variables[[#This Row],[Shape]]="Binary","=0","<"&Variables[[#This Row],[Threshold Estimate]])),"") -> -165.4625988 | P10: =IFERROR(AVERAGEIFS(X$7:AMI$7,INDEX($X$9:$AMI$159, ROW(Variables[[#This Row],[Variable Name]])-ROW(Variables[[#Headers],[Variable Name]]), ),IF(Variables[[#This Row],[Shape]]="Binary","=1",">"&Variables[[#This Row],[Threshold Estimate]])),"") -> 4353.491611 | Q10: =IFERROR(IF(Variables[[#This Row],[Shape]]="Binary",IF(B$38=1,IF(Variables[[#This Row],[EOL(X<T)]]<Variables[[#This Row],[EOL(X>T)]],0,1),IF(Variables[[#This Row],[EOL(X<T)]]<Variables[[#This Row],[EOL(X>T)]],1,0)), INDEX($AOF$9:$AOF$159, ROW(Variables[[#This Row],[Variable Name]])-ROW(Variables[[#Headers],[Variable Name]]))),"") -> 43164.00503 | S10: Uniform | V10: =IFERROR(IF(ISBLANK(Variables[[#This Row],[Variable Name]]), "", Variables[[#This Row],[Variable Name]]), "") -> Current total labor cost | W10: =IFERROR(IF(ISBLANK(D10), "", D10), "") -> 52564.23923 | X10: 50272.6712 | Y10: 54732.84144 | Z10: 64425.95229 | AA10: 81826.84807 | AB10: 86966.2456 | AC10: 53063.4585 | AD10: 82439.07028 | AE10: 60878.04049 | AF10: 70780.50552 | AG10: 58560.66653 | AH10: 78322.58974 | AI10: 86822.76908 | AJ10: 60972.37705 | AK10: 52087.25909 | AL10: 51394.01139 | AM10: 72867.27288 | AN10: 80664.70638 | AO10: 60369.74515 | AP10: 56563.48791 | AQ10: 58787.34164 | AR10: 71254.63389 | AS10: 82326.05598 | AT10: 57845.83036 | AU10: 73806.36872 | AV10: 64584.09364 | AW10: 62094.80657 | AX10: 85888.49519 | AY10: 61998.27499 | AZ10: 64519.82689 | BA10: 79230.87509 | BB10: 52098.84033 | BC10: 65690.93304 | BD10: 47482.65831 | BE10: 72748.34742 | BF10: 59263.91296 | BG10: 65393.35214 | BH10: 57531.90433 | BI10: 63528.21862 | BJ10: 81424.57469 | BK10: 60635.70021 | BL10: 81579.05163 | BM10: 64427.62895 | BN10: 71484.93492 | BO10: 75591.51823 | BP10: 80246.44018 | BQ10: 61849.30295 | BR10: 67374.16346 | BS10: 76335.79402 | BT10: 84234.95023 | BU10: 66542.64474 | BV10: 59467.672 | BW10: 75500.3482 | BX10: 61142.05013 | BY10: 68632.78124 | BZ10: 81784.922 | CA10: 77566.96783 | CB10: 83604.0172 | CC10: 73281.50328 | CD10: 55350.20625 | CE10: 67366.9616 | CF10: 72942.61769 | CG10: 69778.25138 | CH10: 53667.91212 | CI10: 64037.07982 | CJ10: 96341.64654 | CK10: 66568.63888 | CL10: 91474.46235 | CM10: 64696.53066 | CN10: 68490.88108 | CO10: 51447.50006 | CP10: 62088.64812 | CQ10: 64642.25259 | CR10: 52953.76647 | CS10: 58798.72474 | CT10: 52357.18765 | CU10: 110836.6358 | CV10: 61132.15592 | CW10: 70266.39644 | CX10: 69044.00005 | CY10: 72818.83655 | CZ10: 79123.09342 | DA10: 86459.18025 | DB10: 75441.16125 | DC10: 68702.83613 | DD10: 54429.47965 | DE10: 64436.90055 | DF10: 54598.56498 | DG10: 54441.05012 | DH10: 77089.61719 | DI10: 53094.88133 | DJ10: 68199.87676 | DK10: 85677.35348 | DL10: 62903.77806 | DM10: 45380.77115 | DN10: 71314.53999 | DO10: 61753.95487 | DP10: 64106.38305 | DQ10: 87083.77293 | DR10: 73052.09844 | DS10: 51437.03544 | DT10: 71748.6667 | DU10: 88739.71994 | DV10: 69580.37996 | DW10: 66082.63893 | DX10: 75945.86213 | DY10: 81864.26419 | DZ10: 87190.14046 | EA10: 56740.79818 | EB10: 56458.52035 | EC10: 79582.03497 | ED10: 51305.39302 | EE10: 61761.14098 | EF10: 52384.88616 | EG10: 67461.49048 | EH10: 78844.06016 | EI10: 74714.99664 | EJ10: 48010.56211 | EK10: 85297.62558 | EL10: 69810.42383 | EM10: 80093.44286 | EN10: 58917.72402 | EO10: 76268.65698 | EP10: 58975.27575 | EQ10: 70905.63048 | ER10: 82228.70066 | ES10: 68945.3286 | ET10: 66202.6127 | EU10: 64839.51409 | EV10: 73565.78279 | EW10: 67374.68869 | EX10: 35969.10452 | EY10: 70750.34045 | EZ10: 61158.46426 | FA10: 90783.44887 | FB10: 54770.80678 | FC10: 69745.55589 | FD10: 69731.35005 | FE10: 60039.02246 | FF10: 57797.57621 | FG10: 60153.41221 | FH10: 84211.45694 | FI10: 47919.24981 | FJ10: 74735.99365 | FK10: 55027.67601 | FL10: 64937.09406 | FM10: 74272.20287 | FN10: 44933.28779 | FO10: 69242.46478 | FP10: 68341.80301 | FQ10: 64625.66551 | FR10: 56789.00198 | FS10: 44620.05648 | FT10: 68056.52127 | FU10: 94939.84139 | FV10: 67568.20421 | FW10: 96629.49492 | FX10: 62536.61156 | FY10: 62023.99897 | FZ10: 72811.44085 | GA10: 50506.94591 | GB10: 58804.38988 | GC10: 55348.05468 | GD10: 58342.27573 | GE10: 75847.75148 | GF10: 57074.81353 | GG10: 55032.79351 | GH10: 88157.75584 | GI10: 78140.46213 | GJ10: 67768.65079 | GK10: 42585.0881 | GL10: 58011.06714 | GM10: 66644.86816 | GN10: 82691.43196 | GO10: 68879.59984 | GP10: 69801.29272 | GQ10: 66993.52108 | GR10: 72353.92165 | GS10: 57895.44973 | GT10: 75426.34922 | GU10: 71781.3818 | GV10: 57468.72189 | GW10: 84048.09319 | GX10: 44275.97019 | GY10: 62053.42253 | GZ10: 63829.58089 | HA10: 45862.54435 | HB10: 66659.12989 | HC10: 80454.76894 | HD10: 67512.99349 | HE10: 48413.59671 | HF10: 64617.30047 | HG10: 65686.13723 | HH10: 79634.47111 | HI10: 59691.74681 | HJ10: 64753.55923 | HK10: 72132.66947 | HL10: 78696.11385 | HM10: 133008.1262 | HN10: 64091.17777 | HO10: 65596.09056 | HP10: 92892.1227 | HQ10: 69531.53686 | HR10: 53768.88252 | HS10: 61606.60527 | HT10: 60082.48278 | HU10: 53456.33564 | HV10: 56089.64004 | HW10: 52340.72507 | HX10: 68721.37704 | HY10: 59669.73787 | HZ10: 66894.98461 | IA10: 67095.33416 | IB10: 58857.65521 | IC10: 89848.65299 | ID10: 67727.51509 | IE10: 68603.09843 | IF10: 70614.13424 | IG10: 65080.74374 | IH10: 63006.29805 | II10: 62417.9116 | IJ10: 52430.6974 | IK10: 64655.01873 | IL10: 55074.48353 | IM10: 62549.21252 | IN10: 61415.19345 | IO10: 67168.07968 | IP10: 78082.80948 | IQ10: 57609.77686 | IR10: 71852.30329 | IS10: 41658.25383 | IT10: 49608.40041 | IU10: 94788.53715 | IV10: 77650.56896 | IW10: 61007.6506 | IX10: 70934.61762 | IY10: 57464.828 | IZ10: 71056.22256 | JA10: 73111.94941 | JB10: 52461.10691 | JC10: 62487.76024 | JD10: 64901.53879 | JE10: 72792.30265 | JF10: 62129.45185 | JG10: 94607.51291 | JH10: 60077.12655 | JI10: 63548.67344 | JJ10: 74758.8207 | JK10: 41730.80733 | JL10: 70591.08983 | JM10: 55549.9077 | JN10: 68753.20431 | JO10: 75572.32522 | JP10: 65582.48774 | JQ10: 66333.37563 | JR10: 85517.18155 | JS10: 51949.32981 | JT10: 70558.58623 | JU10: 69433.27316 | JV10: 47662.61834 | JW10: 76294.23128 | JX10: 59047.63028 | JY10: 50782.05913 | JZ10: 62150.17289 | KA10: 58968.60273 | KB10: 65533.14538 | KC10: 44958.71429 | KD10: 72296.20515 | KE10: 77988.19713 | KF10: 81020.92967 | KG10: 69723.6076 | KH10: 90712.7255 | KI10: 78633.82942 | KJ10: 79922.28852 | KK10: 74901.47989 | KL10: 69371.56709 | KM10: 73700.58221 | KN10: 74601.91381 | KO10: 59872.59059 | KP10: 67082.89827 | KQ10: 81481.27593 | KR10: 65436.79373 | KS10: 57467.73457 | KT10: 73921.71898 | KU10: 72993.71021 | KV10: 61794.03611 | KW10: 45014.04421 | KX10: 72134.91691 | KY10: 51016.71114 | KZ10: 72499.42484 | LA10: 75085.16172 | LB10: 57100.25648 | LC10: 67134.75375 | LD10: 41858.19864 | LE10: 48479.65749 | LF10: 63035.74179 | LG10: 80145.37301 | LH10: 62838.4771 | LI10: 63201.068 | LJ10: 62774.51675 | LK10: 73391.42759 | LL10: 80894.02062 | LM10: 68542.92264 | LN10: 67561.24199 | LO10: 68162.32272 | LP10: 55976.83815 | LQ10: 63929.11518 | LR10: 64009.09743 | LS10: 73050.43086 | LT10: 66209.43969 | LU10: 63690.43093 | LV10: 62536.77349 | LW10: 66787.04627 | LX10: 64621.62725 | LY10: 52682.60788 | LZ10: 68427.62857 | MA10: 70530.934 | MB10: 67065.09655 | MC10: 73702.48952 | MD10: 58671.83063 | ME10: 77056.88836 | MF10: 74228.95386 | MG10: 74148.33129 | MH10: 91375.7215 | MI10: 58317.42098 | MJ10: 65472.46175 | MK10: 62161.35907 | ML10: 83406.98143 | MM10: 78521.4431 | MN10: 63767.67913 | MO10: 77535.72065 | MP10: 56013.22054 | MQ10: 61643.27016 | MR10: 62780.16269 | MS10: 68744.68075 | MT10: 74015.58843 | MU10: 56657.90391 | MV10: 59948.35536 | MW10: 51660.72448 | MX10: 57697.41055 | MY10: 71059.10577 | MZ10: 47084.75087 | NA10: 70536.84164 | NB10: 104437.4387 | NC10: 81984.22076 | ND10: 87387.10104 | NE10: 60642.99156 | NF10: 72808.23411 | NG10: 49989.91063 | NH10: 70929.66164 | NI10: 75834.13466 | NJ10: 87711.89638 | NK10: 67880.82655 | NL10: 62072.35288 | NM10: 54112.78614 | NN10: 66788.44682 | NO10: 54596.88247 | NP10: 67168.76004 | NQ10: 76125.22433 | NR10: 69981.13994 | NS10: 98448.3063 | NT10: 67401.73274 | NU10: 79218.27772 | NV10: 58660.54113 | NW10: 82323.8472 | NX10: 52564.23923 | NY10: 71266.80883 | NZ10: 77207.74526 | OA10: 49929.13434 | OB10: 69396.79381 | OC10: 81144.7893 | OD10: 75128.95695 | OE10: 73297.61679 | OF10: 57242.31479 | OG10: 71717.65435 | OH10: 84799.49616 | OI10: 70678.53039 | OJ10: 68114.31421 | OK10: 75712.32614 | OL10: 88992.45611 | OM10: 70832.38777 | ON10: 77742.52963 | OO10: 65040.63739 | OP10: 107301.0196 | OQ10: 52620.73838 | OR10: 66831.10353 | OS10: 57948.43921 | OT10: 74369.56322 | OU10: 71711.78111 | OV10: 61925.51914 | OW10: 59649.87596 | OX10: 74832.5819 | OY10: 62949.31386 | OZ10: 52546.95772 | PA10: 65602.5902 | PB10: 53254.58715 | PC10: 68365.3639 | PD10: 63758.24983 | PE10: 71586.65131 | PF10: 63572.09807 | PG10: 75465.56373 | PH10: 57782.54023 | PI10: 63074.252 | PJ10: 66527.70727 | PK10: 93029.92913 | PL10: 57567.35944 | PM10: 67638.07509 | PN10: 47519.6299 | PO10: 51454.36484 | PP10: 62043.03179 | PQ10: 74364.22012 | PR10: 84039.75025 | PS10: 54983.15582 | PT10: 48425.402 | PU10: 71835.8767 | PV10: 61216.5082 | PW10: 76969.86208 | PX10: 56474.31947 | PY10: 63872.47574 | PZ10: 58185.98223 | QA10: 81670.45159 | QB10: 67139.15045 | QC10: 43824.95037 | QD10: 60269.73975 | QE10: 57182.11324 | QF10: 69625.54059 | QG10: 71398.27683 | QH10: 58884.82867 | QI10: 103048.0043 | QJ10: 67336.53123 | QK10: 55236.8303 | QL10: 41963.18321 | QM10: 74914.98423 | QN10: 58498.89017 | QO10: 80392.64075 | QP10: 82849.82562 | QQ10: 48917.30958 | QR10: 55525.07508 | QS10: 73545.89696 | QT10: 59771.13572 | QU10: 84204.41187 | QV10: 88037.72548 | QW10: 55634.23184 | QX10: 80831.97681 | QY10: 64229.35056 | QZ10: 63029.59184 | RA10: 61069.70068 | RB10: 52528.06937 | RC10: 89112.97023 | RD10: 63234.77111 | RE10: 79066.75337 | RF10: 70399.34151 | RG10: 68103.5174 | RH10: 59857.33612 | RI10: 56007.55441 | RJ10: 62258.80015 | RK10: 52616.64372 | RL10: 70952.16965 | RM10: 61081.73568 | RN10: 59902.18186 | RO10: 58098.17096 | RP10: 63971.81193 | RQ10: 74227.71703 | RR10: 38700.97763 | RS10: 41504.78334 | RT10: 69096.13562 | RU10: 94643.5016 | RV10: 70707.03158 | RW10: 58759.18435 | RX10: 67781.69144 | RY10: 65308.62159 | RZ10: 54740.98911 | SA10: 60037.06817 | SB10: 84306.31496 | SC10: 65707.49983 | SD10: 58237.67155 | SE10: 73465.08271 | SF10: 98419.23424 | SG10: 65018.49162 | SH10: 54980.52201 | SI10: 73317.27581 | SJ10: 74071.22525 | SK10: 48594.93848 | SL10: 83795.84878 | SM10: 51262.75187 | SN10: 65281.68115 | SO10: 91290.88563 | SP10: 61483.48102 | SQ10: 61994.68792 | SR10: 50314.42451 | SS10: 72096.59471 | ST10: 69469.68215 | SU10: 59433.43715 | SV10: 77833.31199 | SW10: 51271.97029 | SX10: 78485.06675 | SY10: 80873.29828 | SZ10: 50720.28407 | TA10: 82309.93464 | TB10: 57519.96443 | TC10: 51738.0185 | TD10: 53759.88488 | TE10: 77639.49795 | TF10: 42565.38776 | TG10: 107137.1489 | TH10: 86590.04657 | TI10: 79150.44674 | TJ10: 72677.93463 | TK10: 74879.73429 | TL10: 54767.73437 | TM10: 72528.03656 | TN10: 58165.00051 | TO10: 90308.2994 | TP10: 54585.21838 | TQ10: 71343.28444 | TR10: 63234.65555 | TS10: 79495.53319 | TT10: 57951.89659 | TU10: 80613.7734 | TV10: 65391.10231 | TW10: 80877.44289 | TX10: 68023.73226 | TY10: 53561.58375 | TZ10: 50083.8121 | UA10: 66624.50071 | UB10: 81611.41501 | UC10: 69541.45032 | UD10: 57829.45323 | UE10: 60289.46109 | UF10: 62652.39271 | UG10: 80652.49237 | UH10: 63732.4489 | UI10: 61747.76395 | UJ10: 68045.71716 | UK10: 63358.44731 | UL10: 67353.70778 | UM10: 79687.76881 | UN10: 65509.36411 | UO10: 79185.85061 | UP10: 62732.85157 | UQ10: 62632.70766 | UR10: 53182.92097 | US10: 62475.639 | UT10: 61300.94933 | UU10: 57239.55195 | UV10: 63874.14735 | UW10: 45232.54487 | UX10: 103606.8063 | UY10: 60322.94323 | UZ10: 68008.38325 | VA10: 67575.74494 | VB10: 57773.56075 | VC10: 50294.64213 | VD10: 74913.53853 | VE10: 52889.80204 | VF10: 56494.90851 | VG10: 56324.35352 | VH10: 54064.82592 | VI10: 66444.8 | VJ10: 64067.22325 | VK10: 85294.8844 | VL10: 69032.94851 | VM10: 84746.30515 | VN10: 64392.17102 | VO10: 63790.2957 | VP10: 60037.07884 | VQ10: 79441.73672 | VR10: 60039.6222 | VS10: 62547.80664 | VT10: 52867.82429 | VU10: 77538.04541 | VV10: 65533.81107 | VW10: 67609.56428 | VX10: 76644.34441 | VY10: 63881.30003 | VZ10: 76027.74364 | WA10: 70590.34249 | WB10: 69509.3253 | WC10: 87048.46239 | WD10: 79380.19414 | WE10: 102631.2865 | WF10: 64015.59558 | WG10: 65644.31925 | WH10: 60824.87526 | WI10: 71593.74474 | WJ10: 62733.95252 | WK10: 55600.00817 | WL10: 67940.97958 | WM10: 71643.72361 | WN10: 72640.41207 | WO10: 54465.61741 | WP10: 57384.99604 | WQ10: 52695.53603 | WR10: 58205.65993 | WS10: 73473.47323 | WT10: 93848.93386 | WU10: 116098.1548 | WV10: 68524.05087 | WW10: 56845.43162 | WX10: 61769.68479 | WY10: 57611.24689 | WZ10: 59337.20968 | XA10: 60614.96381 | XB10: 71360.04862 | XC10: 70907.82894 | XD10: 76240.53467 | XE10: 58819.13712 | XF10: 57508.85227 | XG10: 91922.56526 | XH10: 61315.48747 | XI10: 72424.18206 | XJ10: 80723.03217 | XK10: 86755.42383 | XL10: 71417.65235 | XM10: 74930.5479 | XN10: 63355.96286 | XO10: 49765.07813 | XP10: 92284.42092 | XQ10: 59599.14227 | XR10: 94216.53815 | XS10: 62661.43872 | XT10: 63703.73217 | XU10: 57832.18006 | XV10: 86840.87493 | XW10: 76082.89819 | XX10: 64147.38513 | XY10: 68351.81655 | XZ10: 85629.85141 | YA10: 51137.29044 | YB10: 65298.84238 | YC10: 90790.24186 | YD10: 64083.2609 | YE10: 59102.59041 | YF10: 55698.43481 | YG10: 84436.09046 | YH10: 85772.88457 | YI10: 55753.4677 | YJ10: 55162.88347 | YK10: 67599.87663 | YL10: 55016.27444 | YM10: 82789.77709 | YN10: 62935.64005 | YO10: 56542.49707 | YP10: 69102.95036 | YQ10: 67917.68811 | YR10: 60376.66836 | YS10: 75968.80449 | YT10: 64017.12434 | YU10: 62409.24693 | YV10: 68615.4958 | YW10: 57162.63673 | YX10: 53982.16542 | YY10: 73256.15058 | YZ10: 62689.34419 | ZA10: 63330.09288 | ZB10: 51918.90866 | ZC10: 68992.35364 | ZD10: 48505.16111 | ZE10: 85419.24063 | ZF10: 97607.95378 | ZG10: 53883.49357 | ZH10: 69223.16137 | ZI10: 57630.26733 | ZJ10: 54527.62238 | ZK10: 77562.03897 | ZL10: 73971.53705 | ZM10: 79012.1244 | ZN10: 69188.48499 | ZO10: 71681.44895 | ZP10: 72030.33325 | ZQ10: 89555.30606 | ZR10: 84325.28589 | ZS10: 56346.92196 | ZT10: 64381.01207 | ZU10: 74869.56442 | ZV10: 72991.23837 | ZW10: 59601.68953 | ZX10: 59952.65739 | ZY10: 68857.87847 | ZZ10: 53621.80447 | AAA10: 66965.77134 | AAB10: 78762.70482 | AAC10: 75148.126 | AAD10: 64434.29752 | AAE10: 46798.00735 | AAF10: 57017.29447 | AAG10: 59523.14401 | AAH10: 78325.58154 | AAI10: 73608.06825 | AAJ10: 55250.04519 | AAK10: 68351.79675 | AAL10: 52435.26506 | AAM10: 59033.79212 | AAN10: 66751.5287 | AAO10: 65962.90622 | AAP10: 61152.29884 | AAQ10: 77981.23684 | AAR10: 61206.80012 | AAS10: 81994.02581 | AAT10: 82867.00325 | AAU10: 78479.97298 | AAV10: 37375.42446 | AAW10: 57438.13267 | AAX10: 57471.1053 | AAY10: 66191.76959 | AAZ10: 47528.13873 | ABA10: 54276.75584 | ABB10: 57878.71874 | ABC10: 61071.43851 | ABD10: 53702.9833 | ABE10: 68091.51696 | ABF10: 66175.17363 | ABG10: 68139.46086 | ABH10: 69292.58112 | ABI10: 94304.06149 | ABJ10: 59277.03102 | ABK10: 72756.58366 | ABL10: 62681.50351 | ABM10: 105014.6369 | ABN10: 57739.66319 | ABO10: 61848.50633 | ABP10: 76022.26647 | ABQ10: 63573.12503 | ABR10: 51251.27099 | ABS10: 80884.63082 | ABT10: 75997.78501 | ABU10: 51097.57324 | ABV10: 69777.5933 | ABW10: 63415.10908 | ABX10: 76629.48134 | ABY10: 62725.60026 | ABZ10: 89123.90239 | ACA10: 60382.54986 | ACB10: 77723.77971 | ACC10: 53003.00095 | ACD10: 93204.50085 | ACE10: 59623.83891 | ACF10: 111427.815 | ACG10: 83057.0684 | ACH10: 77531.97542 | ACI10: 70233.79022 | ACJ10: 60380.7594 | ACK10: 94096.44188 | ACL10: 63749.84679 | ACM10: 62403.051 | ACN10: 102209.1927 | ACO10: 75119.0196 | ACP10: 42608.63805 | ACQ10: 61125.49967 | ACR10: 80175.80607 | ACS10: 65949.42821 | ACT10: 56494.18235 | ACU10: 65624.16366 | ACV10: 60246.38086 | ACW10: 50261.92909 | ACX10: 79134.52378 | ACY10: 87927.76933 | ACZ10: 69166.05795 | ADA10: 44360.9188 | ADB10: 44394.99488 | ADC10: 77291.44518 | ADD10: 83070.19277 | ADE10: 69490.25987 | ADF10: 85243.22416 | ADG10: 51929.75052 | ADH10: 85379.87788 | ADI10: 71309.92537 | ADJ10: 78659.50737 | ADK10: 83483.82159 | ADL10: 65362.81529 | ADM10: 62245.70779 | ADN10: 44027.93791 | ADO10: 74299.0058 | ADP10: 60267.3618 | ADQ10: 73737.43821 | ADR10: 77254.67535 | ADS10: 57102.90497 | ADT10: 64731.44078 | ADU10: 66191.46463 | ADV10: 73640.42727 | ADW10: 70813.4637 | ADX10: 56117.57582 | ADY10: 68516.49492 | ADZ10: 58994.28876 | AEA10: 68486.49755 | AEB10: 66230.48895 | AEC10: 57005.63633 | AED10: 95499.72043 | AEE10: 48805.96929 | AEF10: 73378.49401 | AEG10: 83154.5181 | AEH10: 77716.1993 | AEI10: 65173.27039 | AEJ10: 93772.11886 | AEK10: 63926.50348 | AEL10: 73320.80213 | AEM10: 92504.37527 | AEN10: 51772.47721 | AEO10: 92593.11955 | AEP10: 65788.9727 | AEQ10: 74535.68964 | AER10: 74922.66841 | AES10: 58683.89561 | AET10: 61364.48583 | AEU10: 64356.48821 | AEV10: 66738.89419 | AEW10: 70371.57802 | AEX10: 59196.184 | AEY10: 81522.8831 | AEZ10: 58628.40627 | AFA10: 60798.51315 | AFB10: 58894.23919 | AFC10: 61191.39942 | AFD10: 76049.19347 | AFE10: 73958.93396 | AFF10: 65019.40825 | AFG10: 75175.27973 | AFH10: 69414.88376 | AFI10: 67422.01723 | AFJ10: 64967.28277 | AFK10: 66691.69213 | AFL10: 61200.1973 | AFM10: 40949.43759 | AFN10: 78417.99789 | AFO10: 85847.0564 | AFP10: 79713.38163 | AFQ10: 112802.7681 | AFR10: 60521.8669 | AFS10: 88161.15122 | AFT10: 73438.68229 | AFU10: 76309.97789 | AFV10: 54287.96412 | AFW10: 72936.93232 | AFX10: 76862.58785 | AFY10: 60426.93904 | AFZ10: 53278.7235 | AGA10: 79158.78671 | AGB10: 72039.52641 | AGC10: 91912.59365 | AGD10: 73308.33561 | AGE10: 66654.62964 | AGF10: 69142.82828 | AGG10: 76760.18852 | AGH10: 90544.01327 | AGI10: 67793.73299 | AGJ10: 62924.53632 | AGK10: 95845.06764 | AGL10: 90783.17716 | AGM10: 50269.14323 | AGN10: 48772.02546 | AGO10: 51337.06097 | AGP10: 68412.66245 | AGQ10: 90342.85383 | AGR10: 65328.46678 | AGS10: 68821.63138 | AGT10: 67740.45294 | AGU10: 60261.82877 | AGV10: 63719.67415 | AGW10: 46460.47987 | AGX10: 74168.37364 | AGY10: 68364.35353 | AGZ10: 67874.67582 | AHA10: 67288.00338 | AHB10: 68490.98004 | AHC10: 90899.68167 | AHD10: 52147.84515 | AHE10: 81634.34138 | AHF10: 53117.95182 | AHG10: 64849.03983 | AHH10: 64699.11808 | AHI10: 70709.40782 | AHJ10: 71603.84435 | AHK10: 59320.85853 | AHL10: 54938.97984 | AHM10: 74388.6655 | AHN10: 60018.57875 | AHO10: 75109.28129 | AHP10: 80059.8873 | AHQ10: 88416.38977 | AHR10: 66465.94062 | AHS10: 61388.99798 | AHT10: 88928.40446 | AHU10: 51218.58736 | AHV10: 59682.70694 | AHW10: 65706.29441 | AHX10: 58302.99978 | AHY10: 72633.24704 | AHZ10: 70177.1893 | AIA10: 74275.12311 | AIB10: 91082.51255 | AIC10: 58541.14058 | AID10: 84093.85107 | AIE10: 38976.28823 | AIF10: 66297.78648 | AIG10: 68269.79765 | AIH10: 64617.00612 | AII10: 65508.25805 | AIJ10: 59563.58065 | AIK10: 59654.34588 | AIL10: 54404.16816 | AIM10: 64744.94598 | AIN10: 71852.79874 | AIO10: 50533.29293 | AIP10: 80710.77125 | AIQ10: 54969.74117 | AIR10: 54595.76891 | AIS10: 96518.64925 | AIT10: 66220.40474 | AIU10: 69242.50104 | AIV10: 54322.40533 | AIW10: 60393.85192 | AIX10: 85417.56349 | AIY10: 54794.2811 | AIZ10: 65889.12961 | AJA10: 65883.41548 | AJB10: 49146.92305 | AJC10: 73085.61879 | AJD10: 73406.08891 | AJE10: 46794.1841 | AJF10: 59663.85305 | AJG10: 58160.61772 | AJH10: 62700.98129 | AJI10: 63612.27523 | AJJ10: 58240.00213 | AJK10: 68306.02186 | AJL10: 46607.78201 | AJM10: 81597.81494 | AJN10: 48881.93481 | AJO10: 72205.58827 | AJP10: 72124.35281 | AJQ10: 65926.52621 | AJR10: 60260.67318 | AJS10: 70421.46639 | AJT10: 54467.21843 | AJU10: 54710.43475 | AJV10: 64548.89044 | AJW10: 55496.86067 | AJX10: 56540.01462 | AJY10: 45922.82134 | AJZ10: 68857.05558 | AKA10: 50170.93063 | AKB10: 66174.79455 | AKC10: 48159.4818 | AKD10: 80526.56278 | AKE10: 59121.41906 | AKF10: 60455.0083 | AKG10: 63286.80969 | AKH10: 43144.18528 | AKI10: 69701.04264 | AKJ10: 74985.34062 | AKK10: 72752.66699 | AKL10: 92347.3599 | AKM10: 52387.84549 | AKN10: 60387.79401 | AKO10: 63657.37825 | AKP10: 59272.13575 | AKQ10: 60363.25621 | AKR10: 66568.38895 | AKS10: 47843.62735 | AKT10: 71770.89927 | AKU10: 60149.5342 | AKV10: 55475.39915 | AKW10: 58093.2465 | AKX10: 73160.14284 | AKY10: 59260.41117 | AKZ10: 84641.67797 | ALA10: 80158.70586 | ALB10: 57097.13105 | ALC10: 58613.75529 | ALD10: 87077.63753 | ALE10: 46689.87209 | ALF10: 66889.43701 | ALG10: 52430.83447 | ALH10: 71025.07646 | ALI10: 68489.81808 | ALJ10: 67131.09829 | ALK10: 82393.61604 | ALL10: 72905.1811 | ALM10: 60247.62544 | ALN10: 52363.3891 | ALO10: 69514.3377 | ALP10: 74735.36844 | ALQ10: 59389.69133 | ALR10: 87256.12389 | ALS10: 51883.11052 | ALT10: 71796.01817 | ALU10: 80350.94138 | ALV10: 88931.65696 | ALW10: 55159.75584 | ALX10: 84358.69425 | ALY10: 75812.90896 | ALZ10: 66046.236 | AMA10: 73209.97264 | AMB10: 45000.49198 | AMC10: 99479.27456 | AMD10: 67918.49695 | AME10: 57849.51779 | AMF10: 67955.21735 | AMG10: 71276.34444 | AMH10: 66485.18244 | AMI10: 94735.47959 | AML10: =IFERROR(AVERAGEIFS($X10:$AMI10,$X10:$AMI10,"<"&SMALL($X10:$AMI10,AMM$7),$X10:$AMI10,">"&SMALL($X10:$AMI10,AMK$7)),"") -> 48202.52085 | AMM10: 52534.60634 | AMN10: 55048.35019 | AMO10: 57187.08931 | AMP10: 58889.81575 | AMQ10: 60359.11711 | AMR10: 61887.36897 | AMS10: 63426.431 | AMT10: 64876.5355 | AMU10: 66351.01164 | AMV10: 67771.01577 | AMW10: 69225.28625 | AMX10: 70956.65024 | AMY10: 72765.3484 | AMZ10: 74673.9741 | ANA10: 77221.61827 | ANB10: 80325.83558 | ANC10: 84353.44327 | AND10: 91918.59878 | ANF10: =IFERROR(AVERAGEIFS($X$7:$AMI$7,$X10:$AMI10,"<"&SMALL($X10:$AMI10,AMM$7),$X10:$AMI10,">"&SMALL($X10:$AMI10,AMK$7)),"") -> 751.2953757 | ANG10: 1533.996931 | ANH10: 1743.537308 | ANI10: 1923.888079 | ANJ10: 2240.305864 | ANK10: 3225.785612 | ANL10: 3679.848449 | ANM10: 3302.63102 | ANN10: 2798.175913 | ANO10: 4099.670753 | ANP10: 5492.272837 | ANQ10: 5541.727657 | ANR10: 4788.542567 | ANS10: 4433.639304 | ANT10: 5226.436987 | ANU10: 5675.275864 | ANV10: 6214.697326 | ANW10: 8003.035232 | ANX10: 9702.23074 | ANY10: =IFERROR(MATCH(MIN(ABS(ANF10:ANX10)),ABS(ANF10:ANX10),0),"") -> 1 | ANZ10: =IFERROR(INDEX(ANF10:ANX10,MIN(MAX(ANY10-1,1),17)),"") -> 751.2953757 | AOA10: =IFERROR(INDEX(ANF10:ANX10,MIN(MAX(ANY10,2),18)),"") -> 1533.996931 | AOB10: =IFERROR(INDEX(ANF10:ANX10,MIN(MAX(ANY10,3),19)),"") -> 1743.537308 | AOC10: =IFERROR(INDEX(AML10:AND10,MIN(MAX(ANY10-1,1),17)),"") -> 48202.52085 | AOD10: =IFERROR(INDEX(AML10:AND10,MIN(MAX(ANY10,2),18)),"") -> 52534.60634 | AOE10: =IFERROR(INDEX(AML10:AND10,MIN(MAX(ANY10,3),19)),"") -> 55048.35019 | AOF10: 43164.00503
A11: =ROW(Variables[[#This Row],[Variable Name]])-ROW(Variables[[#Headers],[Variable Name]]) -> 3 | B11: Initial development costs (2020) | C11: DevC | D11: =IF(COUNTA(Variables[[#This Row],[Lower Bound]], Variables[[#This Row],[Mode or P]], Variables[[#This Row],[Upper Bound]])=0, "", IF(Variables[[#This Row],[Shape]]="Constant",Variables[[#This Row],[Mode or P]],IF(Variables[[#This Row],[Shape]]="Lognorm",LOGINV(Variables[[#This Row],[Uniform PRNG]],((LN(Variables[[#This Row],[Lower Bound]]) + LN(Variables[[#This Row],[Upper Bound]]))/2),((LN(Variables[[#This Row],[Upper Bound]]) - LN(Variables[[#This Row],[Lower Bound]]))/3.28971)),IF(Variables[[#This Row],[Shape]]="Normal",NORMINV(Variables[[#This Row],[Uniform PRNG]],(Variables[[#This Row],[Upper Bound]]+Variables[[#This Row],[Lower Bound]])/2,(Variables[[#This Row],[Upper Bound]]-Variables[[#This Row],[Lower Bound]])/3.29),IF(Variables[[#This Row],[Shape]]="Uniform",(Variables[[#This Row],[Upper Bound]]-Variables[[#This Row],[Lower Bound]])*Variables[[#This Row],[Uniform PRNG]]+Variables[[#This Row],[Lower Bound]],IF(Variables[[#This Row],[Shape]]="Binary",IF(Variables[[#This Row],[Uniform PRNG]]<Variables[[#This Row],[Mode or P]],1,0),IF(Variables[[#This Row],[Shape]]="Triangular",IF(Variables[[#This Row],[Uniform PRNG]]<(Variables[[#This Row],[Mode or P]]-Variables[[#This Row],[Lower Bound]])/(Variables[[#This Row],[Upper Bound]]-Variables[[#This Row],[Lower Bound]]), 1, 0) * (Variables[[#This Row],[Lower Bound]] + SQRT(Variables[[#This Row],[Uniform PRNG]]*(Variables[[#This Row],[Upper Bound]]-Variables[[#This Row],[Lower Bound]])*(Variables[[#This Row],[Mode or P]]-Variables[[#This Row],[Lower Bound]]))) + IF(Variables[[#This Row],[Uniform PRNG]]>= (Variables[[#This Row],[Mode or P]]-Variables[[#This Row],[Lower Bound]])/(Variables[[#This Row],[Upper Bound]]-Variables[[#This Row],[Lower Bound]]), 1, 0) * (Variables[[#This Row],[Upper Bound]] - SQRT((1-Variables[[#This Row],[Uniform PRNG]]) * (Variables[[#This Row],[Upper Bound]] - Variables[[#This Row],[Lower Bound]]) * (Variables[[#This Row],[Upper Bound]] - Variables[[#This Row],[Mode or P]]))),""))))))) -> 6776.927232 | E11: Lognorm | F11: 5000 | H11: 15000 | I11: CE, PM 2/15/2019 | J11: =IFERROR(IF(OR(MIN(Variables[[#This Row],[P(X<T)]], Variables[[#This Row],[P(X>T)]])<0.002,SIGN(Variables[[#This Row],[EOL(X<T)]])=SIGN(Variables[[#This Row],[EOL(X>T)]])),0,IFERROR(IF(B$38=1,IF(Variables[[#This Row],[EOL(X<T)]]<Variables[[#This Row],[EOL(X>T)]],-Variables[[#This Row],[EOL(X<T)]]*Variables[[#This Row],[P(X<T)]],-Variables[[#This Row],[EOL(X>T)]]*Variables[[#This Row],[P(X>T)]]),IF(Variables[[#This Row],[EOL(X<T)]]>Variables[[#This Row],[EOL(X>T)]],Variables[[#This Row],[EOL(X<T)]]*Variables[[#This Row],[P(X<T)]],Variables[[#This Row],[EOL(X>T)]]*Variables[[#This Row],[P(X>T)]])),"")),0) -> 243.130099 | K11: =IF(Variables[[#This Row],[Shape]]="Constant",Variables[[#This Row],[Mode or P]],IF(Variables[[#This Row],[Shape]]="Lognorm",EXP((LN(Variables[[#This Row],[Upper Bound]])+LN(Variables[[#This Row],[Lower Bound]]))/2+((LN(Variables[[#This Row],[Upper Bound]])-LN(Variables[[#This Row],[Lower Bound]]))/3.29)^2/2),IF(Variables[[#This Row],[Shape]]="Normal",(Variables[[#This Row],[Lower Bound]]+Variables[[#This Row],[Upper Bound]])/2,IF(Variables[[#This Row],[Shape]]="Uniform",(Variables[[#This Row],[Lower Bound]]+Variables[[#This Row],[Upper Bound]])/2,IF(Variables[[#This Row],[Shape]]="Binary",Variables[[#This Row],[Mode or P]],IF(Variables[[#This Row],[Shape]]="Triangular",(Variables[[#This Row],[Lower Bound]]+Variables[[#This Row],[Mode or P]]+Variables[[#This Row],[Upper Bound]])/3,"")))))) -> 9156.801276 | L11: =IF(Variables[[#This Row],[Shape]]="","",(MOD((MOD(MOD(999999999999989,MOD(ScenarioNum*2499997+Variables[[#This Row],[VarID]]*1800451,7450589)*4658+7450581)*383,99991)*7440893+MOD(MOD(999999999999989,MOD(ScenarioNum*2246527+Variables[[#This Row],[VarID]]*2399993,7450987)*7580+7560584)*17669,7440893))*1343,4294967296)+0.5)/4294967296) -> 0.2313850209 | M11: =IF(Variables[[#This Row],[Shape]]="Binary", 1-Variables[[#This Row],[Mode or P]], IF(Variables[[#This Row],[Shape]]<>"",COUNTIF(INDEX($X$9:$AMI$159, ROW(Variables[[#This Row],[Variable Name]])-ROW(Variables[[#Headers],[Variable Name]]), ),"<"&Variables[[#This Row],[Threshold Estimate]])/1000,"")) -> 0.901 | N11: =IF(Variables[[#This Row],[Shape]]<>"",1-Variables[[#This Row],[P(X<T)]],"") -> 0.099 | O11: =IFERROR(AVERAGEIFS(X$7:AMI$7,INDEX(X$9:$AMI$159, ROW(Variables[[#This Row],[Variable Name]])-ROW(Variables[[#Headers],[Variable Name]]), ),IF(Variables[[#This Row],[Shape]]="Binary","=0","<"&Variables[[#This Row],[Threshold Estimate]])),"") -> 5031.472087 | P11: =IFERROR(AVERAGEIFS(X$7:AMI$7,INDEX($X$9:$AMI$159, ROW(Variables[[#This Row],[Variable Name]])-ROW(Variables[[#Headers],[Variable Name]]), ),IF(Variables[[#This Row],[Shape]]="Binary","=1",">"&Variables[[#This Row],[Threshold Estimate]])),"") -> -2455.859586 | Q11: =IFERROR(IF(Variables[[#This Row],[Shape]]="Binary",IF(B$38=1,IF(Variables[[#This Row],[EOL(X<T)]]<Variables[[#This Row],[EOL(X>T)]],0,1),IF(Variables[[#This Row],[EOL(X<T)]]<Variables[[#This Row],[EOL(X>T)]],1,0)), INDEX($AOF$9:$AOF$159, ROW(Variables[[#This Row],[Variable Name]])-ROW(Variables[[#Headers],[Variable Name]]))),"") -> 13253.91538 | S11: Lognorm | V11: =IFERROR(IF(ISBLANK(Variables[[#This Row],[Variable Name]]), "", Variables[[#This Row],[Variable Name]]), "") -> Initial development costs (2020) | W11: =IFERROR(IF(ISBLANK(D11), "", D11), "") -> 6776.927232 | X11: 6729.603248 | Y11: 10268.46789 | Z11: 10390.08348 | AA11: 5874.657389 | AB11: 11945.17672 | AC11: 11823.45664 | AD11: 12029.17849 | AE11: 13174.55709 | AF11: 5422.754052 | AG11: 11083.44525 | AH11: 8712.424189 | AI11: 4572.581207 | AJ11: 10700.1606 | AK11: 5905.012096 | AL11: 7661.690981 | AM11: 9781.377272 | AN11: 11578.06746 | AO11: 8625.742646 | AP11: 5636.209697 | AQ11: 9977.959601 | AR11: 9641.251776 | AS11: 15662.35821 | AT11: 13688.86889 | AU11: 5472.953911 | AV11: 7304.956958 | AW11: 7237.070458 | AX11: 10154.40793 | AY11: 7643.369847 | AZ11: 11500.00797 | BA11: 10473.18187 | BB11: 7923.357966 | BC11: 6386.602945 | BD11: 9436.459741 | BE11: 7201.940551 | BF11: 13299.60306 | BG11: 12615.64175 | BH11: 5535.441719 | BI11: 5138.1416 | BJ11: 6762.453525 | BK11: 8516.701893 | BL11: 8060.292133 | BM11: 5362.179541 | BN11: 10645.24294 | BO11: 10996.11037 | BP11: 10552.98119 | BQ11: 6449.800296 | BR11: 6071.701129 | BS11: 6019.665896 | BT11: 7433.568617 | BU11: 11912.06894 | BV11: 7793.416404 | BW11: 10456.1566 | BX11: 8639.982002 | BY11: 8748.773334 | BZ11: 6220.166444 | CA11: 6094.165003 | CB11: 11063.84073 | CC11: 10320.53193 | CD11: 8822.470308 | CE11: 9765.129463 | CF11: 9529.532379 | CG11: 8278.578069 | CH11: 9713.700241 | CI11: 8252.855892 | CJ11: 11020.44915 | CK11: 6602.889163 | CL11: 7888.812983 | CM11: 3439.507584 | CN11: 3746.012372 | CO11: 5939.193825 | CP11: 16853.66341 | CQ11: 11145.12347 | CR11: 9728.366847 | CS11: 8957.895743 | CT11: 8394.271365 | CU11: 16616.21773 | CV11: 7484.028069 | CW11: 9459.521573 | CX11: 6288.601867 | CY11: 8014.76345 | CZ11: 6659.440189 | DA11: 10596.58151 | DB11: 10832.89065 | DC11: 6123.54201 | DD11: 11551.02155 | DE11: 6860.318533 | DF11: 14507.56096 | DG11: 12320.00964 | DH11: 7652.893846 | DI11: 8302.737469 | DJ11: 6143.629883 | DK11: 6030.012494 | DL11: 10822.21561 | DM11: 8472.016847 | DN11: 7395.059009 | DO11: 11280.14681 | DP11: 7400.498886 | DQ11: 7022.488979 | DR11: 7977.102379 | DS11: 5869.676886 | DT11: 4349.900203 | DU11: 6444.357768 | DV11: 8194.855859 | DW11: 9448.33216 | DX11: 10406.65897 | DY11: 8023.489298 | DZ11: 8596.797206 | EA11: 10260.27089 | EB11: 9462.652586 | EC11: 8079.184645 | ED11: 7043.934735 | EE11: 11269.43737 | EF11: 6955.695338 | EG11: 8236.500481 | EH11: 8466.770262 | EI11: 9287.551769 | EJ11: 10841.2503 | EK11: 5562.400857 | EL11: 9358.265457 | EM11: 14766.36606 | EN11: 8530.751108 | EO11: 6171.281745 | EP11: 5705.560718 | EQ11: 12168.76392 | ER11: 11953.57514 | ES11: 8234.289187 | ET11: 12236.70997 | EU11: 6813.429996 | EV11: 4915.420351 | EW11: 6215.992395 | EX11: 8651.33054 | EY11: 6670.85473 | EZ11: 13048.98763 | FA11: 5951.818881 | FB11: 11034.07796 | FC11: 8285.699385 | FD11: 5902.086133 | FE11: 8258.298599 | FF11: 10143.25157 | FG11: 11711.2245 | FH11: 17180.53924 | FI11: 5988.566169 | FJ11: 8217.95408 | FK11: 10844.15568 | FL11: 12828.31252 | FM11: 8188.136298 | FN11: 10994.88155 | FO11: 9914.615529 | FP11: 6139.792117 | FQ11: 11252.48313 | FR11: 6374.827151 | FS11: 8350.70918 | FT11: 5499.344708 | FU11: 8181.71369 | FV11: 12506.73135 | FW11: 11344.26996 | FX11: 11801.87171 | FY11: 7158.534087 | FZ11: 16457.20118 | GA11: 5161.384905 | GB11: 12946.79604 | GC11: 7915.268294 | GD11: 4110.883316 | GE11: 9363.679848 | GF11: 11182.00618 | GG11: 9644.899992 | GH11: 5661.930293 | GI11: 9379.959064 | GJ11: 11551.18567 | GK11: 6877.477325 | GL11: 9141.188699 | GM11: 9009.985102 | GN11: 12950.3828 | GO11: 7687.770899 | GP11: 7338.647792 | GQ11: 8888.968682 | GR11: 7120.946966 | GS11: 7347.026841 | GT11: 6075.717046 | GU11: 8281.338227 | GV11: 9109.656695 | GW11: 8846.169455 | GX11: 6879.608976 | GY11: 7100.268474 | GZ11: 12528.47302 | HA11: 18839.25155 | HB11: 21477.30544 | HC11: 6949.044587 | HD11: 4801.177291 | HE11: 14741.79195 | HF11: 6219.177601 | HG11: 11134.74713 | HH11: 17896.63869 | HI11: 9424.673018 | HJ11: 5038.451538 | HK11: 11298.04071 | HL11: 7985.031186 | HM11: 10587.341 | HN11: 7737.578472 | HO11: 8051.8253 | HP11: 13005.5455 | HQ11: 12451.25489 | HR11: 10422.8623 | HS11: 8788.959287 | HT11: 9588.404987 | HU11: 13671.61127 | HV11: 6352.149428 | HW11: 5477.981514 | HX11: 7040.909719 | HY11: 11058.83831 | HZ11: 6174.556216 | IA11: 6839.326784 | IB11: 9883.298361 | IC11: 13027.26243 | ID11: 7005.15132 | IE11: 10652.31483 | IF11: 11258.23733 | IG11: 7467.285448 | IH11: 6482.21376 | II11: 8738.443925 | IJ11: 5283.838908 | IK11: 11085.87213 | IL11: 12202.27987 | IM11: 14536.7153 | IN11: 8084.01654 | IO11: 3126.957873 | IP11: 7569.428032 | IQ11: 4403.195651 | IR11: 5832.344742 | IS11: 6374.476647 | IT11: 13098.19193 | IU11: 8003.86891 | IV11: 6467.22623 | IW11: 17392.34065 | IX11: 9498.064964 | IY11: 9629.659003 | IZ11: 7951.293276 | JA11: 14089.30332 | JB11: 11296.38987 | JC11: 7519.083977 | JD11: 11430.67135 | JE11: 16145.18527 | JF11: 5248.789476 | JG11: 5934.34747 | JH11: 11991.83699 | JI11: 7265.633812 | JJ11: 7751.646312 | JK11: 13083.27031 | JL11: 10203.42699 | JM11: 5304.079012 | JN11: 6004.010694 | JO11: 8695.396897 | JP11: 12050.43943 | JQ11: 6234.607501 | JR11: 7546.34261 | JS11: 11585.25102 | JT11: 14923.7403 | JU11: 7022.943688 | JV11: 5650.928086 | JW11: 9900.372635 | JX11: 7893.840387 | JY11: 9360.478089 | JZ11: 16772.53083 | KA11: 6949.152492 | KB11: 9320.290429 | KC11: 10779.88337 | KD11: 5920.622994 | KE11: 9778.113845 | KF11: 6694.142353 | KG11: 10280.22083 | KH11: 10902.55439 | KI11: 10904.8958 | KJ11: 11025.84046 | KK11: 10142.79621 | KL11: 10815.68074 | KM11: 15861.48463 | KN11: 7854.650975 | KO11: 8687.589013 | KP11: 9407.162717 | KQ11: 11494.94415 | KR11: 7953.355625 | KS11: 4674.102681 | KT11: 9502.782638 | KU11: 12123.09674 | KV11: 7762.307275 | KW11: 5171.296977 | KX11: 6914.142548 | KY11: 5134.446065 | KZ11: 10791.24676 | LA11: 6440.260588 | LB11: 5370.975902 | LC11: 7248.8016 | LD11: 10818.51264 | LE11: 4629.083067 | LF11: 8960.72682 | LG11: 11472.77115 | LH11: 9120.470398 | LI11: 6336.326842 | LJ11: 5860.188485 | LK11: 8425.481232 | LL11: 12223.89642 | LM11: 7600.342065 | LN11: 18199.19076 | LO11: 6509.878202 | LP11: 10593.30361 | LQ11: 11254.63534 | LR11: 6489.385609 | LS11: 10759.47562 | LT11: 9891.305238 | LU11: 9624.939451 | LV11: 15727.34155 | LW11: 12410.63228 | LX11: 7739.101109 | LY11: 15075.8589 | LZ11: 7657.935969 | MA11: 10713.21108 | MB11: 5506.044476 | MC11: 13087.74663 | MD11: 5820.42945 | ME11: 7640.384364 | MF11: 8405.096619 | MG11: 7578.617046 | MH11: 10569.67039 | MI11: 10642.33144 | MJ11: 11261.74082 | MK11: 8984.645987 | ML11: 9495.913186 | MM11: 10703.90315 | MN11: 10467.29407 | MO11: 7486.330766 | MP11: 6377.514495 | MQ11: 11317.69875 | MR11: 8184.314197 | MS11: 10792.88756 | MT11: 7527.464293 | MU11: 7695.46682 | MV11: 9660.978483 | MW11: 6516.093368 | MX11: 7532.897853 | MY11: 9746.479236 | MZ11: 11263.67331 | NA11: 6599.310322 | NB11: 10599.9339 | NC11: 7522.139498 | ND11: 7678.7963 | NE11: 7376.602347 | NF11: 6488.033458 | NG11: 5632.678902 | NH11: 11973.64629 | NI11: 13685.59113 | NJ11: 8897.248953 | NK11: 10013.92419 | NL11: 8098.815185 | NM11: 12463.72254 | NN11: 13657.44491 | NO11: 8830.967534 | NP11: 8264.890212 | NQ11: 6158.955691 | NR11: 7914.796517 | NS11: 16242.41673 | NT11: 9348.4042 | NU11: 6122.393818 | NV11: 8430.772791 | NW11: 11034.27292 | NX11: 6776.927232 | NY11: 12705.41685 | NZ11: 2939.241668 | OA11: 20521.02393 | OB11: 9948.209519 | OC11: 7978.238425 | OD11: 14922.31813 | OE11: 11913.72392 | OF11: 8555.829756 | OG11: 8409.811478 | OH11: 10336.46576 | OI11: 11929.70586 | OJ11: 9733.231045 | OK11: 8738.594954 | OL11: 6354.24751 | OM11: 7397.474282 | ON11: 8298.624092 | OO11: 6319.054674 | OP11: 8753.269465 | OQ11: 5361.808471 | OR11: 8960.032624 | OS11: 8066.123087 | OT11: 9404.139215 | OU11: 7792.40471 | OV11: 5794.374668 | OW11: 11789.52648 | OX11: 6163.242419 | OY11: 16127.57835 | OZ11: 21610.69921 | PA11: 10418.88611 | PB11: 8370.542604 | PC11: 5878.143635 | PD11: 8863.865047 | PE11: 16918.37759 | PF11: 5309.593958 | PG11: 7237.962981 | PH11: 7377.222184 | PI11: 11513.89188 | PJ11: 10488.20068 | PK11: 9779.7054 | PL11: 9629.372562 | PM11: 5919.129043 | PN11: 9561.091681 | PO11: 6338.925042 | PP11: 8338.242726 | PQ11: 8627.950144 | PR11: 12253.24471 | PS11: 14129.35074 | PT11: 6143.160603 | PU11: 15896.41441 | PV11: 7383.389395 | PW11: 6760.668397 | PX11: 8059.908048 | PY11: 7486.195512 | PZ11: 7015.682775 | QA11: 9456.022453 | QB11: 7311.442581 | QC11: 11144.5902 | QD11: 8844.298545 | QE11: 6930.867461 | QF11: 9837.249027 | QG11: 10919.04132 | QH11: 10200.44549 | QI11: 10089.88194 | QJ11: 7961.364081 | QK11: 14807.02959 | QL11: 12117.23924 | QM11: 8004.897285 | QN11: 11033.26788 | QO11: 12791.36917 | QP11: 13368.83841 | QQ11: 10836.57331 | QR11: 7495.720167 | QS11: 4969.184089 | QT11: 9084.194085 | QU11: 8728.823391 | QV11: 8433.576043 | QW11: 12385.584 | QX11: 6660.185592 | QY11: 6502.491393 | QZ11: 5893.849438 | RA11: 6043.883476 | RB11: 17260.08038 | RC11: 5709.048612 | RD11: 7064.106244 | RE11: 8707.013092 | RF11: 9184.215339 | RG11: 11634.80235 | RH11: 5550.92115 | RI11: 7066.016317 | RJ11: 13287.44656 | RK11: 5276.310008 | RL11: 9014.299787 | RM11: 12000.05609 | RN11: 9017.714256 | RO11: 10209.65012 | RP11: 9323.292334 | RQ11: 9281.406789 | RR11: 6344.247517 | RS11: 7645.122929 | RT11: 8090.425632 | RU11: 10829.89334 | RV11: 11685.37633 | RW11: 4851.950023 | RX11: 8725.097566 | RY11: 7786.395674 | RZ11: 6295.641551 | SA11: 7650.559548 | SB11: 11756.44769 | SC11: 5910.074665 | SD11: 7518.794355 | SE11: 7472.446937 | SF11: 8592.412754 | SG11: 14845.18927 | SH11: 9682.650721 | SI11: 5087.806172 | SJ11: 10313.91037 | SK11: 10044.60327 | SL11: 16288.08601 | SM11: 12665.00021 | SN11: 9242.940103 | SO11: 18608.68539 | SP11: 11591.33594 | SQ11: 6706.499061 | SR11: 14291.78768 | SS11: 8238.999655 | ST11: 10042.78621 | SU11: 12684.47449 | SV11: 9189.157872 | SW11: 14615.05572 | SX11: 9590.358506 | SY11: 9647.190089 | SZ11: 10564.11577 | TA11: 6087.569798 | TB11: 10840.91531 | TC11: 9050.14101 | TD11: 8325.063358 | TE11: 11908.42353 | TF11: 7801.422523 | TG11: 8537.197408 | TH11: 18155.71759 | TI11: 6585.224653 | TJ11: 8107.810516 | TK11: 9794.943047 | TL11: 7788.022366 | TM11: 8138.037271 | TN11: 12004.2132 | TO11: 8541.830138 | TP11: 5644.132376 | TQ11: 11262.28506 | TR11: 6887.025878 | TS11: 3898.14014 | TT11: 5995.152816 | TU11: 11124.33031 | TV11: 9814.345775 | TW11: 13684.37607 | TX11: 8963.771519 | TY11: 7033.266686 | TZ11: 5857.151652 | UA11: 5753.412928 | UB11: 9821.935193 | UC11: 9030.616446 | UD11: 11355.88295 | UE11: 8065.3119 | UF11: 8494.012281 | UG11: 10083.69898 | UH11: 10975.34917 | UI11: 10761.39873 | UJ11: 8226.529516 | UK11: 5094.37959 | UL11: 9024.602793 | UM11: 9775.460995 | UN11: 10377.9361 | UO11: 8434.471571 | UP11: 16048.15706 | UQ11: 9545.244565 | UR11: 8416.381317 | US11: 8243.899591 | UT11: 13921.72568 | UU11: 13044.06484 | UV11: 8477.074807 | UW11: 9069.94123 | UX11: 7524.714022 | UY11: 7012.278286 | UZ11: 5389.753865 | VA11: 3457.627935 | VB11: 9693.889245 | VC11: 9363.08785 | VD11: 12478.18144 | VE11: 11036.36543 | VF11: 11247.85967 | VG11: 11207.37187 | VH11: 6875.684357 | VI11: 7000.583088 | VJ11: 9931.788712 | VK11: 6637.479737 | VL11: 9915.119037 | VM11: 12630.20985 | VN11: 9555.263065 | VO11: 8073.385635 | VP11: 10375.81553 | VQ11: 10453.78362 | VR11: 6306.568206 | VS11: 6681.521925 | VT11: 6862.918579 | VU11: 17101.18267 | VV11: 10402.85628 | VW11: 7288.628043 | VX11: 8953.348771 | VY11: 14341.8195 | VZ11: 8913.884343 | WA11: 10578.55212 | WB11: 11302.68902 | WC11: 7903.08071 | WD11: 5805.505457 | WE11: 5460.697023 | WF11: 7774.320904 | WG11: 8255.946587 | WH11: 12296.54117 | WI11: 8105.527835 | WJ11: 9010.393895 | WK11: 9393.826407 | WL11: 6817.927044 | WM11: 12614.00174 | WN11: 9666.461192 | WO11: 13938.29832 | WP11: 8707.559268 | WQ11: 8203.164206 | WR11: 7156.309911 | WS11: 6387.925831 | WT11: 8045.37276 | WU11: 8917.64859 | WV11: 7763.439497 | WW11: 7330.337633 | WX11: 8432.771497 | WY11: 12337.15254 | WZ11: 16624.17995 | XA11: 5003.749969 | XB11: 7595.868811 | XC11: 6149.483094 | XD11: 20564.69057 | XE11: 5666.75299 | XF11: 23344.24001 | XG11: 9674.374986 | XH11: 18156.67383 | XI11: 8290.536626 | XJ11: 4687.986144 | XK11: 9975.408663 | XL11: 12666.27703 | XM11: 5966.33337 | XN11: 8963.616838 | XO11: 15443.05368 | XP11: 10847.31062 | XQ11: 4846.043174 | XR11: 14972.6413 | XS11: 10707.5623 | XT11: 7953.202016 | XU11: 14202.10389 | XV11: 7812.646975 | XW11: 7438.594018 | XX11: 5432.409615 | XY11: 6260.452216 | XZ11: 9091.574853 | YA11: 5847.250426 | YB11: 11389.38008 | YC11: 6468.146895 | YD11: 7516.945082 | YE11: 9075.048104 | YF11: 3481.089952 | YG11: 7162.930944 | YH11: 7663.851155 | YI11: 10301.60506 | YJ11: 12085.41114 | YK11: 6190.703271 | YL11: 7593.300198 | YM11: 8033.132977 | YN11: 6681.121319 | YO11: 7827.744818 | YP11: 6713.789547 | YQ11: 10131.44275 | YR11: 5086.500452 | YS11: 6106.433515 | YT11: 9809.94604 | YU11: 10244.38136 | YV11: 7935.828308 | YW11: 9544.103263 | YX11: 8161.113655 | YY11: 8759.105757 | YZ11: 9395.740053 | ZA11: 7537.989008 | ZB11: 5995.371067 | ZC11: 8903.898785 | ZD11: 18424.00358 | ZE11: 11160.39276 | ZF11: 5439.929324 | ZG11: 10224.42988 | ZH11: 10874.42372 | ZI11: 9091.769998 | ZJ11: 6077.237285 | ZK11: 7363.594744 | ZL11: 12713.46396 | ZM11: 6585.887189 | ZN11: 5031.636676 | ZO11: 17567.14081 | ZP11: 6785.794866 | ZQ11: 13710.22613 | ZR11: 8735.725275 | ZS11: 7181.721096 | ZT11: 9568.8222 | ZU11: 7153.567257 | ZV11: 10924.07775 | ZW11: 14620.37478 | ZX11: 6248.425145 | ZY11: 13370.6135 | ZZ11: 8769.815411 | AAA11: 8168.366636 | AAB11: 7695.138385 | AAC11: 5578.382123 | AAD11: 9024.110321 | AAE11: 5036.450194 | AAF11: 7550.402725 | AAG11: 9637.27842 | AAH11: 7267.761023 | AAI11: 7874.664317 | AAJ11: 6522.38831 | AAK11: 9549.814568 | AAL11: 7684.449586 | AAM11: 4704.310441 | AAN11: 6885.658484 | AAO11: 8142.384988 | AAP11: 7406.481501 | AAQ11: 9553.214093 | AAR11: 6800.79043 | AAS11: 13825.25168 | AAT11: 6792.506385 | AAU11: 6990.859373 | AAV11: 15990.00584 | AAW11: 10117.21921 | AAX11: 5025.691908 | AAY11: 9634.254738 | AAZ11: 13593.01453 | ABA11: 8615.392881 | ABB11: 10722.53576 | ABC11: 6979.401936 | ABD11: 5114.01152 | ABE11: 8383.38152 | ABF11: 4715.121999 | ABG11: 11263.92731 | ABH11: 16684.67073 | ABI11: 8089.949021 | ABJ11: 8632.135753 | ABK11: 6232.687598 | ABL11: 6423.979245 | ABM11: 9733.965066 | ABN11: 9302.536246 | ABO11: 9590.812139 | ABP11: 16063.5411 | ABQ11: 11896.08941 | ABR11: 6483.41882 | ABS11: 8737.388034 | ABT11: 13748.9413 | ABU11: 7267.577231 | ABV11: 5379.864282 | ABW11: 14526.73544 | ABX11: 10770.27217 | ABY11: 16151.65789 | ABZ11: 5084.009621 | ACA11: 6461.662052 | ACB11: 10172.73001 | ACC11: 11441.23711 | ACD11: 7765.476007 | ACE11: 5844.781506 | ACF11: 9109.374773 | ACG11: 5115.701915 | ACH11: 8085.220929 | ACI11: 12613.30644 | ACJ11: 6548.097333 | ACK11: 14563.81321 | ACL11: 7258.917764 | ACM11: 4999.556315 | ACN11: 6177.477264 | ACO11: 6307.423038 | ACP11: 6689.113088 | ACQ11: 3599.253319 | ACR11: 8422.889544 | ACS11: 9258.225455 | ACT11: 8681.076428 | ACU11: 11107.91178 | ACV11: 11829.38904 | ACW11: 8024.371715 | ACX11: 7401.011395 | ACY11: 7891.211255 | ACZ11: 14913.07623 | ADA11: 17240.87612 | ADB11: 8634.931564 | ADC11: 15094.65766 | ADD11: 8729.458111 | ADE11: 8935.05793 | ADF11: 7667.090899 | ADG11: 6058.684311 | ADH11: 12321.16832 | ADI11: 5603.76421 | ADJ11: 10544.73729 | ADK11: 6428.521585 | ADL11: 9485.003062 | ADM11: 3346.591624 | ADN11: 3311.550488 | ADO11: 7617.878808 | ADP11: 5332.30223 | ADQ11: 11301.12456 | ADR11: 7879.878675 | ADS11: 14934.02864 | ADT11: 8728.811848 | ADU11: 9949.477453 | ADV11: 9959.84156 | ADW11: 8775.751165 | ADX11: 7798.813272 | ADY11: 5049.775686 | ADZ11: 13965.60157 | AEA11: 4082.229068 | AEB11: 6708.860289 | AEC11: 8305.515748 | AED11: 25994.27199 | AEE11: 7048.123882 | AEF11: 10648.25064 | AEG11: 7600.579675 | AEH11: 7017.299113 | AEI11: 4317.863867 | AEJ11: 8357.644125 | AEK11: 10307.4323 | AEL11: 8206.148366 | AEM11: 5873.557414 | AEN11: 6899.182526 | AEO11: 5012.478716 | AEP11: 8329.57416 | AEQ11: 6626.486463 | AER11: 8764.104075 | AES11: 15801.72648 | AET11: 11492.5403 | AEU11: 9605.722768 | AEV11: 5617.242137 | AEW11: 6689.501209 | AEX11: 6269.426828 | AEY11: 13225.03576 | AEZ11: 7051.657056 | AFA11: 15378.13637 | AFB11: 7597.477292 | AFC11: 8666.11626 | AFD11: 9362.521556 | AFE11: 7151.952292 | AFF11: 13225.84895 | AFG11: 10141.44329 | AFH11: 6992.471859 | AFI11: 25631.61143 | AFJ11: 13288.54075 | AFK11: 7277.321841 | AFL11: 8906.044019 | AFM11: 11180.13987 | AFN11: 10950.27581 | AFO11: 5922.677895 | AFP11: 13099.82554 | AFQ11: 8991.400827 | AFR11: 6684.671203 | AFS11: 10844.05431 | AFT11: 8383.052899 | AFU11: 7290.295949 | AFV11: 4992.059799 | AFW11: 7902.313225 | AFX11: 9981.516687 | AFY11: 13452.00604 | AFZ11: 8049.994881 | AGA11: 7227.099565 | AGB11: 6827.829903 | AGC11: 6376.737199 | AGD11: 8402.302911 | AGE11: 8608.109556 | AGF11: 7690.520219 | AGG11: 8707.31117 | AGH11: 9508.210502 | AGI11: 7697.761294 | AGJ11: 15927.78352 | AGK11: 10053.37521 | AGL11: 7561.664283 | AGM11: 18622.68472 | AGN11: 5826.353692 | AGO11: 6130.380947 | AGP11: 6051.496966 | AGQ11: 12212.81584 | AGR11: 6873.583424 | AGS11: 5586.389764 | AGT11: 6670.660092 | AGU11: 7893.032411 | AGV11: 13789.30794 | AGW11: 13712.48242 | AGX11: 5963.852231 | AGY11: 5771.937197 | AGZ11: 13621.57178 | AHA11: 7107.410757 | AHB11: 4793.33687 | AHC11: 3899.462444 | AHD11: 7877.608937 | AHE11: 7283.031326 | AHF11: 7632.192584 | AHG11: 7333.776058 | AHH11: 6401.739207 | AHI11: 5736.47477 | AHJ11: 8885.861974 | AHK11: 6422.777976 | AHL11: 8260.764578 | AHM11: 15064.63976 | AHN11: 4903.373624 | AHO11: 14155.1086 | AHP11: 12627.42907 | AHQ11: 13555.44557 | AHR11: 7908.747466 | AHS11: 8613.235672 | AHT11: 11123.85985 | AHU11: 12071.86652 | AHV11: 9321.538786 | AHW11: 7886.925926 | AHX11: 5158.173234 | AHY11: 14335.16062 | AHZ11: 4834.015625 | AIA11: 6746.996238 | AIB11: 7119.808922 | AIC11: 8465.500809 | AID11: 12581.10578 | AIE11: 9973.903361 | AIF11: 8139.725633 | AIG11: 7054.047506 | AIH11: 6670.776324 | AII11: 6800.904865 | AIJ11: 7376.426616 | AIK11: 5539.002075 | AIL11: 15072.72436 | AIM11: 12549.83508 | AIN11: 7834.666149 | AIO11: 6153.374951 | AIP11: 6465.9989 | AIQ11: 11358.00063 | AIR11: 7640.940871 | AIS11: 12347.96681 | AIT11: 6901.276406 | AIU11: 9825.728285 | AIV11: 8613.841989 | AIW11: 12038.80783 | AIX11: 13459.83009 | AIY11: 7446.461317 | AIZ11: 7960.519598 | AJA11: 8420.031717 | AJB11: 8161.832775 | AJC11: 12740.04591 | AJD11: 4828.027844 | AJE11: 5486.527237 | AJF11: 7448.548748 | AJG11: 8375.895391 | AJH11: 5821.682644 | AJI11: 6812.408231 | AJJ11: 8060.915409 | AJK11: 6702.535703 | AJL11: 8319.282161 | AJM11: 8891.330956 | AJN11: 8070.304545 | AJO11: 7307.114426 | AJP11: 8431.871578 | AJQ11: 13173.96155 | AJR11: 10614.08859 | AJS11: 5270.150677 | AJT11: 11455.32357 | AJU11: 10805.30729 | AJV11: 7464.125503 | AJW11: 11734.80329 | AJX11: 9462.748614 | AJY11: 7275.660436 | AJZ11: 8232.960771 | AKA11: 8215.161778 | AKB11: 16922.62516 | AKC11: 11753.47307 | AKD11: 4569.158152 | AKE11: 7526.006701 | AKF11: 8048.452992 | AKG11: 4170.489234 | AKH11: 8385.484569 | AKI11: 7540.768666 | AKJ11: 9028.877859 | AKK11: 16990.1511 | AKL11: 4322.900034 | AKM11: 6795.152957 | AKN11: 9617.593564 | AKO11: 11240.37925 | AKP11: 10521.72216 | AKQ11: 12802.32627 | AKR11: 8153.804393 | AKS11: 8679.750439 | AKT11: 8933.633929 | AKU11: 6130.338495 | AKV11: 12021.66264 | AKW11: 8429.057175 | AKX11: 11705.4929 | AKY11: 7927.998922 | AKZ11: 12724.59346 | ALA11: 5295.019801 | ALB11: 11946.7039 | ALC11: 9777.300882 | ALD11: 8661.347256 | ALE11: 10690.06828 | ALF11: 6501.21709 | ALG11: 7856.284977 | ALH11: 9420.516804 | ALI11: 6049.708507 | ALJ11: 9269.666723 | ALK11: 8145.589997 | ALL11: 11372.16448 | ALM11: 9392.588991 | ALN11: 5592.775882 | ALO11: 11954.73556 | ALP11: 11793.35847 | ALQ11: 6036.99087 | ALR11: 14559.40136 | ALS11: 21128.36288 | ALT11: 10736.63215 | ALU11: 4896.923917 | ALV11: 16491.71466 | ALW11: 6644.77458 | ALX11: 6412.210306 | ALY11: 10181.44065 | ALZ11: 7610.400207 | AMA11: 7249.578993 | AMB11: 7829.933992 | AMC11: 13727.15506 | AMD11: 8511.65471 | AME11: 11000.95764 | AMF11: 6473.207167 | AMG11: 4225.628392 | AMH11: 8575.56924 | AMI11: 11847.99556 | AML11: 4989.080122 | AMM11: 5725.272962 | AMN11: 6166.89646 | AMO11: 6541.327583 | AMP11: 6924.985581 | AMQ11: 7299.459826 | AMR11: 7631.930803 | AMS11: 7929.321366 | AMT11: 8216.154073 | AMU11: 8527.916195 | AMV11: 8901.162358 | AMW11: 9329.24075 | AMX11: 9785.198206 | AMY11: 10314.98471 | AMZ11: 10856.48726 | ANA11: 11414.78693 | ANB11: 12178.2965 | ANC11: 13358.77431 | AND11: 15786.53731 | ANF11: 8101.669447 | ANG11: 7695.798425 | ANH11: 7527.828818 | ANI11: 6842.271104 | ANJ11: 6566.250333 | ANK11: 6136.991514 | ANL11: 5962.964329 | ANM11: 5498.172022 | ANN11: 4676.55562 | ANO11: 4800.536603 | ANP11: 5290.408201 | ANQ11: 3894.363047 | ANR11: 3367.47233 | ANS11: 3681.640701 | ANT11: 2474.102095 | ANU11: 1849.354789 | ANV11: 1412.335292 | ANW11: -137.6844179 | ANX11: -2526.739607 | ANY11: =IFERROR(MATCH(MIN(ABS(ANF11:ANX11)),ABS(ANF11:ANX11),0),"") -> 18 | ANZ11: =IFERROR(INDEX(ANF11:ANX11,MIN(MAX(ANY11-1,1),17)),"") -> 1412.335292 | AOA11: =IFERROR(INDEX(ANF11:ANX11,MIN(MAX(ANY11,2),18)),"") -> -137.6844179 | AOB11: =IFERROR(INDEX(ANF11:ANX11,MIN(MAX(ANY11,3),19)),"") -> -137.6844179 | AOC11: =IFERROR(INDEX(AML11:AND11,MIN(MAX(ANY11-1,1),17)),"") -> 12178.2965 | AOD11: =IFERROR(INDEX(AML11:AND11,MIN(MAX(ANY11,2),18)),"") -> 13358.77431 | AOE11: =IFERROR(INDEX(AML11:AND11,MIN(MAX(ANY11,3),19)),"") -> 13358.77431 | AOF11: 13253.91538
A12: =ROW(Variables[[#This Row],[Variable Name]])-ROW(Variables[[#Headers],[Variable Name]]) -> 4 | B12: Chance of cancellation | C12: Cancel | D12: =IF(COUNTA(Variables[[#This Row],[Lower Bound]], Variables[[#This Row],[Mode or P]], Variables[[#This Row],[Upper Bound]])=0, "", IF(Variables[[#This Row],[Shape]]="Constant",Variables[[#This Row],[Mode or P]],IF(Variables[[#This Row],[Shape]]="Lognorm",LOGINV(Variables[[#This Row],[Uniform PRNG]],((LN(Variables[[#This Row],[Lower Bound]]) + LN(Variables[[#This Row],[Upper Bound]]))/2),((LN(Variables[[#This Row],[Upper Bound]]) - LN(Variables[[#This Row],[Lower Bound]]))/3.28971)),IF(Variables[[#This Row],[Shape]]="Normal",NORMINV(Variables[[#This Row],[Uniform PRNG]],(Variables[[#This Row],[Upper Bound]]+Variables[[#This Row],[Lower Bound]])/2,(Variables[[#This Row],[Upper Bound]]-Variables[[#This Row],[Lower Bound]])/3.29),IF(Variables[[#This Row],[Shape]]="Uniform",(Variables[[#This Row],[Upper Bound]]-Variables[[#This Row],[Lower Bound]])*Variables[[#This Row],[Uniform PRNG]]+Variables[[#This Row],[Lower Bound]],IF(Variables[[#This Row],[Shape]]="Binary",IF(Variables[[#This Row],[Uniform PRNG]]<Variables[[#This Row],[Mode or P]],1,0),IF(Variables[[#This Row],[Shape]]="Triangular",IF(Variables[[#This Row],[Uniform PRNG]]<(Variables[[#This Row],[Mode or P]]-Variables[[#This Row],[Lower Bound]])/(Variables[[#This Row],[Upper Bound]]-Variables[[#This Row],[Lower Bound]]), 1, 0) * (Variables[[#This Row],[Lower Bound]] + SQRT(Variables[[#This Row],[Uniform PRNG]]*(Variables[[#This Row],[Upper Bound]]-Variables[[#This Row],[Lower Bound]])*(Variables[[#This Row],[Mode or P]]-Variables[[#This Row],[Lower Bound]]))) + IF(Variables[[#This Row],[Uniform PRNG]]>= (Variables[[#This Row],[Mode or P]]-Variables[[#This Row],[Lower Bound]])/(Variables[[#This Row],[Upper Bound]]-Variables[[#This Row],[Lower Bound]]), 1, 0) * (Variables[[#This Row],[Upper Bound]] - SQRT((1-Variables[[#This Row],[Uniform PRNG]]) * (Variables[[#This Row],[Upper Bound]] - Variables[[#This Row],[Lower Bound]]) * (Variables[[#This Row],[Upper Bound]] - Variables[[#This Row],[Mode or P]]))),""))))))) -> 0 | E12: Binary | G12: 0.04 | I12: Historical analysis of projects | J12: =IFERROR(IF(OR(MIN(Variables[[#This Row],[P(X<T)]], Variables[[#This Row],[P(X>T)]])<0.002,SIGN(Variables[[#This Row],[EOL(X<T)]])=SIGN(Variables[[#This Row],[EOL(X>T)]])),0,IFERROR(IF(B$38=1,IF(Variables[[#This Row],[EOL(X<T)]]<Variables[[#This Row],[EOL(X>T)]],-Variables[[#This Row],[EOL(X<T)]]*Variables[[#This Row],[P(X<T)]],-Variables[[#This Row],[EOL(X>T)]]*Variables[[#This Row],[P(X>T)]]),IF(Variables[[#This Row],[EOL(X<T)]]>Variables[[#This Row],[EOL(X>T)]],Variables[[#This Row],[EOL(X<T)]]*Variables[[#This Row],[P(X<T)]],Variables[[#This Row],[EOL(X>T)]]*Variables[[#This Row],[P(X>T)]])),"")),0) -> 362.8013847 | K12: =IF(Variables[[#This Row],[Shape]]="Constant",Variables[[#This Row],[Mode or P]],IF(Variables[[#This Row],[Shape]]="Lognorm",EXP((LN(Variables[[#This Row],[Upper Bound]])+LN(Variables[[#This Row],[Lower Bound]]))/2+((LN(Variables[[#This Row],[Upper Bound]])-LN(Variables[[#This Row],[Lower Bound]]))/3.29)^2/2),IF(Variables[[#This Row],[Shape]]="Normal",(Variables[[#This Row],[Lower Bound]]+Variables[[#This Row],[Upper Bound]])/2,IF(Variables[[#This Row],[Shape]]="Uniform",(Variables[[#This Row],[Lower Bound]]+Variables[[#This Row],[Upper Bound]])/2,IF(Variables[[#This Row],[Shape]]="Binary",Variables[[#This Row],[Mode or P]],IF(Variables[[#This Row],[Shape]]="Triangular",(Variables[[#This Row],[Lower Bound]]+Variables[[#This Row],[Mode or P]]+Variables[[#This Row],[Upper Bound]])/3,"")))))) -> 0.04 | L12: =IF(Variables[[#This Row],[Shape]]="","",(MOD((MOD(MOD(999999999999989,MOD(ScenarioNum*2499997+Variables[[#This Row],[VarID]]*1800451,7450589)*4658+7450581)*383,99991)*7440893+MOD(MOD(999999999999989,MOD(ScenarioNum*2246527+Variables[[#This Row],[VarID]]*2399993,7450987)*7580+7560584)*17669,7440893))*1343,4294967296)+0.5)/4294967296) -> 0.9966700197 | M12: =IF(Variables[[#This Row],[Shape]]="Binary", 1-Variables[[#This Row],[Mode or P]], IF(Variables[[#This Row],[Shape]]<>"",COUNTIF(INDEX($X$9:$AMI$159, ROW(Variables[[#This Row],[Variable Name]])-ROW(Variables[[#Headers],[Variable Name]]), ),"<"&Variables[[#This Row],[Threshold Estimate]])/1000,"")) -> 0.96 | N12: =IF(Variables[[#This Row],[Shape]]<>"",1-Variables[[#This Row],[P(X<T)]],"") -> 0.04 | O12: =IFERROR(AVERAGEIFS(X$7:AMI$7,INDEX(X$9:$AMI$159, ROW(Variables[[#This Row],[Variable Name]])-ROW(Variables[[#Headers],[Variable Name]]), ),IF(Variables[[#This Row],[Shape]]="Binary","=0","<"&Variables[[#This Row],[Threshold Estimate]])),"") -> 4846.903788 | P12: =IFERROR(AVERAGEIFS(X$7:AMI$7,INDEX($X$9:$AMI$159, ROW(Variables[[#This Row],[Variable Name]])-ROW(Variables[[#Headers],[Variable Name]]), ),IF(Variables[[#This Row],[Shape]]="Binary","=1",">"&Variables[[#This Row],[Threshold Estimate]])),"") -> -9070.034617 | Q12: =IFERROR(IF(Variables[[#This Row],[Shape]]="Binary",IF(B$38=1,IF(Variables[[#This Row],[EOL(X<T)]]<Variables[[#This Row],[EOL(X>T)]],0,1),IF(Variables[[#This Row],[EOL(X<T)]]<Variables[[#This Row],[EOL(X>T)]],1,0)), INDEX($AOF$9:$AOF$159, ROW(Variables[[#This Row],[Variable Name]])-ROW(Variables[[#Headers],[Variable Name]]))),"") -> 1 | S12: Triangular | V12: =IFERROR(IF(ISBLANK(Variables[[#This Row],[Variable Name]]), "", Variables[[#This Row],[Variable Name]]), "") -> Chance of cancellation | W12: =IFERROR(IF(ISBLANK(D12), "", D12), "") -> 0 | X12: 0 | Y12: 0 | Z12: 0 | AA12: 0 | AB12: 0 | AC12: 0 | AD12: 0 | AE12: 0 | AF12: 0 | AG12: 0 | AH12: 0 | AI12: 0 | AJ12: 0 | AK12: 0 | AL12: 0 | AM12: 0 | AN12: 0 | AO12: 0 | AP12: 0 | AQ12: 0 | AR12: 0 | AS12: 0 | AT12: 0 | AU12: 0 | AV12: 0 | AW12: 0 | AX12: 0 | AY12: 0 | AZ12: 0 | BA12: 0 | BB12: 0 | BC12: 0 | BD12: 0 | BE12: 0 | BF12: 0 | BG12: 0 | BH12: 0 | BI12: 0 | BJ12: 0 | BK12: 0 | BL12: 0 | BM12: 0 | BN12: 0 | BO12: 0 | BP12: 0 | BQ12: 0 | BR12: 0 | BS12: 0 | BT12: 0 | BU12: 0 | BV12: 0 | BW12: 0 | BX12: 0 | BY12: 0 | BZ12: 0 | CA12: 0 | CB12: 0 | CC12: 0 | CD12: 0 | CE12: 0 | CF12: 0 | CG12: 0 | CH12: 0 | CI12: 0 | CJ12: 0 | CK12: 0 | CL12: 0 | CM12: 0 | CN12: 0 | CO12: 0 | CP12: 0 | CQ12: 0 | CR12: 0 | CS12: 0 | CT12: 0 | CU12: 0 | CV12: 0 | CW12: 0 | CX12: 0 | CY12: 0 | CZ12: 0 | DA12: 0 | DB12: 0 | DC12: 0 | DD12: 0 | DE12: 0 | DF12: 0 | DG12: 0 | DH12: 0 | DI12: 0 | DJ12: 0 | DK12: 0 | DL12: 0 | DM12: 0 | DN12: 0 | DO12: 0 | DP12: 0 | DQ12: 0 | DR12: 0 | DS12: 0 | DT12: 0 | DU12: 0 | DV12: 0 | DW12: 0 | DX12: 0 | DY12: 0 | DZ12: 0 | EA12: 0 | EB12: 0 | EC12: 1 | ED12: 0 | EE12: 0 | EF12: 0 | EG12: 0 | EH12: 0 | EI12: 0 | EJ12: 0 | EK12: 0 | EL12: 0 | EM12: 0 | EN12: 0 | EO12: 0 | EP12: 0 | EQ12: 0 | ER12: 0 | ES12: 0 | ET12: 1 | EU12: 0 | EV12: 0 | EW12: 0 | EX12: 0 | EY12: 0 | EZ12: 0 | FA12: 1 | FB12: 0 | FC12: 0 | FD12: 0 | FE12: 0 | FF12: 0 | FG12: 0 | FH12: 0 | FI12: 0 | FJ12: 0 | FK12: 0 | FL12: 0 | FM12: 0 | FN12: 0 | FO12: 0 | FP12: 0 | FQ12: 1 | FR12: 0 | FS12: 0 | FT12: 0 | FU12: 0 | FV12: 0 | FW12: 0 | FX12: 0 | FY12: 0 | FZ12: 0 | GA12: 0 | GB12: 0 | GC12: 0 | GD12: 0 | GE12: 0 | GF12: 1 | GG12: 0 | GH12: 0 | GI12: 0 | GJ12: 0 | GK12: 0 | GL12: 0 | GM12: 0 | GN12: 0 | GO12: 0 | GP12: 0 | GQ12: 0 | GR12: 0 | GS12: 0 | GT12: 0 | GU12: 0 | GV12: 0 | GW12: 0 | GX12: 0 | GY12: 0 | GZ12: 0 | HA12: 0 | HB12: 0 | HC12: 0 | HD12: 0 | HE12: 0 | HF12: 1 | HG12: 0 | HH12: 0 | HI12: 0 | HJ12: 0 | HK12: 0 | HL12: 0 | HM12: 1 | HN12: 0 | HO12: 0 | HP12: 0 | HQ12: 0 | HR12: 0 | HS12: 0 | HT12: 0 | HU12: 0 | HV12: 1 | HW12: 0 | HX12: 0 | HY12: 0 | HZ12: 0 | IA12: 0 | IB12: 0 | IC12: 0 | ID12: 0 | IE12: 0 | IF12: 0 | IG12: 0 | IH12: 0 | II12: 0 | IJ12: 0 | IK12: 0 | IL12: 0 | IM12: 0 | IN12: 0 | IO12: 0 | IP12: 0 | IQ12: 0 | IR12: 0 | IS12: 0 | IT12: 0 | IU12: 0 | IV12: 0 | IW12: 0 | IX12: 0 | IY12: 0 | IZ12: 0 | JA12: 1 | JB12: 0 | JC12: 0 | JD12: 0 | JE12: 0 | JF12: 0 | JG12: 0 | JH12: 0 | JI12: 0 | JJ12: 0 | JK12: 0 | JL12: 0 | JM12: 1 | JN12: 0 | JO12: 0 | JP12: 0 | JQ12: 0 | JR12: 0 | JS12: 0 | JT12: 0 | JU12: 0 | JV12: 0 | JW12: 0 | JX12: 0 | JY12: 0 | JZ12: 0 | KA12: 0 | KB12: 0 | KC12: 0 | KD12: 0 | KE12: 0 | KF12: 0 | KG12: 0 | KH12: 0 | KI12: 0 | KJ12: 0 | KK12: 0 | KL12: 0 | KM12: 0 | KN12: 0 | KO12: 0 | KP12: 0 | KQ12: 0 | KR12: 0 | KS12: 0 | KT12: 1 | KU12: 0 | KV12: 0 | KW12: 0 | KX12: 0 | KY12: 0 | KZ12: 0 | LA12: 0 | LB12: 0 | LC12: 0 | LD12: 0 | LE12: 0 | LF12: 0 | LG12: 0 | LH12: 0 | LI12: 0 | LJ12: 0 | LK12: 0 | LL12: 0 | LM12: 0 | LN12: 0 | LO12: 0 | LP12: 0 | LQ12: 0 | LR12: 0 | LS12: 0 | LT12: 0 | LU12: 0 | LV12: 0 | LW12: 0 | LX12: 0 | LY12: 0 | LZ12: 0 | MA12: 0 | MB12: 0 | MC12: 1 | MD12: 1 | ME12: 0 | MF12: 0 | MG12: 0 | MH12: 0 | MI12: 0 | MJ12: 0 | MK12: 0 | ML12: 0 | MM12: 0 | MN12: 0 | MO12: 0 | MP12: 0 | MQ12: 0 | MR12: 0 | MS12: 0 | MT12: 0 | MU12: 0 | MV12: 0 | MW12: 1 | MX12: 0 | MY12: 0 | MZ12: 0 | NA12: 0 | NB12: 0 | NC12: 0 | ND12: 0 | NE12: 0 | NF12: 0 | NG12: 0 | NH12: 0 | NI12: 0 | NJ12: 0 | NK12: 0 | NL12: 0 | NM12: 0 | NN12: 0 | NO12: 0 | NP12: 0 | NQ12: 0 | NR12: 0 | NS12: 0 | NT12: 0 | NU12: 0 | NV12: 0 | NW12: 1 | NX12: 0 | NY12: 0 | NZ12: 0 | OA12: 0 | OB12: 0 | OC12: 0 | OD12: 0 | OE12: 0 | OF12: 0 | OG12: 0 | OH12: 0 | OI12: 0 | OJ12: 0 | OK12: 0 | OL12: 0 | OM12: 0 | ON12: 0 | OO12: 0 | OP12: 0 | OQ12: 0 | OR12: 0 | OS12: 0 | OT12: 0 | OU12: 0 | OV12: 0 | OW12: 0 | OX12: 0 | OY12: 0 | OZ12: 0 | PA12: 0 | PB12: 0 | PC12: 0 | PD12: 0 | PE12: 0 | PF12: 1 | PG12: 0 | PH12: 1 | PI12: 0 | PJ12: 0 | PK12: 0 | PL12: 0 | PM12: 0 | PN12: 0 | PO12: 1 | PP12: 0 | PQ12: 0 | PR12: 0 | PS12: 0 | PT12: 0 | PU12: 0 | PV12: 0 | PW12: 0 | PX12: 0 | PY12: 0 | PZ12: 0 | QA12: 0 | QB12: 0 | QC12: 0 | QD12: 0 | QE12: 0 | QF12: 0 | QG12: 0 | QH12: 0 | QI12: 0 | QJ12: 0 | QK12: 0 | QL12: 0 | QM12: 0 | QN12: 0 | QO12: 0 | QP12: 0 | QQ12: 0 | QR12: 0 | QS12: 0 | QT12: 0 | QU12: 0 | QV12: 0 | QW12: 0 | QX12: 0 | QY12: 0 | QZ12: 0 | RA12: 0 | RB12: 0 | RC12: 0 | RD12: 0 | RE12: 0 | RF12: 0 | RG12: 0 | RH12: 0 | RI12: 0 | RJ12: 0 | RK12: 0 | RL12: 0 | RM12: 0 | RN12: 0 | RO12: 0 | RP12: 0 | RQ12: 0 | RR12: 0 | RS12: 0 | RT12: 0 | RU12: 0 | RV12: 0 | RW12: 0 | RX12: 1 | RY12: 0 | RZ12: 0 | SA12: 0 | SB12: 0 | SC12: 0 | SD12: 0 | SE12: 0 | SF12: 0 | SG12: 0 | SH12: 0 | SI12: 0 | SJ12: 0 | SK12: 0 | SL12: 0 | SM12: 0 | SN12: 0 | SO12: 0 | SP12: 0 | SQ12: 0 | SR12: 0 | SS12: 0 | ST12: 0 | SU12: 0 | SV12: 0 | SW12: 0 | SX12: 0 | SY12: 0 | SZ12: 0 | TA12: 0 | TB12: 0 | TC12: 0 | TD12: 0 | TE12: 0 | TF12: 0 | TG12: 0 | TH12: 0 | TI12: 0 | TJ12: 0 | TK12: 0 | TL12: 0 | TM12: 0 | TN12: 0 | TO12: 0 | TP12: 0 | TQ12: 0 | TR12: 0 | TS12: 0 | TT12: 0 | TU12: 0 | TV12: 0 | TW12: 0 | TX12: 0 | TY12: 0 | TZ12: 0 | UA12: 0 | UB12: 0 | UC12: 0 | UD12: 0 | UE12: 0 | UF12: 0 | UG12: 0 | UH12: 0 | UI12: 0 | UJ12: 0 | UK12: 0 | UL12: 0 | UM12: 0 | UN12: 0 | UO12: 0 | UP12: 0 | UQ12: 0 | UR12: 0 | US12: 0 | UT12: 0 | UU12: 0 | UV12: 0 | UW12: 0 | UX12: 0 | UY12: 0 | UZ12: 0 | VA12: 0 | VB12: 0 | VC12: 0 | VD12: 1 | VE12: 0 | VF12: 0 | VG12: 0 | VH12: 0 | VI12: 0 | VJ12: 0 | VK12: 0 | VL12: 0 | VM12: 0 | VN12: 0 | VO12: 0 | VP12: 0 | VQ12: 0 | VR12: 0 | VS12: 0 | VT12: 0 | VU12: 0 | VV12: 1 | VW12: 0 | VX12: 0 | VY12: 0 | VZ12: 0 | WA12: 0 | WB12: 0 | WC12: 0 | WD12: 0 | WE12: 0 | WF12: 0 | WG12: 0 | WH12: 0 | WI12: 0 | WJ12: 0 | WK12: 0 | WL12: 0 | WM12: 0 | WN12: 1 | WO12: 0 | WP12: 0 | WQ12: 0 | WR12: 0 | WS12: 0 | WT12: 1 | WU12: 0 | WV12: 0 | WW12: 0 | WX12: 0 | WY12: 0 | WZ12: 0 | XA12: 0 | XB12: 0 | XC12: 0 | XD12: 0 | XE12: 0 | XF12: 0 | XG12: 0 | XH12: 0 | XI12: 0 | XJ12: 0 | XK12: 0 | XL12: 0 | XM12: 0 | XN12: 0 | XO12: 0 | XP12: 0 | XQ12: 0 | XR12: 0 | XS12: 0 | XT12: 1 | XU12: 0 | XV12: 0 | XW12: 0 | XX12: 0 | XY12: 0 | XZ12: 0 | YA12: 0 | YB12: 0 | YC12: 0 | YD12: 0 | YE12: 0 | YF12: 0 | YG12: 0 | YH12: 0 | YI12: 0 | YJ12: 0 | YK12: 0 | YL12: 0 | YM12: 0 | YN12: 0 | YO12: 0 | YP12: 0 | YQ12: 0 | YR12: 0 | YS12: 0 | YT12: 0 | YU12: 0 | YV12: 0 | YW12: 0 | YX12: 0 | YY12: 0 | YZ12: 0 | ZA12: 0 | ZB12: 0 | ZC12: 0 | ZD12: 0 | ZE12: 0 | ZF12: 0 | ZG12: 0 | ZH12: 0 | ZI12: 0 | ZJ12: 0 | ZK12: 0 | ZL12: 1 | ZM12: 0 | ZN12: 0 | ZO12: 0 | ZP12: 0 | ZQ12: 0 | ZR12: 0 | ZS12: 1 | ZT12: 0 | ZU12: 0 | ZV12: 0 | ZW12: 0 | ZX12: 0 | ZY12: 0 | ZZ12: 0 | AAA12: 0 | AAB12: 0 | AAC12: 0 | AAD12: 0 | AAE12: 0 | AAF12: 0 | AAG12: 0 | AAH12: 0 | AAI12: 0 | AAJ12: 0 | AAK12: 1 | AAL12: 0 | AAM12: 0 | AAN12: 0 | AAO12: 0 | AAP12: 0 | AAQ12: 0 | AAR12: 0 | AAS12: 0 | AAT12: 0 | AAU12: 0 | AAV12: 0 | AAW12: 0 | AAX12: 0 | AAY12: 0 | AAZ12: 0 | ABA12: 0 | ABB12: 0 | ABC12: 0 | ABD12: 0 | ABE12: 0 | ABF12: 0 | ABG12: 0 | ABH12: 0 | ABI12: 0 | ABJ12: 0 | ABK12: 0 | ABL12: 0 | ABM12: 0 | ABN12: 0 | ABO12: 0 | ABP12: 0 | ABQ12: 0 | ABR12: 0 | ABS12: 0 | ABT12: 0 | ABU12: 0 | ABV12: 0 | ABW12: 1 | ABX12: 0 | ABY12: 0 | ABZ12: 0 | ACA12: 0 | ACB12: 0 | ACC12: 0 | ACD12: 0 | ACE12: 0 | ACF12: 0 | ACG12: 0 | ACH12: 0 | ACI12: 0 | ACJ12: 0 | ACK12: 0 | ACL12: 0 | ACM12: 0 | ACN12: 0 | ACO12: 0 | ACP12: 0 | ACQ12: 0 | ACR12: 0 | ACS12: 0 | ACT12: 0 | ACU12: 0 | ACV12: 0 | ACW12: 0 | ACX12: 0 | ACY12: 0 | ACZ12: 0 | ADA12: 0 | ADB12: 0 | ADC12: 0 | ADD12: 0 | ADE12: 1 | ADF12: 0 | ADG12: 0 | ADH12: 0 | ADI12: 0 | ADJ12: 0 | ADK12: 0 | ADL12: 0 | ADM12: 0 | ADN12: 0 | ADO12: 0 | ADP12: 0 | ADQ12: 0 | ADR12: 0 | ADS12: 0 | ADT12: 0 | ADU12: 0 | ADV12: 0 | ADW12: 0 | ADX12: 0 | ADY12: 0 | ADZ12: 1 | AEA12: 0 | AEB12: 0 | AEC12: 0 | AED12: 0 | AEE12: 0 | AEF12: 0 | AEG12: 0 | AEH12: 0 | AEI12: 0 | AEJ12: 0 | AEK12: 0 | AEL12: 0 | AEM12: 0 | AEN12: 0 | AEO12: 0 | AEP12: 0 | AEQ12: 0 | AER12: 0 | AES12: 0 | AET12: 0 | AEU12: 0 | AEV12: 0 | AEW12: 0 | AEX12: 0 | AEY12: 0 | AEZ12: 0 | AFA12: 0 | AFB12: 0 | AFC12: 0 | AFD12: 0 | AFE12: 0 | AFF12: 0 | AFG12: 0 | AFH12: 0 | AFI12: 0 | AFJ12: 0 | AFK12: 0 | AFL12: 0 | AFM12: 0 | AFN12: 1 | AFO12: 0 | AFP12: 0 | AFQ12: 0 | AFR12: 0 | AFS12: 0 | AFT12: 0 | AFU12: 0 | AFV12: 0 | AFW12: 0 | AFX12: 1 | AFY12: 0 | AFZ12: 0 | AGA12: 0 | AGB12: 0 | AGC12: 0 | AGD12: 1 | AGE12: 0 | AGF12: 0 | AGG12: 0 | AGH12: 0 | AGI12: 0 | AGJ12: 0 | AGK12: 0 | AGL12: 0 | AGM12: 0 | AGN12: 0 | AGO12: 0 | AGP12: 0 | AGQ12: 0 | AGR12: 0 | AGS12: 0 | AGT12: 0 | AGU12: 0 | AGV12: 1 | AGW12: 0 | AGX12: 0 | AGY12: 0 | AGZ12: 0 | AHA12: 0 | AHB12: 0 | AHC12: 0 | AHD12: 0 | AHE12: 0 | AHF12: 0 | AHG12: 0 | AHH12: 0 | AHI12: 0 | AHJ12: 0 | AHK12: 0 | AHL12: 0 | AHM12: 0 | AHN12: 0 | AHO12: 1 | AHP12: 0 | AHQ12: 0 | AHR12: 0 | AHS12: 0 | AHT12: 0 | AHU12: 0 | AHV12: 0 | AHW12: 0 | AHX12: 0 | AHY12: 0 | AHZ12: 1 | AIA12: 0 | AIB12: 0 | AIC12: 1 | AID12: 0 | AIE12: 0 | AIF12: 0 | AIG12: 1 | AIH12: 0 | AII12: 0 | AIJ12: 0 | AIK12: 0 | AIL12: 0 | AIM12: 0 | AIN12: 0 | AIO12: 0 | AIP12: 0 | AIQ12: 0 | AIR12: 0 | AIS12: 0 | AIT12: 0 | AIU12: 0 | AIV12: 0 | AIW12: 0 | AIX12: 1 | AIY12: 0 | AIZ12: 0 | AJA12: 0 | AJB12: 0 | AJC12: 0 | AJD12: 0 | AJE12: 0 | AJF12: 0 | AJG12: 0 | AJH12: 0 | AJI12: 0 | AJJ12: 0 | AJK12: 0 | AJL12: 0 | AJM12: 0 | AJN12: 0 | AJO12: 0 | AJP12: 0 | AJQ12: 0 | AJR12: 0 | AJS12: 0 | AJT12: 0 | AJU12: 0 | AJV12: 0 | AJW12: 0 | AJX12: 0 | AJY12: 0 | AJZ12: 0 | AKA12: 0 | AKB12: 0 | AKC12: 0 | AKD12: 0 | AKE12: 0 | AKF12: 0 | AKG12: 0 | AKH12: 0 | AKI12: 0 | AKJ12: 0 | AKK12: 0 | AKL12: 0 | AKM12: 0 | AKN12: 0 | AKO12: 0 | AKP12: 0 | AKQ12: 0 | AKR12: 0 | AKS12: 0 | AKT12: 0 | AKU12: 0 | AKV12: 0 | AKW12: 0 | AKX12: 0 | AKY12: 0 | AKZ12: 0 | ALA12: 0 | ALB12: 1 | ALC12: 0 | ALD12: 0 | ALE12: 0 | ALF12: 0 | ALG12: 0 | ALH12: 0 | ALI12: 0 | ALJ12: 0 | ALK12: 0 | ALL12: 0 | ALM12: 0 | ALN12: 0 | ALO12: 0 | ALP12: 0 | ALQ12: 0 | ALR12: 0 | ALS12: 0 | ALT12: 0 | ALU12: 0 | ALV12: 0 | ALW12: 0 | ALX12: 0 | ALY12: 0 | ALZ12: 0 | AMA12: 0 | AMB12: 0 | AMC12: 0 | AMD12: 0 | AME12: 0 | AMF12: 0 | AMG12: 0 | AMH12: 0 | AMI12: 0 | ANY12: =IFERROR(MATCH(MIN(ABS(ANF12:ANX12)),ABS(ANF12:ANX12),0),"") ->  | ANZ12: =IFERROR(INDEX(ANF12:ANX12,MIN(MAX(ANY12-1,1),17)),"") ->  | AOA12: =IFERROR(INDEX(ANF12:ANX12,MIN(MAX(ANY12,2),18)),"") ->  | AOB12: =IFERROR(INDEX(ANF12:ANX12,MIN(MAX(ANY12,3),19)),"") ->  | AOC12: =IFERROR(INDEX(AML12:AND12,MIN(MAX(ANY12-1,1),17)),"") ->  | AOD12: =IFERROR(INDEX(AML12:AND12,MIN(MAX(ANY12,2),18)),"") ->  | AOE12: =IFERROR(INDEX(AML12:AND12,MIN(MAX(ANY12,3),19)),"") -> 
A13: =ROW(Variables[[#This Row],[Variable Name]])-ROW(Variables[[#Headers],[Variable Name]]) -> 5 | B13: Cost of money | C13: CostM | D13: =IF(COUNTA(Variables[[#This Row],[Lower Bound]], Variables[[#This Row],[Mode or P]], Variables[[#This Row],[Upper Bound]])=0, "", IF(Variables[[#This Row],[Shape]]="Constant",Variables[[#This Row],[Mode or P]],IF(Variables[[#This Row],[Shape]]="Lognorm",LOGINV(Variables[[#This Row],[Uniform PRNG]],((LN(Variables[[#This Row],[Lower Bound]]) + LN(Variables[[#This Row],[Upper Bound]]))/2),((LN(Variables[[#This Row],[Upper Bound]]) - LN(Variables[[#This Row],[Lower Bound]]))/3.28971)),IF(Variables[[#This Row],[Shape]]="Normal",NORMINV(Variables[[#This Row],[Uniform PRNG]],(Variables[[#This Row],[Upper Bound]]+Variables[[#This Row],[Lower Bound]])/2,(Variables[[#This Row],[Upper Bound]]-Variables[[#This Row],[Lower Bound]])/3.29),IF(Variables[[#This Row],[Shape]]="Uniform",(Variables[[#This Row],[Upper Bound]]-Variables[[#This Row],[Lower Bound]])*Variables[[#This Row],[Uniform PRNG]]+Variables[[#This Row],[Lower Bound]],IF(Variables[[#This Row],[Shape]]="Binary",IF(Variables[[#This Row],[Uniform PRNG]]<Variables[[#This Row],[Mode or P]],1,0),IF(Variables[[#This Row],[Shape]]="Triangular",IF(Variables[[#This Row],[Uniform PRNG]]<(Variables[[#This Row],[Mode or P]]-Variables[[#This Row],[Lower Bound]])/(Variables[[#This Row],[Upper Bound]]-Variables[[#This Row],[Lower Bound]]), 1, 0) * (Variables[[#This Row],[Lower Bound]] + SQRT(Variables[[#This Row],[Uniform PRNG]]*(Variables[[#This Row],[Upper Bound]]-Variables[[#This Row],[Lower Bound]])*(Variables[[#This Row],[Mode or P]]-Variables[[#This Row],[Lower Bound]]))) + IF(Variables[[#This Row],[Uniform PRNG]]>= (Variables[[#This Row],[Mode or P]]-Variables[[#This Row],[Lower Bound]])/(Variables[[#This Row],[Upper Bound]]-Variables[[#This Row],[Lower Bound]]), 1, 0) * (Variables[[#This Row],[Upper Bound]] - SQRT((1-Variables[[#This Row],[Uniform PRNG]]) * (Variables[[#This Row],[Upper Bound]] - Variables[[#This Row],[Lower Bound]]) * (Variables[[#This Row],[Upper Bound]] - Variables[[#This Row],[Mode or P]]))),""))))))) -> 0.1172430614 | E13: Lognorm | F13: 0.03 | H13: 0.09 | I13: CFO estimate | J13: =IFERROR(IF(OR(MIN(Variables[[#This Row],[P(X<T)]], Variables[[#This Row],[P(X>T)]])<0.002,SIGN(Variables[[#This Row],[EOL(X<T)]])=SIGN(Variables[[#This Row],[EOL(X>T)]])),0,IFERROR(IF(B$38=1,IF(Variables[[#This Row],[EOL(X<T)]]<Variables[[#This Row],[EOL(X>T)]],-Variables[[#This Row],[EOL(X<T)]]*Variables[[#This Row],[P(X<T)]],-Variables[[#This Row],[EOL(X>T)]]*Variables[[#This Row],[P(X>T)]]),IF(Variables[[#This Row],[EOL(X<T)]]>Variables[[#This Row],[EOL(X>T)]],Variables[[#This Row],[EOL(X<T)]]*Variables[[#This Row],[P(X<T)]],Variables[[#This Row],[EOL(X>T)]]*Variables[[#This Row],[P(X>T)]])),"")),0) -> 1.88974926 | K13: =IF(Variables[[#This Row],[Shape]]="Constant",Variables[[#This Row],[Mode or P]],IF(Variables[[#This Row],[Shape]]="Lognorm",EXP((LN(Variables[[#This Row],[Upper Bound]])+LN(Variables[[#This Row],[Lower Bound]]))/2+((LN(Variables[[#This Row],[Upper Bound]])-LN(Variables[[#This Row],[Lower Bound]]))/3.29)^2/2),IF(Variables[[#This Row],[Shape]]="Normal",(Variables[[#This Row],[Lower Bound]]+Variables[[#This Row],[Upper Bound]])/2,IF(Variables[[#This Row],[Shape]]="Uniform",(Variables[[#This Row],[Lower Bound]]+Variables[[#This Row],[Upper Bound]])/2,IF(Variables[[#This Row],[Shape]]="Binary",Variables[[#This Row],[Mode or P]],IF(Variables[[#This Row],[Shape]]="Triangular",(Variables[[#This Row],[Lower Bound]]+Variables[[#This Row],[Mode or P]]+Variables[[#This Row],[Upper Bound]])/3,"")))))) -> 0.05494080766 | L13: =IF(Variables[[#This Row],[Shape]]="","",(MOD((MOD(MOD(999999999999989,MOD(ScenarioNum*2499997+Variables[[#This Row],[VarID]]*1800451,7450589)*4658+7450581)*383,99991)*7440893+MOD(MOD(999999999999989,MOD(ScenarioNum*2246527+Variables[[#This Row],[VarID]]*2399993,7450987)*7580+7560584)*17669,7440893))*1343,4294967296)+0.5)/4294967296) -> 0.9925889926 | M13: =IF(Variables[[#This Row],[Shape]]="Binary", 1-Variables[[#This Row],[Mode or P]], IF(Variables[[#This Row],[Shape]]<>"",COUNTIF(INDEX($X$9:$AMI$159, ROW(Variables[[#This Row],[Variable Name]])-ROW(Variables[[#Headers],[Variable Name]]), ),"<"&Variables[[#This Row],[Threshold Estimate]])/1000,"")) -> 0.998 | N13: =IF(Variables[[#This Row],[Shape]]<>"",1-Variables[[#This Row],[P(X<T)]],"") -> 0.002 | O13: =IFERROR(AVERAGEIFS(X$7:AMI$7,INDEX(X$9:$AMI$159, ROW(Variables[[#This Row],[Variable Name]])-ROW(Variables[[#Headers],[Variable Name]]), ),IF(Variables[[#This Row],[Shape]]="Binary","=0","<"&Variables[[#This Row],[Threshold Estimate]])),"") -> 4300.717436 | P13: =IFERROR(AVERAGEIFS(X$7:AMI$7,INDEX($X$9:$AMI$159, ROW(Variables[[#This Row],[Variable Name]])-ROW(Variables[[#Headers],[Variable Name]]), ),IF(Variables[[#This Row],[Shape]]="Binary","=1",">"&Variables[[#This Row],[Threshold Estimate]])),"") -> -944.8746299 | Q13: =IFERROR(IF(Variables[[#This Row],[Shape]]="Binary",IF(B$38=1,IF(Variables[[#This Row],[EOL(X<T)]]<Variables[[#This Row],[EOL(X>T)]],0,1),IF(Variables[[#This Row],[EOL(X<T)]]<Variables[[#This Row],[EOL(X>T)]],1,0)), INDEX($AOF$9:$AOF$159, ROW(Variables[[#This Row],[Variable Name]])-ROW(Variables[[#Headers],[Variable Name]]))),"") -> 0.1458987528 | S13: Constant | V13: =IFERROR(IF(ISBLANK(Variables[[#This Row],[Variable Name]]), "", Variables[[#This Row],[Variable Name]]), "") -> Cost of money | W13: =IFERROR(IF(ISBLANK(D13), "", D13), "") -> 0.1172430614 | X13: 0.07056881949 | Y13: 0.03486393692 | Z13: 0.04257061556 | AA13: 0.04517199068 | AB13: 0.02565403938 | AC13: 0.03670993207 | AD13: 0.04412582935 | AE13: 0.04137839203 | AF13: 0.04436880925 | AG13: 0.04992381087 | AH13: 0.0516115089 | AI13: 0.04663794898 | AJ13: 0.05571873528 | AK13: 0.06788538325 | AL13: 0.08622405943 | AM13: 0.05826237265 | AN13: 0.03088322397 | AO13: 0.0581312997 | AP13: 0.01838361534 | AQ13: 0.03361480558 | AR13: 0.0924692542 | AS13: 0.04647409032 | AT13: 0.0461945123 | AU13: 0.0466062255 | AV13: 0.03611248636 | AW13: 0.0403143811 | AX13: 0.05707644836 | AY13: 0.04282012054 | AZ13: 0.03819523217 | BA13: 0.09722333847 | BB13: 0.0465418882 | BC13: 0.06449536928 | BD13: 0.06971154738 | BE13: 0.03914401373 | BF13: 0.03671843935 | BG13: 0.0451309264 | BH13: 0.03243538662 | BI13: 0.05554804918 | BJ13: 0.07267900738 | BK13: 0.04450604087 | BL13: 0.05636326724 | BM13: 0.04141569908 | BN13: 0.04778973955 | BO13: 0.03792791439 | BP13: 0.05843409384 | BQ13: 0.05567269144 | BR13: 0.05730233211 | BS13: 0.03406108352 | BT13: 0.06994019096 | BU13: 0.05890544711 | BV13: 0.04515052522 | BW13: 0.06508606766 | BX13: 0.1026205408 | BY13: 0.05140801675 | BZ13: 0.07232939967 | CA13: 0.05749537568 | CB13: 0.06573500562 | CC13: 0.02579929211 | CD13: 0.05687664372 | CE13: 0.07295244531 | CF13: 0.05036978261 | CG13: 0.04019964881 | CH13: 0.0871157963 | CI13: 0.08415388165 | CJ13: 0.07870905469 | CK13: 0.05210124565 | CL13: 0.03736038894 | CM13: 0.066291185 | CN13: 0.09811118784 | CO13: 0.06012063063 | CP13: 0.0443367702 | CQ13: 0.02763825351 | CR13: 0.04457629359 | CS13: 0.05608372743 | CT13: 0.05235373088 | CU13: 0.0584937381 | CV13: 0.04873976348 | CW13: 0.07139046539 | CX13: 0.04492886809 | CY13: 0.08108752668 | CZ13: 0.04864500376 | DA13: 0.04218575787 | DB13: 0.03997581747 | DC13: 0.02225777235 | DD13: 0.03616346996 | DE13: 0.05531338484 | DF13: 0.04840961533 | DG13: 0.06939146289 | DH13: 0.05417204518 | DI13: 0.04848334416 | DJ13: 0.05985845405 | DK13: 0.0682011838 | DL13: 0.03627379733 | DM13: 0.05330659155 | DN13: 0.05599355824 | DO13: 0.05377523612 | DP13: 0.03341617703 | DQ13: 0.04510017448 | DR13: 0.05134783561 | DS13: 0.06418895157 | DT13: 0.09086526628 | DU13: 0.05528393179 | DV13: 0.04402131316 | DW13: 0.06779383225 | DX13: 0.05174827805 | DY13: 0.04463981801 | DZ13: 0.03188726115 | EA13: 0.03653286894 | EB13: 0.04639626648 | EC13: 0.04428045714 | ED13: 0.05133068825 | EE13: 0.04366934111 | EF13: 0.05747077955 | EG13: 0.04371167626 | EH13: 0.09137373284 | EI13: 0.04724405861 | EJ13: 0.02892572112 | EK13: 0.04629129229 | EL13: 0.05015751073 | EM13: 0.06236283674 | EN13: 0.05191317045 | EO13: 0.05095004796 | EP13: 0.02908671059 | EQ13: 0.04182886746 | ER13: 0.06448236818 | ES13: 0.07262712508 | ET13: 0.03418659591 | EU13: 0.03540290245 | EV13: 0.05037979867 | EW13: 0.0393726262 | EX13: 0.02491936506 | EY13: 0.0523771755 | EZ13: 0.04187004597 | FA13: 0.08789616654 | FB13: 0.08581165406 | FC13: 0.06959609986 | FD13: 0.0684198877 | FE13: 0.04472366093 | FF13: 0.07565717411 | FG13: 0.03192014122 | FH13: 0.05899878741 | FI13: 0.03667207166 | FJ13: 0.0483557137 | FK13: 0.06775267699 | FL13: 0.02878321257 | FM13: 0.1062963052 | FN13: 0.05341937455 | FO13: 0.05907189717 | FP13: 0.04983557323 | FQ13: 0.05958232518 | FR13: 0.04184383949 | FS13: 0.04798171041 | FT13: 0.03145008564 | FU13: 0.0983217997 | FV13: 0.03579085997 | FW13: 0.05620895702 | FX13: 0.0837583241 | FY13: 0.05824301861 | FZ13: 0.0525499771 | GA13: 0.0660504235 | GB13: 0.04357185201 | GC13: 0.04238815024 | GD13: 0.04760362024 | GE13: 0.06023418741 | GF13: 0.03650217544 | GG13: 0.1006271465 | GH13: 0.05039339133 | GI13: 0.05569343078 | GJ13: 0.1014768536 | GK13: 0.04187897023 | GL13: 0.04653032376 | GM13: 0.02820141389 | GN13: 0.03710098904 | GO13: 0.04966227872 | GP13: 0.05916497802 | GQ13: 0.06889765335 | GR13: 0.02660159671 | GS13: 0.06471568832 | GT13: 0.05420304786 | GU13: 0.04899139976 | GV13: 0.0922910946 | GW13: 0.04479800432 | GX13: 0.0652579844 | GY13: 0.078846985 | GZ13: 0.04606855057 | HA13: 0.0548005978 | HB13: 0.06289248666 | HC13: 0.05325156581 | HD13: 0.0553061774 | HE13: 0.0504020603 | HF13: 0.05300916829 | HG13: 0.03847207603 | HH13: 0.035269666 | HI13: 0.05449551215 | HJ13: 0.04679016911 | HK13: 0.04111578678 | HL13: 0.02930297644 | HM13: 0.05507488512 | HN13: 0.06530868308 | HO13: 0.02411743646 | HP13: 0.07866248923 | HQ13: 0.1098748214 | HR13: 0.04887752557 | HS13: 0.03825858765 | HT13: 0.04069664206 | HU13: 0.03804666056 | HV13: 0.03215753147 | HW13: 0.02323787933 | HX13: 0.03670263311 | HY13: 0.04353810087 | HZ13: 0.03815397967 | IA13: 0.03689615499 | IB13: 0.09989178746 | IC13: 0.0438875919 | ID13: 0.06475181028 | IE13: 0.03567225637 | IF13: 0.04804211061 | IG13: 0.05223474811 | IH13: 0.06944984449 | II13: 0.08944471737 | IJ13: 0.07941416691 | IK13: 0.07975888592 | IL13: 0.05292149092 | IM13: 0.0499901457 | IN13: 0.04592629166 | IO13: 0.0500735227 | IP13: 0.04155739793 | IQ13: 0.1013664131 | IR13: 0.03057911767 | IS13: 0.07250696022 | IT13: 0.01788880213 | IU13: 0.05359915991 | IV13: 0.03890342834 | IW13: 0.04904062682 | IX13: 0.05568658834 | IY13: 0.06573410273 | IZ13: 0.07700129694 | JA13: 0.04406580822 | JB13: 0.07521357016 | JC13: 0.0934693578 | JD13: 0.04699196832 | JE13: 0.05083583732 | JF13: 0.04446193197 | JG13: 0.06068793225 | JH13: 0.06500331574 | JI13: 0.04711982337 | JJ13: 0.03432040708 | JK13: 0.03628817537 | JL13: 0.03381944655 | JM13: 0.05156153066 | JN13: 0.05861314021 | JO13: 0.06013501614 | JP13: 0.03766588858 | JQ13: 0.03385301799 | JR13: 0.08450242528 | JS13: 0.03249649808 | JT13: 0.04464001071 | JU13: 0.07673847039 | JV13: 0.04504265155 | JW13: 0.05803217892 | JX13: 0.05250388149 | JY13: 0.04291017585 | JZ13: 0.03680030577 | KA13: 0.03270265031 | KB13: 0.03697788177 | KC13: 0.03591585308 | KD13: 0.04208195488 | KE13: 0.05699371938 | KF13: 0.06014426146 | KG13: 0.05348362465 | KH13: 0.05608511453 | KI13: 0.03233730782 | KJ13: 0.05234974899 | KK13: 0.06088021076 | KL13: 0.04970709022 | KM13: 0.06904220697 | KN13: 0.03203476908 | KO13: 0.03750385142 | KP13: 0.02810740668 | KQ13: 0.04385592383 | KR13: 0.08202756632 | KS13: 0.03174757865 | KT13: 0.04997954343 | KU13: 0.04140703376 | KV13: 0.04187263489 | KW13: 0.0704228076 | KX13: 0.08249654185 | KY13: 0.04744199509 | KZ13: 0.03601745815 | LA13: 0.0310865852 | LB13: 0.06340869496 | LC13: 0.08661803035 | LD13: 0.04578224324 | LE13: 0.04346353222 | LF13: 0.03060845544 | LG13: 0.07115033836 | LH13: 0.03598087303 | LI13: 0.05078970542 | LJ13: 0.03617843488 | LK13: 0.07310914486 | LL13: 0.05295643589 | LM13: 0.05486768175 | LN13: 0.03399450547 | LO13: 0.04570232914 | LP13: 0.08521820535 | LQ13: 0.05674079288 | LR13: 0.04167681349 | LS13: 0.0563740319 | LT13: 0.06196462527 | LU13: 0.05129834869 | LV13: 0.05591001913 | LW13: 0.09254369635 | LX13: 0.03778395363 | LY13: 0.05109662293 | LZ13: 0.04708758411 | MA13: 0.05886100922 | MB13: 0.05686313225 | MC13: 0.05215180321 | MD13: 0.06313376067 | ME13: 0.05428288156 | MF13: 0.04659692604 | MG13: 0.03071312986 | MH13: 0.05576596706 | MI13: 0.06839433376 | MJ13: 0.02575371009 | MK13: 0.05945748492 | ML13: 0.06905821164 | MM13: 0.06504444833 | MN13: 0.06206754026 | MO13: 0.04475336023 | MP13: 0.06945192048 | MQ13: 0.03289021114 | MR13: 0.07302191881 | MS13: 0.06868446774 | MT13: 0.07753681869 | MU13: 0.02950680818 | MV13: 0.05390198192 | MW13: 0.05895474517 | MX13: 0.07379867351 | MY13: 0.0348177907 | MZ13: 0.06961644519 | NA13: 0.06377693031 | NB13: 0.04646668104 | NC13: 0.03290866 | ND13: 0.03209936205 | NE13: 0.06185656561 | NF13: 0.04483631681 | NG13: 0.03304094513 | NH13: 0.06368063358 | NI13: 0.0301021401 | NJ13: 0.1042762134 | NK13: 0.03403728242 | NL13: 0.04870868379 | NM13: 0.06403490222 | NN13: 0.04730191036 | NO13: 0.07973881987 | NP13: 0.06115904069 | NQ13: 0.03825961624 | NR13: 0.03900385639 | NS13: 0.1208485505 | NT13: 0.03521328054 | NU13: 0.06598506193 | NV13: 0.0710318358 | NW13: 0.03467185593 | NX13: 0.1172430614 | NY13: 0.04757365233 | NZ13: 0.05425129209 | OA13: 0.0454888215 | OB13: 0.05972963597 | OC13: 0.06745940818 | OD13: 0.1414729577 | OE13: 0.04811281914 | OF13: 0.1028392318 | OG13: 0.02394241712 | OH13: 0.08568766151 | OI13: 0.03206140708 | OJ13: 0.05667782131 | OK13: 0.04965781946 | OL13: 0.03979138547 | OM13: 0.04704321421 | ON13: 0.04590551053 | OO13: 0.07193805184 | OP13: 0.07326956809 | OQ13: 0.06790781584 | OR13: 0.07478988543 | OS13: 0.1134598574 | OT13: 0.1123236288 | OU13: 0.05265365397 | OV13: 0.03797717581 | OW13: 0.04731029895 | OX13: 0.07804737088 | OY13: 0.06551320807 | OZ13: 0.08967480382 | PA13: 0.04846361068 | PB13: 0.05504613283 | PC13: 0.04125551703 | PD13: 0.02804435149 | PE13: 0.07542444874 | PF13: 0.04338594509 | PG13: 0.05102737093 | PH13: 0.05099554811 | PI13: 0.05131340773 | PJ13: 0.0380023993 | PK13: 0.0461623868 | PL13: 0.04630353986 | PM13: 0.05287241388 | PN13: 0.05756818278 | PO13: 0.05153458369 | PP13: 0.05869771211 | PQ13: 0.07913028516 | PR13: 0.06779513885 | PS13: 0.04977217939 | PT13: 0.04673360529 | PU13: 0.0753777783 | PV13: 0.03607182189 | PW13: 0.06427938838 | PX13: 0.09978384983 | PY13: 0.05850449139 | PZ13: 0.07052331168 | QA13: 0.04772791755 | QB13: 0.01958090082 | QC13: 0.07490764601 | QD13: 0.08099009081 | QE13: 0.03093590711 | QF13: 0.06261900317 | QG13: 0.05626198926 | QH13: 0.0787116825 | QI13: 0.0458977876 | QJ13: 0.06543926567 | QK13: 0.07990620256 | QL13: 0.05620999059 | QM13: 0.05089788551 | QN13: 0.09390537526 | QO13: 0.06020360243 | QP13: 0.04849854896 | QQ13: 0.03014596898 | QR13: 0.03524352717 | QS13: 0.03740376833 | QT13: 0.04586586835 | QU13: 0.05142123746 | QV13: 0.106096171 | QW13: 0.0380742829 | QX13: 0.08247915454 | QY13: 0.04704176658 | QZ13: 0.06117414571 | RA13: 0.05185709055 | RB13: 0.03397382167 | RC13: 0.06966137079 | RD13: 0.02861723372 | RE13: 0.07354478806 | RF13: 0.04450967572 | RG13: 0.07275246891 | RH13: 0.02844620733 | RI13: 0.04434766652 | RJ13: 0.07269919461 | RK13: 0.05964157201 | RL13: 0.07353914663 | RM13: 0.03470759936 | RN13: 0.04458586201 | RO13: 0.05710907282 | RP13: 0.04714446341 | RQ13: 0.02986345625 | RR13: 0.076017374 | RS13: 0.05507824738 | RT13: 0.05056443957 | RU13: 0.03462230704 | RV13: 0.03909967863 | RW13: 0.06593010958 | RX13: 0.04264883023 | RY13: 0.07663573927 | RZ13: 0.05387471894 | SA13: 0.06796837445 | SB13: 0.04870862077 | SC13: 0.03927436841 | SD13: 0.0558381867 | SE13: 0.0946053853 | SF13: 0.04298584947 | SG13: 0.0450760943 | SH13: 0.05248101811 | SI13: 0.03424729853 | SJ13: 0.03792527423 | SK13: 0.04008022227 | SL13: 0.04987176896 | SM13: 0.05698118994 | SN13: 0.04637713693 | SO13: 0.03685108102 | SP13: 0.04112330844 | SQ13: 0.06232912134 | SR13: 0.08398489771 | SS13: 0.07250489805 | ST13: 0.05099323923 | SU13: 0.1042204959 | SV13: 0.0484540788 | SW13: 0.02899843745 | SX13: 0.03615680878 | SY13: 0.08399047071 | SZ13: 0.1773189257 | TA13: 0.08748010126 | TB13: 0.04466803045 | TC13: 0.04305500343 | TD13: 0.05919417448 | TE13: 0.07981172602 | TF13: 0.03774666504 | TG13: 0.06252696234 | TH13: 0.03824402421 | TI13: 0.06428376679 | TJ13: 0.03302424271 | TK13: 0.05825221466 | TL13: 0.05689132947 | TM13: 0.03691893649 | TN13: 0.02763480308 | TO13: 0.08415385193 | TP13: 0.03533854092 | TQ13: 0.08366302843 | TR13: 0.04804426787 | TS13: 0.04399317378 | TT13: 0.05937224039 | TU13: 0.04647398621 | TV13: 0.03898214853 | TW13: 0.06094446551 | TX13: 0.06644476454 | TY13: 0.06410026059 | TZ13: 0.03503104119 | UA13: 0.05206354147 | UB13: 0.04913637196 | UC13: 0.06171962029 | UD13: 0.04121553505 | UE13: 0.08508747903 | UF13: 0.05061634277 | UG13: 0.07933140205 | UH13: 0.02955621492 | UI13: 0.03751499709 | UJ13: 0.05638562736 | UK13: 0.02906839656 | UL13: 0.08556232015 | UM13: 0.05126672304 | UN13: 0.061025808 | UO13: 0.03972075497 | UP13: 0.04183823563 | UQ13: 0.05466163587 | UR13: 0.05191536344 | US13: 0.04214041043 | UT13: 0.04531254328 | UU13: 0.03970214273 | UV13: 0.07786899565 | UW13: 0.06868827038 | UX13: 0.0704701729 | UY13: 0.09271366102 | UZ13: 0.03037326571 | VA13: 0.05181517808 | VB13: 0.06780055701 | VC13: 0.08963842652 | VD13: 0.04681986394 | VE13: 0.04458648155 | VF13: 0.050508032 | VG13: 0.04503190275 | VH13: 0.101042368 | VI13: 0.04727439738 | VJ13: 0.1616069232 | VK13: 0.03181902889 | VL13: 0.0535595841 | VM13: 0.04774168633 | VN13: 0.0645809259 | VO13: 0.05722692494 | VP13: 0.04999851805 | VQ13: 0.06403129844 | VR13: 0.04958887406 | VS13: 0.05524733519 | VT13: 0.0729148336 | VU13: 0.06463783994 | VV13: 0.05585192648 | VW13: 0.03259749938 | VX13: 0.0355702668 | VY13: 0.04501463637 | VZ13: 0.07678932456 | WA13: 0.05193470527 | WB13: 0.07257259114 | WC13: 0.04478093635 | WD13: 0.05746137906 | WE13: 0.03786781126 | WF13: 0.04153091342 | WG13: 0.03549988666 | WH13: 0.1403203411 | WI13: 0.0419362059 | WJ13: 0.04304491938 | WK13: 0.04824059419 | WL13: 0.08106507329 | WM13: 0.0886734645 | WN13: 0.07239151335 | WO13: 0.06475281168 | WP13: 0.04688600081 | WQ13: 0.04865805263 | WR13: 0.05673246484 | WS13: 0.06173966109 | WT13: 0.07344794555 | WU13: 0.05570690263 | WV13: 0.08571553493 | WW13: 0.02091932643 | WX13: 0.0436007755 | WY13: 0.02341220466 | WZ13: 0.08113591351 | XA13: 0.05620396926 | XB13: 0.03388746821 | XC13: 0.0583461697 | XD13: 0.07450392242 | XE13: 0.0661088961 | XF13: 0.05631094953 | XG13: 0.05529002432 | XH13: 0.04314745916 | XI13: 0.04294986732 | XJ13: 0.06152554632 | XK13: 0.05670822826 | XL13: 0.04501730337 | XM13: 0.03873327942 | XN13: 0.03650844923 | XO13: 0.0652496432 | XP13: 0.07747989844 | XQ13: 0.04000420343 | XR13: 0.0756714851 | XS13: 0.03893770827 | XT13: 0.05596975273 | XU13: 0.0493731905 | XV13: 0.04987519531 | XW13: 0.04772464311 | XX13: 0.04275788257 | XY13: 0.08760220381 | XZ13: 0.03281148271 | YA13: 0.02631733161 | YB13: 0.07274052661 | YC13: 0.07039995366 | YD13: 0.05920551879 | YE13: 0.05049425547 | YF13: 0.06839901325 | YG13: 0.04801374053 | YH13: 0.05063577453 | YI13: 0.06098545287 | YJ13: 0.05446512189 | YK13: 0.08920845932 | YL13: 0.05269367582 | YM13: 0.081748533 | YN13: 0.02873293454 | YO13: 0.03535054629 | YP13: 0.04915971202 | YQ13: 0.05437192561 | YR13: 0.04802723298 | YS13: 0.0477774123 | YT13: 0.03348085311 | YU13: 0.04617886813 | YV13: 0.03611105444 | YW13: 0.05341805172 | YX13: 0.0691068493 | YY13: 0.03419485549 | YZ13: 0.04732693922 | ZA13: 0.04221237776 | ZB13: 0.07137367917 | ZC13: 0.03596120732 | ZD13: 0.05333503927 | ZE13: 0.05859197022 | ZF13: 0.05655550103 | ZG13: 0.0708052829 | ZH13: 0.0683984696 | ZI13: 0.08557990738 | ZJ13: 0.03677280931 | ZK13: 0.03807674284 | ZL13: 0.04210596044 | ZM13: 0.05426631343 | ZN13: 0.05804736829 | ZO13: 0.06895035185 | ZP13: 0.03696471682 | ZQ13: 0.06811983433 | ZR13: 0.03529611498 | ZS13: 0.05676717209 | ZT13: 0.05277325882 | ZU13: 0.04750371347 | ZV13: 0.03652937322 | ZW13: 0.04728008943 | ZX13: 0.04174390522 | ZY13: 0.1106994239 | ZZ13: 0.0353654261 | AAA13: 0.03377723799 | AAB13: 0.04435508232 | AAC13: 0.02399069966 | AAD13: 0.04776245594 | AAE13: 0.05892517896 | AAF13: 0.06061542425 | AAG13: 0.05770634017 | AAH13: 0.03414256768 | AAI13: 0.066011576 | AAJ13: 0.06599607815 | AAK13: 0.09540579731 | AAL13: 0.03203318752 | AAM13: 0.04076682124 | AAN13: 0.03303216829 | AAO13: 0.07241187816 | AAP13: 0.05691584395 | AAQ13: 0.04580549359 | AAR13: 0.05946480804 | AAS13: 0.05242811802 | AAT13: 0.04520757838 | AAU13: 0.06365823115 | AAV13: 0.1110777521 | AAW13: 0.04338639597 | AAX13: 0.0255974988 | AAY13: 0.03905342853 | AAZ13: 0.028886865 | ABA13: 0.03473118019 | ABB13: 0.05337430842 | ABC13: 0.07589745288 | ABD13: 0.03876780581 | ABE13: 0.04461081688 | ABF13: 0.06623088955 | ABG13: 0.08133366235 | ABH13: 0.07363159482 | ABI13: 0.0582312527 | ABJ13: 0.08092553804 | ABK13: 0.02706257609 | ABL13: 0.0539015695 | ABM13: 0.1035114249 | ABN13: 0.07817476233 | ABO13: 0.06673830383 | ABP13: 0.05570600258 | ABQ13: 0.04630609055 | ABR13: 0.03246103604 | ABS13: 0.04330172513 | ABT13: 0.06447235481 | ABU13: 0.04605470577 | ABV13: 0.04668976566 | ABW13: 0.05863068374 | ABX13: 0.04219164481 | ABY13: 0.04474393793 | ABZ13: 0.05328385683 | ACA13: 0.1078303808 | ACB13: 0.05965395272 | ACC13: 0.05858704327 | ACD13: 0.06727305135 | ACE13: 0.03325318778 | ACF13: 0.07878695853 | ACG13: 0.06219369953 | ACH13: 0.036304852 | ACI13: 0.04646552982 | ACJ13: 0.04431703113 | ACK13: 0.0428892074 | ACL13: 0.05840016213 | ACM13: 0.09189014788 | ACN13: 0.04050736421 | ACO13: 0.02749665814 | ACP13: 0.04921759985 | ACQ13: 0.08600895127 | ACR13: 0.06185483599 | ACS13: 0.05456221185 | ACT13: 0.08389654794 | ACU13: 0.04932929312 | ACV13: 0.04142027794 | ACW13: 0.1118568494 | ACX13: 0.05585956855 | ACY13: 0.05406395321 | ACZ13: 0.1033585725 | ADA13: 0.07309296533 | ADB13: 0.03637869103 | ADC13: 0.05806059808 | ADD13: 0.04560735555 | ADE13: 0.05086063948 | ADF13: 0.03996176531 | ADG13: 0.07875907293 | ADH13: 0.06287457127 | ADI13: 0.07091053174 | ADJ13: 0.06079522902 | ADK13: 0.04685917064 | ADL13: 0.0693445391 | ADM13: 0.05519554204 | ADN13: 0.0426834605 | ADO13: 0.05645314261 | ADP13: 0.05379327743 | ADQ13: 0.03369156177 | ADR13: 0.04696148688 | ADS13: 0.07341857464 | ADT13: 0.04147397679 | ADU13: 0.05347727489 | ADV13: 0.04353188984 | ADW13: 0.09599845949 | ADX13: 0.02076640031 | ADY13: 0.1032834378 | ADZ13: 0.08405579436 | AEA13: 0.03054115267 | AEB13: 0.07587100812 | AEC13: 0.041905037 | AED13: 0.03996351297 | AEE13: 0.08554578848 | AEF13: 0.0601608151 | AEG13: 0.03896751783 | AEH13: 0.0349447296 | AEI13: 0.07830906233 | AEJ13: 0.08441523388 | AEK13: 0.05278451187 | AEL13: 0.1066184778 | AEM13: 0.04471779491 | AEN13: 0.07169005282 | AEO13: 0.0529373352 | AEP13: 0.1001016324 | AEQ13: 0.05689950529 | AER13: 0.03980781965 | AES13: 0.07815237491 | AET13: 0.06081200039 | AEU13: 0.04107961112 | AEV13: 0.04489082132 | AEW13: 0.0647789481 | AEX13: 0.0544427882 | AEY13: 0.04641091045 | AEZ13: 0.07475776231 | AFA13: 0.08472476545 | AFB13: 0.07074414303 | AFC13: 0.06470150113 | AFD13: 0.05933973321 | AFE13: 0.05246010588 | AFF13: 0.06624577122 | AFG13: 0.04681202007 | AFH13: 0.03474164211 | AFI13: 0.04623063788 | AFJ13: 0.06296877393 | AFK13: 0.1061566586 | AFL13: 0.04020364743 | AFM13: 0.05103655076 | AFN13: 0.03598276101 | AFO13: 0.05021837311 | AFP13: 0.03401315879 | AFQ13: 0.049646973 | AFR13: 0.06279765614 | AFS13: 0.04876911404 | AFT13: 0.05626179872 | AFU13: 0.02390285333 | AFV13: 0.05146738582 | AFW13: 0.0538241691 | AFX13: 0.04184952914 | AFY13: 0.05868998544 | AFZ13: 0.04351966272 | AGA13: 0.05093599986 | AGB13: 0.05142153499 | AGC13: 0.09051563151 | AGD13: 0.04813219843 | AGE13: 0.04176107846 | AGF13: 0.04584557914 | AGG13: 0.05171658226 | AGH13: 0.0633973298 | AGI13: 0.06072512606 | AGJ13: 0.03359877189 | AGK13: 0.06770949396 | AGL13: 0.05591228196 | AGM13: 0.04764761075 | AGN13: 0.08375051922 | AGO13: 0.06050174832 | AGP13: 0.04208059682 | AGQ13: 0.04658736339 | AGR13: 0.0775572676 | AGS13: 0.08365501088 | AGT13: 0.05282561293 | AGU13: 0.0432668889 | AGV13: 0.04303310703 | AGW13: 0.06092192582 | AGX13: 0.05466498227 | AGY13: 0.07673002065 | AGZ13: 0.04628430729 | AHA13: 0.040918484 | AHB13: 0.08273645449 | AHC13: 0.038156089 | AHD13: 0.02892717746 | AHE13: 0.08101100313 | AHF13: 0.04738724858 | AHG13: 0.07960948015 | AHH13: 0.02790130506 | AHI13: 0.05189702642 | AHJ13: 0.09017117214 | AHK13: 0.04171882982 | AHL13: 0.0784281843 | AHM13: 0.04053323399 | AHN13: 0.0586637389 | AHO13: 0.07238773773 | AHP13: 0.04922441377 | AHQ13: 0.06336567771 | AHR13: 0.0438001864 | AHS13: 0.0602959786 | AHT13: 0.04789546801 | AHU13: 0.05542941586 | AHV13: 0.05551186195 | AHW13: 0.05796898482 | AHX13: 0.04742649131 | AHY13: 0.08188882532 | AHZ13: 0.05105460299 | AIA13: 0.06481120637 | AIB13: 0.05880881478 | AIC13: 0.06386388109 | AID13: 0.05586354241 | AIE13: 0.06129368911 | AIF13: 0.0496489728 | AIG13: 0.04449804762 | AIH13: 0.03797747911 | AII13: 0.02484482562 | AIJ13: 0.05624585334 | AIK13: 0.04448732478 | AIL13: 0.06285454014 | AIM13: 0.06586407889 | AIN13: 0.06392921928 | AIO13: 0.03827107233 | AIP13: 0.08872111033 | AIQ13: 0.0359895155 | AIR13: 0.04583948568 | AIS13: 0.03265568133 | AIT13: 0.0635248096 | AIU13: 0.07044968318 | AIV13: 0.03324619014 | AIW13: 0.03890006631 | AIX13: 0.1243353175 | AIY13: 0.03171491424 | AIZ13: 0.04444319545 | AJA13: 0.03651031614 | AJB13: 0.07569942008 | AJC13: 0.0579126926 | AJD13: 0.06126952767 | AJE13: 0.06202382352 | AJF13: 0.06502639086 | AJG13: 0.07974523748 | AJH13: 0.08991134006 | AJI13: 0.09850521144 | AJJ13: 0.05362798765 | AJK13: 0.04204406291 | AJL13: 0.06149689554 | AJM13: 0.04265907178 | AJN13: 0.04060538633 | AJO13: 0.05914951717 | AJP13: 0.03744485696 | AJQ13: 0.0394774483 | AJR13: 0.07968212659 | AJS13: 0.02619546068 | AJT13: 0.05495073743 | AJU13: 0.03920175336 | AJV13: 0.04951653409 | AJW13: 0.05353189234 | AJX13: 0.04389577482 | AJY13: 0.03394776752 | AJZ13: 0.07280741362 | AKA13: 0.03278710213 | AKB13: 0.03882818881 | AKC13: 0.02398281716 | AKD13: 0.04974595787 | AKE13: 0.03350242741 | AKF13: 0.03989665993 | AKG13: 0.02906162881 | AKH13: 0.02625405944 | AKI13: 0.04970233663 | AKJ13: 0.04155053762 | AKK13: 0.05494859327 | AKL13: 0.07435431258 | AKM13: 0.04315071997 | AKN13: 0.02805273671 | AKO13: 0.05001196855 | AKP13: 0.07608152921 | AKQ13: 0.03230520619 | AKR13: 0.03769905878 | AKS13: 0.04880517044 | AKT13: 0.04603861198 | AKU13: 0.04786870273 | AKV13: 0.05698719243 | AKW13: 0.06078569185 | AKX13: 0.0397624714 | AKY13: 0.04065662082 | AKZ13: 0.03291001919 | ALA13: 0.0724897034 | ALB13: 0.0929678854 | ALC13: 0.06962688933 | ALD13: 0.07434461143 | ALE13: 0.03966049843 | ALF13: 0.0605940556 | ALG13: 0.04997277245 | ALH13: 0.03934930898 | ALI13: 0.0648971494 | ALJ13: 0.05705302452 | ALK13: 0.05161873391 | ALL13: 0.0408066322 | ALM13: 0.05016373292 | ALN13: 0.05064880335 | ALO13: 0.066984763 | ALP13: 0.03497907377 | ALQ13: 0.05789917532 | ALR13: 0.03880294212 | ALS13: 0.1090814835 | ALT13: 0.04084066756 | ALU13: 0.05011848373 | ALV13: 0.04267909713 | ALW13: 0.05875972949 | ALX13: 0.05984793175 | ALY13: 0.06059577484 | ALZ13: 0.06413005207 | AMA13: 0.04987802233 | AMB13: 0.09261344188 | AMC13: 0.05475832942 | AMD13: 0.04708225454 | AME13: 0.03023643728 | AMF13: 0.04363572968 | AMG13: 0.04768083057 | AMH13: 0.03384194323 | AMI13: 0.05389445881 | AML13: 0.02952849584 | AMM13: 0.03390067627 | AMN13: 0.03655264154 | AMO13: 0.03912887885 | AMP13: 0.04164788799 | AMQ13: 0.04380318203 | AMR13: 0.04570708986 | AMS13: 0.04751185616 | AMT13: 0.0494585961 | AMU13: 0.05155020854 | AMV13: 0.05380219947 | AMW13: 0.05605047306 | AMX13: 0.05832766184 | AMY13: 0.06122972916 | AMZ13: 0.06477945324 | ANA13: 0.06902793598 | ANB13: 0.07426353597 | ANC13: 0.0811347699 | AND13: 0.09507768792 | ANF13: 5826.264494 | ANG13: 5224.831413 | ANH13: 5440.997179 | ANI13: 4972.978704 | ANJ13: 3325.663471 | ANK13: 3494.661815 | ANL13: 4360.251802 | ANM13: 4939.943973 | ANN13: 5098.500976 | ANO13: 4121.615914 | ANP13: 3726.265967 | ANQ13: 4493.625324 | ANR13: 5218.971629 | ANS13: 4615.568015 | ANT13: 3863.793689 | ANU13: 3472.011876 | ANV13: 3652.569909 | ANW13: 3749.216202 | ANX13: 2792.199609 | ANY13: =IFERROR(MATCH(MIN(ABS(ANF13:ANX13)),ABS(ANF13:ANX13),0),"") -> 19 | ANZ13: =IFERROR(INDEX(ANF13:ANX13,MIN(MAX(ANY13-1,1),17)),"") -> 3652.569909 | AOA13: =IFERROR(INDEX(ANF13:ANX13,MIN(MAX(ANY13,2),18)),"") -> 3749.216202 | AOB13: =IFERROR(INDEX(ANF13:ANX13,MIN(MAX(ANY13,3),19)),"") -> 2792.199609 | AOC13: =IFERROR(INDEX(AML13:AND13,MIN(MAX(ANY13-1,1),17)),"") -> 0.07426353597 | AOD13: =IFERROR(INDEX(AML13:AND13,MIN(MAX(ANY13,2),18)),"") -> 0.0811347699 | AOE13: =IFERROR(INDEX(AML13:AND13,MIN(MAX(ANY13,3),19)),"") -> 0.09507768792 | AOF13: 0.1458987528
V14: =IFERROR(IF(ISBLANK(Variables[[#This Row],[Variable Name]]), "", Variables[[#This Row],[Variable Name]]), "") -> 
A15: Decision Model Summary | U15: Data for Graphs
A16: Use this space to describe your decision model or cash flow. | U16: The table below ais used to construct the above histogram and loss exceedance tolerance curve. The size of the bins can be changed using the above yellow cells
D17: Years | U17: Increment Midpoint | V17: Increment Lower Bound | W17: Increment Upper Bound | X17: Count less than Upper Bound | Y17: Number within Increment | Z17: Loss Exceedance Probability | AA17: Loss Exceeded
C18: 0 | D18: 1 | E18: 2 | F18: 3 | G18: 4 | H18: 5 | U18: =B41 -> -20000 | V18: =U18-B$42/2 -> -20500 | W18: =U18+B$42/2 -> -19500 | X18: =COUNTIF(X$7:AMI$7,"<="&W18) -> 0 | Y18: =X18 -> 0 | Z18: =COUNTIF(X$7:AMI$7,"<"&U18)/1000 -> 0 | AA18: =-U18 -> 20000
A19: Costs | U19: =U18+B$42 -> -19000 | V19: -19500 | W19: -18500 | X19: 0 | Y19: =X19-X18 -> 0 | Z19: 0 | AA19: 19000
A20: Initial Development Costs | C20: =-DevC -> -6776.927232 | U20: -18000 | V20: -18500 | W20: -17500 | X20: 0 | Y20: 0 | Z20: 0 | AA20: 18000
A21: Cancellation? (1=cancelled) | C21: =Canc -> 0 | U21: -17000 | V21: -17500 | W21: -16500 | X21: 0 | Y21: 0 | Z21: 0 | AA21: 17000
U22: -16000 | V22: -16500 | W22: -15500 | X22: 1 | Y22: 1 | Z22: 0.001 | AA22: 16000
A23: Benefits | U23: -15000 | V23: -15500 | W23: -14500 | X23: 1 | Y23: 0 | Z23: 0.001 | AA23: 15000
A24: Labor savings | D24: =LoadLab*Reduc*(1-$C21) -> 3354.757453 | E24: =LoadLab*Reduc*(1-$C21) -> 3354.757453 | F24: =LoadLab*Reduc*(1-$C21) -> 3354.757453 | G24: =LoadLab*Reduc*(1-$C21) -> 3354.757453 | H24: =LoadLab*Reduc*(1-$C21) -> 3354.757453 | U24: -14000 | V24: -14500 | W24: -13500 | X24: 2 | Y24: 1 | Z24: 0.001 | AA24: 14000
U25: -13000 | V25: -13500 | W25: -12500 | X25: 7 | Y25: 5 | Z25: 0.006 | AA25: 13000
A26: Net Cash Flow | C26: =C24+C20 -> -6776.927232 | D26: =D24+D20 -> 3354.757453 | E26: =E24+E20 -> 3354.757453 | F26: 3354.757453 | G26: 3354.757453 | H26: 3354.757453 | U26: -12000 | V26: -12500 | W26: -11500 | X26: 13 | Y26: 6 | Z26: 0.01 | AA26: 12000
U27: -11000 | V27: -11500 | W27: -10500 | X27: 20 | Y27: 7 | Z27: 0.014 | AA27: 11000
A28: Results Summary | U28: -10000 | V28: -10500 | W28: -9500 | X28: 23 | Y28: 3 | Z28: 0.021 | AA28: 10000
A29: This section shows the output of the simulation in two charts: a histogram of NPVs and a loss exceedance curve. Certain Monetary Equivalent (CME) is also computed. Enter chart min and increment size to modify how the histogram is displayed. | U29: -9000 | V29: -9500 | W29: -8500 | X29: 28 | Y29: 5 | Z29: 0.026 | AA29: 9000
U30: -8000 | V30: -8500 | W30: -7500 | X30: 38 | Y30: 10 | Z30: 0.032 | AA30: 8000
C31: Histogram of Simulated NPV | G31: Loss Exceedance Curve | U31: -7000 | V31: -7500 | W31: -6500 | X31: 51 | Y31: 13 | Z31: 0.044 | AA31: 7000
U32: -6000 | V32: -6500 | W32: -5500 | X32: 65 | Y32: 14 | Z32: 0.059 | AA32: 6000
A33: Average NPV | B33: =IFERROR(AVERAGE(X7:AMI7), 0) -> 4290.226252 | U33: -5000 | V33: -5500 | W33: -4500 | X33: 90 | Y33: 25 | Z33: 0.078 | AA33: 5000
A34: Average Loss | B34: =IFERROR(SUMIF(X7:AMI7,"<0")/COUNTIF(X7:AMI7,"<0"), 0) -> -3969.003033 | U34: -4000 | V34: -4500 | W34: -3500 | X34: 106 | Y34: 16 | Z34: 0.101 | AA34: 4000
A35: Base EOL | B35: =IFERROR(IF(B38=1,-AVERAGEIF(X7:AMI7,"<=0")*B36,AVERAGEIF(X7:AMI7,">=0")*(1-B36)),0) -> 972.4057432 | U35: -3000 | V35: -3500 | W35: -2500 | X35: 134 | Y35: 28 | Z35: 0.123 | AA35: 3000
A36: P(NPV<0) | B36: =COUNTIF(X7:AMI7,"<0")/1000 -> 0.245 | U36: -2000 | V36: -2500 | W36: -1500 | X36: 166 | Y36: 32 | Z36: 0.147 | AA36: 2000
A37: RRA CME | B37: =IFERROR((EXP(LN(AVERAGE(X8:AMI8)*(1-$G$52)+1)/(1-$G$52))-E52), 0) -> 3811.337453 | U37: -1000 | V37: -1500 | W37: -500 | X37: 228 | Y37: 62 | Z37: 0.193 | AA37: 1000
A38: Default Action (1=Invest) | B38: =IF(B33>0,1,0) -> 1 | U38: 0 | V38: -500 | W38: 500 | X38: 281 | Y38: 53 | Z38: 0.245 | AA38: 0
A39: Sum of Individual EVPIs | B39: =SUM(J9:J13) -> 955.3555202 | U39: 1000 | V39: 500 | W39: 1500 | X39: 351 | Y39: 70 | Z39: 0.314 | AA39: -1000
U40: 2000 | V40: 1500 | W40: 2500 | X40: 410 | Y40: 59 | Z40: 0.378 | AA40: -2000
A41: Chart Min | B41: -20000 | U41: 3000 | V41: 2500 | W41: 3500 | X41: 483 | Y41: 73 | Z41: 0.448 | AA41: -3000
A42: Increment | B42: 1000 | U42: 4000 | V42: 3500 | W42: 4500 | X42: 553 | Y42: 70 | Z42: 0.52 | AA42: -4000
A43: Chart Max | B43: =B41+B42*30 -> 10000 | U43: 5000 | V43: 4500 | W43: 5500 | X43: 620 | Y43: 67 | Z43: 0.586 | AA43: -5000
U44: 6000 | V44: 5500 | W44: 6500 | X44: 669 | Y44: 49 | Z44: 0.645 | AA44: -6000
A45: The probability of losing more than | B45: -4000 | U45: 7000 | V45: 6500 | W45: 7500 | X45: 728 | Y45: 59 | Z45: 0.698 | AA45: -7000
A46: is | B46: =_xlfn.PERCENTRANK.INC(X7:AMI7,B45,) -> 0.1 | U46: 8000 | V46: 7500 | W46: 8500 | X46: 765 | Y46: 37 | Z46: 0.747 | AA46: -8000
U47: 9000 | V47: 8500 | W47: 9500 | X47: 791 | Y47: 26 | Z47: 0.78 | AA47: -9000
U48: 10000 | V48: 9500 | W48: 10500 | X48: 826 | Y48: 35 | Z48: 0.811 | AA48: -10000
A49: Risk Tolerance | C49: Constant Relative Risk Aversion | U49: 11000 | V49: 10500 | W49: 11500 | X49: 858 | Y49: 32 | Z49: 0.844 | AA49: -11000
A50: Instructions: To use the stated loss exceedance tolerance curve with the loss exceedance curve above fill in a set of loss and probabilities such that the loss at each probability is barely acceptable. | C50: Instructions: This table allows a user to define an unambiguous risk tolerance by assessing a barely-acceptable bet. This model tries to find a best fit solution for the risk tolerance by changing the "utility coefficient" . For solver to work correctly the utility coefficient must be positive and between 0 and 1. Note if the wealth is not more than the absolute value of the largest loss the model may throw an error. Adjust this table to include a loss this size and rerun solver to fix this. | U50: 12000 | V50: =U50-B$42/2 -> 11500 | W50: =U50+B$42/2 -> 12500 | X50: =COUNTIF(X$7:AMI$7,"<="&W50) -> 878 | Y50: 20 | Z50: =COUNTIF(X$7:AMI$7,"<"&U50)/1000 -> 0.868 | AA50: -12000
A51: Loss (per year) | B51: Acceptable P Loss Exceeded | U51: =U50+B$42 -> 13000 | V51: 12500 | W51: 13500 | X51: 902 | Y51: 24 | Z51: 0.893 | AA51: -13000
A52: 1000 | B52: 0.1 | D52: Wealth Factor: | E52: =E55 -> 16099.99318 | F52: Utility Coefficients: | G52: 0.3785116232 | H52: <-use solver to change this cell to set the RRA CME to 0 | U52: 14000 | V52: 13500 | W52: 14500 | X52: 912 | Y52: 10 | Z52: 0.907 | AA52: -14000
A53: 2000 | B53: 0.05 | U53: 15000 | V53: 14500 | W53: 15500 | X53: 929 | Y53: 17 | Z53: 0.919 | AA53: -15000
A54: 10000 | B54: 0.01 | E54: $Gain | F54: $Loss (input negative) | G54: P(Gain) | H54: RRA CME | I54: Expected Value | U54: 16000 | V54: 15500 | W54: 16500 | X54: 946 | Y54: 17 | Z54: 0.94 | AA54: -16000
A55: 50000 | B55: 0.0001 | D55: Risky Bet | E55: =ABS(MIN(X7:AMI7)) -> 16099.99318 | F55: =-E52 -> -16099.99318 | G55: 0.65 | H55: =(EXP(LN(((E55)+$E$52)^(1-$G$52)*G55+((F55)+$E$52)^(1-$G$52)*(1-G55))/(1-$G$52))-$E$52) -> 2.372162271e-07 | I55: =G55*E55+(1-G55)*F55 -> 4829.997954 | U55: 17000 | V55: 16500 | W55: 17500 | X55: 962 | Y55: 16 | Z55: 0.952 | AA55: -17000
D56: Safe Bet | E56: =E52 -> 16099.99318 | F56: =F55/2 -> -8049.99659 | G56: =(1-$G$55*EXP((1-$G$52)*(LN(2)-LN(0.5))))/(1-EXP((1-$G$52)*(LN(2)-LN(0.5)))) -> 0.3939393939 | H56: =(EXP(LN(((E56)+$E$52)^(1-$G$52)*G56+((F56)+$E$52)^(1-$G$52)*(1-G56))/(1-$G$52))-$E$52) -> 2.372162271e-07 | I56: =G56*E56+(1-G56)*F56 -> 1463.635744 | U56: 18000 | V56: 17500 | W56: 18500 | X56: 966 | Y56: 4 | Z56: 0.965 | AA56: -18000
U57: 19000 | V57: 18500 | W57: 19500 | X57: 972 | Y57: 6 | Z57: 0.97 | AA57: -19000
U58: 20000 | V58: 19500 | W58: 20500 | X58: 984 | Y58: 12 | Z58: 0.981 | AA58: -20000
U59: 21000 | V59: 20500 | W59: 21500 | X59: 990 | Y59: 6 | Z59: 0.988 | AA59: -21000
U60: 22000 | V60: 21500 | W60: 22500 | X60: 991 | Y60: 1 | Z60: 0.99 | AA60: -22000
U61: 23000 | V61: 22500 | W61: 23500 | X61: 992 | Y61: 1 | Z61: 0.991 | AA61: -23000
U62: 24000 | V62: 23500 | W62: 24500 | X62: 994 | Y62: 2 | Z62: 0.992 | AA62: -24000
U63: 25000 | V63: 24500 | W63: 25500 | X63: 996 | Y63: 2 | Z63: 0.996 | AA63: -25000
U64: 26000 | V64: 25500 | W64: 26500 | X64: 996 | Y64: 0 | Z64: 0.996 | AA64: -26000
U65: 27000 | V65: 26500 | W65: 27500 | X65: 998 | Y65: 2 | Z65: 0.998 | AA65: -27000
U66: 28000 | V66: 27500 | W66: 28500 | X66: 999 | Y66: 1 | Z66: 0.999 | AA66: -28000
U67: 29000 | V67: 28500 | W67: 29500 | X67: 1000 | Y67: 1 | Z67: 1 | AA67: -29000
U68: 30000 | V68: 29500 | W68: 30500 | X68: 1000 | Y68: 0 | Z68: 1 | AA68: -30000
U69: 31000 | V69: 30500 | W69: 31500 | X69: 1000 | Y69: 0 | Z69: 1 | AA69: -31000
W156: =IFERROR(IF(ISBLANK(Variables[[#This Row],[Simulated Value]]), "", Variables[[#This Row],[Simulated Value]]), "") -> 
W157: =IFERROR(IF(ISBLANK(Variables[[#This Row],[Simulated Value]]), "", Variables[[#This Row],[Simulated Value]]), "") -> 
W158: =IFERROR(IF(ISBLANK(Variables[[#This Row],[Simulated Value]]), "", Variables[[#This Row],[Simulated Value]]), "") -> 
W159: =IFERROR(IF(ISBLANK(Variables[[#This Row],[Simulated Value]]), "", Variables[[#This Row],[Simulated Value]]), "") -> 

Sheet Distributions
A1: Selected Distributions
A2: Instructions: This page provides information on several desitributions used in the Simple MC example. It also provides an example of how to implement each.
A3: Trial ID | B3: 7692
A5: Uniform
A6: One of the simplest distributions you can use is the uniform distribution. There is no chance of a value being above the maximum or below the minimum, and every value between the min and max are equally likely. ■■ When to use: When you know the minimum and maximum values, but any value in between is equally likely. ■■ Examples: The proportion of people that would buy a product, number of employees that do some activity. ■■ Mean = (min + max)/2 ■■ Simulated value = rand * (max - min) + min
A7: Simulated Value | B7: Minimum | C7: Mode or Probability | D7: Maximum | E7: Variable ID | F7: HDR PRNG
A8: =F8*(D8-B8)+B8 -> 0.5925695827 | B8: 0 | C8: N/A | D8: 1 | E8: 1 | F8: =((MOD((MOD(MOD(999999999999989,MOD($B$3*2499997+E8*1800451,7450589)*4658+7450581)*383,99991)*7440893+MOD(MOD(999999999999989,MOD($B$3*2246527+E8*2399993,7450987)*7580+7560584)*17669,7440893))*1343,4294967296))+0.5)/2^32 -> 0.5925695827
A10: Triangular
A11: For a triangular distribution, the UB and LB represent absolute limits. There is no chance that a value could be generated outside of these bounds. In addition to the UB and LB, this distribution also has a mode that can vary to any value between the UB and LB. This is sometimes useful as a substitute for a lognormal, when you want to set absolute limits on what the values can be but you want to skew the output in a way similar to the lognormal. It is useful in any situation where you know of absolute limits but the most likely value might not be in the middle, like the normal distribution. ■■When to Use: When you want control over where the most likely value is compared to the range, and when the range has absolute limits. ■■ Examples: Number of records lost if you think the most likely number is near the top of the range and yet you have a finite number of records you know cannot be exceeded. ■■ Mean: =(min+mode+max)/3 ■■ Simulated value = IF(rand<(mode-min)/(max-min), 1, 0) * (min + SQRT(rand*(max-min)*(mode-min))) + IF(rand>= (mode-min)/(max-min), 1, 0) * (max - SQRT((1-rand) * (max - min) * (max - mode)))
A12: Random Result | B12: Minimum | C12: Mode or Probability | D12: Maximum | E12: Variable ID | F12: HDR PRNG
A13: =IF(F13<(C13-B13)/(D13-B13), 1, 0) * (B13 + SQRT(F13*(D13-B13)*(C13-B13))) + IF(F13>= (C13-B13)/(D13-B13), 1, 0) * (D13 - SQRT((1-F13) * (D13 - B13) * (D13 - C13))) -> 1.993521046 | B13: 1 | C13: 3 | D13: 4 | E13: 2 | F13: =((MOD((MOD(MOD(999999999999989,MOD($B$3*2499997+E13*1800451,7450589)*4658+7450581)*383,99991)*7440893+MOD(MOD(999999999999989,MOD($B$3*2246527+E13*2399993,7450987)*7580+7560584)*17669,7440893))*1343,4294967296))+0.5)/2^32 -> 0.1645140114
A15: Binary
A16: Unlike the other distributions mentioned here, a discrete binary distribution (also known as a Bernoulli distribution) generates just two possible outcomes: success or failure. The probability of success is p and the probability of failure is q = (1 – p). For example, if success means to flip a fair coin heads‐up, the probability of success is p = .5, and the probability of failure is q = (1 – .5) = .5. ■■ When to use: This is used in either/or situations—something either happens or it doesn’t. ■■ Example: The occurrence of a data breach in a given period of time. ■■ Mean: =P ■■ Simulated value = if(rand<probability, 1, 0)
A17: Random Result | B17: Minimum | C17: Mode or Probability | D17: Maximum | E17: Variable ID | F17: HDR PRNG
A18: =IF(F18<C18,1,0) -> 1 | B18: N/A | C18: 0.3 | D18: N/A | E18: 3 | F18: =((MOD((MOD(MOD(999999999999989,MOD($B$3*2499997+E18*1800451,7450589)*4658+7450581)*383,99991)*7440893+MOD(MOD(999999999999989,MOD($B$3*2246527+E18*2399993,7450987)*7580+7560584)*17669,7440893))*1343,4294967296))+0.5)/2^32 -> 0.09852374636
A20: Normal
A21: A normal (or Gaussian) distribution is a bell‐shaped curve that is symmetrically distributed about the mean. Many natural phenomenon follow this distribution but in some applications it will underestimate the probability of extreme events. ■ When to Use: When there is equal probability of observing a result above or below the mean. ■ Examples: Test scores, travel time. ■ Mean: =(UB + LB)/2
A22: Simulated Value | B22: Lower Bound (P5) | D22: Upper Bound (P95) | E22: Variable ID | F22: HDR PRNG
A23: =_xlfn.NORM.INV(F23, (D23+B23)/2, (D23-B23)/3.29) -> 1819.142134 | B23: 1000 | D23: 2000 | E23: 4 | F23: =((MOD((MOD(MOD(999999999999989,MOD($B$3*2499997+E23*1800451,7450589)*4658+7450581)*383,99991)*7440893+MOD(MOD(999999999999989,MOD($B$3*2246527+E23*2399993,7450987)*7580+7560584)*17669,7440893))*1343,4294967296))+0.5)/2^32 -> 0.8531357989
A25: Lognormal
A26: The lognormal distribution is an often preferred alternative to the normal distribution when a sample can only take positive values. It also allows for the possibility of extreme values on the upper end and, therefore, may fit some phenomena better than a normal. ■ When to Use: To model positive values that are primarily moderate in scope but have potential for rare extreme events. ■ Examples: Losses incurred by a cyberattack, the cost of a project. ■ Excel Formula: =lognorm.inv(rand(),(ln(UB) + ln(LB))/2, (ln(UB)‐ln(LB))/3.29) ■ Mean: = ((ln(UB)+ln(LB))/2)
A27: Simulated Value | B27: Lower Bound (P5) | D27: Upper Bound (P95) | E27: Variable ID | F27: HDR PRNG
A28: =_xlfn.LOGNORM.INV(F28, (LN(D28)+LN(B28))/2, (LN(D28)-LN(B28))/3.29) -> 1863.816519 | B28: 1000 | D28: 2000 | E28: 5 | F28: =((MOD((MOD(MOD(999999999999989,MOD($B$3*2499997+E28*1800451,7450589)*4658+7450581)*383,99991)*7440893+MOD(MOD(999999999999989,MOD($B$3*2246527+E28*2399993,7450987)*7580+7560584)*17669,7440893))*1343,4294967296))+0.5)/2^32 -> 0.9049485695

Sheet Risk Tolerance
A1: Quantifying Risk Tolerance
A2: Instructions: This example introduces two ways to quantify and express risk tolerance. The first method is constant absolute risk aversion (CARA) which uses a formulation of a bet to capture risk aversion. In this example the user needs to chose a bet such that a coin flip where the user wins $X or loses $X/2 is attractive. The second is called Constant Relative Risk Aversion (RRA) and includes an additional parameter for the wealth a person or company has. This wealth represents the maximum loss a person could tolerate. The third is a loss exceedance tolerance which quantifies a set of barely acceptable bets which can be compared to a loss exceedance curve. If the loss exceedance curve is above the risk tolerance than that portion will have an unacceptably high risk
A3: Constant Absolute Risk Aversion | I3: Loss Exceedance Tolerance | M3: Loss Exceedance Curve
B5: X | D5: Award | E5: Probability | F5: Utility | G5: Certain Monetary Equivalent | J5: Loss Threshold | K5: Acceptable Probability for Loss Exceeded
B6: 20000 | D6: 100000 | E6: 0.2 | F6: =1-EXP(-D6/B6) -> 0.993262053 | G6: =-B6*LN(1-F6*E6) -> 4429.209634 | J6: 100000 | K6: 0.8
J7: 1000000 | K7: 0.2
C8: Flip a coin… | J8: 5000000 | K8: 0.05
J9: 15000000 | K9: 0.005
J11: Example Histogram for Loss Exceedance Curve
J12: Loss | K12: Prob. of Inherent Loss or Greater
J13: 0.0001 | K13: 0.758
J14: 250000 | K14: 0.73
C15: Win $X | E15: Lose $X/2 | J15: 500000.0001 | K15: 0.68
J16: 750000 | K16: 0.62
J17: 1000000 | K17: 0.57
J18: =J17+250000 -> 1250000 | K18: 0.5
J19: =J18+250000 -> 1500000 | K19: 0.45
J20: 1750000 | K20: 0.41
J21: 2000000 | K21: 0.35
J22: 2250000 | K22: 0.31
J23: 2500000 | K23: 0.27
J24: 2750000 | K24: 0.25
J25: 3000000 | K25: 0.23
J26: 3250000 | K26: 0.21
J27: 3500000 | K27: 0.185
J28: 3750000 | K28: 0.16
J29: 4000000 | K29: 0.13
J30: 4250000 | K30: 0.12
J31: 4500000 | K31: 0.11
J32: 4750000 | K32: 0.105
J33: 5000000 | K33: 0.1
J34: 5250000 | K34: 0.095
J35: 5500000 | K35: 0.09
J36: 5750000 | K36: 0.085
J37: 6000000 | K37: 0.08
J38: 6250000 | K38: 0.075
J39: 6500000 | K39: 0.07
A40: Constant Relative Risk Aversion | D40: RRA | J40: 6750000 | K40: 0.065
J41: 7000000 | K41: 0.0625
J42: 7250000 | K42: 0.06
B43: Wealth | C43: =C46 -> 15000000 | D43: Utility Coefficient: | E43: 0.3785116207 | J43: 7500000 | K43: 0.0585
B44: Use Solver to set Risky Bet CRRA CME to 0 by changing Utility Coefficient. Utility Coefficient must be between 0 and 1. | J44: 7750000 | K44: 0.055
C45: $Gain | D45: $Loss (input negative) | E45: P(Gain) | F45: CRRA CME | G45: Expected Value | J45: 8000000 | K45: 0.0525
B46: Risky Bet | C46: 15000000 | D46: =-C43 -> -15000000 | E46: 0.65 | F46: =(EXP(LN(((C46)+$C$43)^(1-$E$43)*E46+((D46)+$C$43)^(1-$E$43)*(1-E46))/(1-$E$43))-$C$43) -> 0.04292331822 | G46: =E46*C46+(1-E46)*D46 -> 4500000 | J46: 8250000 | K46: 0.05
B47: Safer Bet | C47: =C43 -> 15000000 | D47: =D46/2 -> -7500000 | E47: =(1-$E$46*EXP((1-$E$43)*(LN(2)-LN(0.5))))/(1-EXP((1-$E$43)*(LN(2)-LN(0.5)))) -> 0.3939393955 | F47: =(EXP(LN(((C47)+$C$43)^(1-$E$43)*E47+((D47)+$C$43)^(1-$E$43)*(1-E47))/(1-$E$43))-$C$43) -> 0.04292331822 | G47: =E47*C47+(1-E47)*D47 -> 1363636.399 | J47: 8500000 | K47: 0.045
B48: Check | C48: 8000 | D48: -10000 | E48: 0.65 | F48: =(EXP(LN(((C48)+$C$43)^(1-$E$43)*E48+((D48)+$C$43)^(1-$E$43)*(1-E48))/(1-$E$43))-$C$43) -> 1699.069948 | G48: =E48*C48+(1-E48)*D48 -> 1700 | J48: 8750000 | K48: 0.043
J49: 9000000 | K49: 0.0425
J50: 9250000 | K50: 0.035
J51: 9500000 | K51: 0.0312
J52: 9750000 | K52: 0.03
J53: 10000000 | K53: 0.0295
J54: 10250000 | K54: 0.0285
J55: 10500000 | K55: 0.028
J56: 10750000 | K56: 0.025
J57: 11000000 | K57: 0.022
J58: 11250000 | K58: 0.02
J59: 11500000 | K59: 0.019
J60: 11750000 | K60: 0.014
J61: 12000000 | K61: 0.01
J62: 12250000 | K62: 0.01
J63: 12500000 | K63: 0.008
J64: 12750000 | K64: 0.008
J65: 13000000 | K65: 0.007
J66: 13250000 | K66: 0.006
J67: 13500000 | K67: 0.006
J68: 13750000 | K68: 0.006
J69: 14000000 | K69: 0.006
J70: 14250000 | K70: 0.004
J71: 14500000 | K71: 0.003
J72: 14750000 | K72: 0.002
A85: Data for the CARA Utility Graph | E85: Data for the CRRA Utility Graph
A86: Win/Loss | B86: Utility | C86: Asymptote | E86: Win/Loss | F86: Utility | G86: Max Wealth | H86: Wealth limit
A87: =-60000 -> -60000 | B87: =1-EXP(-A87/$B$6) -> -19.08553692 | C87: 1 | E87: =MIN(D46:D49) -> -15000000 | F87: =(((E87)+$C$46)^(1-$E$43)-1)/(1-$E$43) -> -1.609040544 | G87: =-1*$C$46 -> -15000000 | H87: -1000
A88: =A87+2500 -> -57500 | B88: -16.72542412 | C88: 1 | E88: =E87-0.05*$E$87 -> -14250000 | F88: 7206.963786 | G88: =-1*$C$46 -> -15000000 | H88: =H87+1000 -> 0
A89: =A88+2500 -> -55000 | B89: -14.64263188 | C89: 1 | E89: =E88-0.15*$E$87 -> -12000000 | F89: 17060.10185 | G89: -15000000 | H89: =H88+1000 -> 1000
A90: -52500 | B90: -12.80457419 | C90: 1 | E90: -9750000 | F90: 24156.77616 | G90: -15000000 | H90: 2000
A91: -50000 | B91: -11.18249396 | C91: 1 | E91: -7500000 | F91: =(((E91)+$C$43)^(1-$E$43)-1)/(1-$E$43) -> 30151.88683 | G91: -15000000 | H91: 3000
A92: -47500 | B92: -9.751013186 | C92: 1 | E92: -5250000 | F92: 35492.16164 | G92: -15000000 | H92: 4000
A93: -45000 | B93: -8.487735836 | C93: 1 | E93: -3000000 | F93: 40381.13878 | G93: -15000000 | H93: 5000
A94: -42500 | B94: =1-EXP(-A94/$B$6) -> -7.372897488 | C94: 1 | E94: -750000 | F94: 44932.87853 | G94: -15000000 | H94: 6000
A95: -40000 | B95: =1-EXP(-A95/$B$6) -> -6.389056099 | C95: 1 | E95: 1500000 | F95: 49219.27239 | G95: -15000000 | H95: 7000
A96: -37500 | B96: -5.52081912 | C96: 1 | E96: 3750000 | F96: 53289.25487 | G96: -15000000 | H96: 8000
A97: -35000 | B97: -4.754602676 | C97: 1 | E97: 6000000 | F97: 57178.00109 | G97: -15000000 | H97: 9000
A98: -32500 | B98: -4.078419037 | C98: 1 | E98: 8250000 | F98: 60911.84865 | G98: -15000000 | H98: 10000
A99: -30000 | B99: -3.48168907 | C99: 1 | E99: 10500000 | F99: 64511.15365 | G99: -15000000 | H99: 11000
A100: -27500 | B100: -2.955076723 | C100: 1 | E100: 12750000 | F100: 67992.05395 | G100: -15000000 | H100: 12000
A101: -25000 | B101: -2.490342957 | C101: 1 | E101: 15000000 | F101: 71367.61221
A102: -22500 | B102: -2.080216849 | C102: 1 | E102: 17250000 | F102: 74648.58716
A103: -20000 | B103: -1.718281828 | C103: 1 | E103: 19500000 | F103: 77843.97125
A104: -17500 | B104: -1.398875294 | C104: 1 | E104: 21750000 | F104: 80961.37619
A105: -15000 | B105: -1.117000017 | C105: 1 | E105: 24000000 | F105: 84007.31595
A106: -12500 | B106: -0.8682459574 | C106: 1 | E106: 26250000 | F106: 86987.41887
A107: -10000 | B107: -0.6487212707 | C107: 1 | E107: 28500000 | F107: 89906.58954
A108: -7500 | B108: -0.4549914146 | C108: 1 | E108: 30750000 | F108: 92769.13422
A109: -5000 | B109: -0.2840254167 | C109: 1 | E109: 33000000 | F109: 95578.85951
A110: -2500 | B110: -0.1331484531 | C110: 1 | E110: 35250000 | F110: 98339.1509
A111: 0 | B111: 0 | C111: 1 | E111: 37500000 | F111: 101053.036
A112: 2500 | B112: 0.1175030974 | C112: 1 | E112: 39750000 | F112: 103723.236
A113: 5000 | B113: 0.2211992169 | C113: 1 | E113: 42000000 | F113: 106352.2081
A114: 7500 | B114: 0.3127107212 | C114: 1 | E114: 44250000 | F114: 108942.18
A115: 10000 | B115: 0.3934693403 | C115: 1 | E115: 46500000 | F115: 111495.1798
A116: 12500 | B116: 0.4647385715 | C116: 1 | E116: 48750000 | F116: 114013.0602
A117: 15000 | B117: 0.5276334473 | C117: 1 | E117: 51000000 | F117: 116497.519
A118: 17500 | B118: 0.5831379803 | C118: 1 | E118: 53250000 | F118: 118950.1176
A119: 20000 | B119: 0.6321205588 | C119: 1 | E119: 55500000 | F119: =(((E119)+$C$46)^(1-$E$43)-1)/(1-$E$43) -> 121372.2952
A120: 22500 | B120: 0.6753475326 | C120: 1 | E120: 57750000 | F120: 123765.3828
A121: 25000 | B121: 0.7134952031 | C121: 1 | E121: 60000000 | F121: 126130.6137
A122: 27500 | B122: 0.7471604042 | C122: 1 | E122: 62250000 | F122: 128469.1337
A123: 30000 | B123: 0.7768698399 | C123: 1 | E123: 64500000 | F123: 130782.0098
A124: 32500 | B124: 0.8030883248 | C124: 1 | E124: 66750000 | F124: 133070.2373
A125: 35000 | B125: 0.8262260565 | C125: 1 | E125: 69000000 | F125: 135334.7468
A126: 37500 | B126: 0.8466450332 | C126: 1 | E126: 71250000 | F126: 137576.4099
A127: 40000 | B127: 0.8646647168 | C127: 1 | E127: 73500000 | F127: 139796.0443
A128: 42500 | B128: 0.8805670317 | C128: 1 | E128: 75750000 | F128: 141994.4185
A129: 45000 | B129: 0.8946007754 | C129: 1 | E129: 78000000 | F129: 144172.2558
A130: 47500 | B130: 0.9069855108 | C130: 1 | E130: 80250000 | F130: 146330.2383
A131: 50000 | B131: 0.9179150014 | C131: 1 | E131: 82500000 | F131: 148469.0097
A132: 52500 | B132: 0.927560243 | C132: 1 | E132: 84750000 | F132: 150589.1785
A133: 55000 | B133: 0.9360721388 | C133: 1 | E133: 87000000 | F133: 152691.321
A134: 57500 | B134: 0.9435838605 | C134: 1 | E134: 89250000 | F134: 154775.9829
A135: 60000 | B135: 0.9502129316 | C135: 1 | E135: 91500000 | F135: 156843.6823
E136: 93750000 | F136: 158894.9115
E137: 96000000 | F137: 160930.1382
E138: 98250000 | F138: 162949.8082
E139: 100500000 | F139: 164954.3458
E140: 102750000 | F140: 166944.1559
E141: 105000000 | F141: 168919.6253
E142: 107250000 | F142: 170881.1232
E143: 109500000 | F143: 172829.003
E144: 111750000 | F144: 174763.6028
E145: 114000000 | F145: 176685.2465
E146: 116250000 | F146: 178594.2446
E147: 118500000 | F147: 180490.8951
E148: 120750000 | F148: 182375.4839
E149: 123000000 | F149: 184248.2858
E150: 125250000 | F150: 186109.5649
E151: 127500000 | F151: =(((E151)+$C$46)^(1-$E$43)-1)/(1-$E$43) -> 187959.5752
E152: 129750000 | F152: 189798.5614
E153: =E152-0.15*$E$87 -> 132000000 | F153: 191626.759
E154: 134250000 | F154: 193444.395
E155: 136500000 | F155: 195251.6883
E156: 138750000 | F156: 197048.85
E157: 141000000 | F157: 198836.0839
E158: 143250000 | F158: 200613.587
E159: 145500000 | F159: 202381.5495
E160: 147750000 | F160: 204140.1552
E161: 150000000 | F161: 205889.582
E162: 152250000 | F162: 207630.0021
E163: 154500000 | F163: 209361.582
E164: 156750000 | F164: 211084.4831
E165: 159000000 | F165: 212798.8617
E166: 161250000 | F166: 214504.8695
